Workbook

Sheet Orçamento
O3: UNIDADE ESCOLAR | X3: CÓDIGO INEP
O4: CENTRO DE ENSINO EM PERÍODO INTEGRAL GARAVELO PARK | X4: 52030660
A6: Nmax | M6: Ajustar altura? | O6: OBRA | S6: DATA | X6: CIDADE
A7: =MAX($C$18:$C$830) -> 4 | M7: NÃO | O7: AMPLIAÇÃO E REFORMA | S7: 2020-03-25 | X7: APARECIDA DE GOIÂNIA
O9: CRE | R9: ENDEREÇO | S9: REFERÊNCIA AGETOP | X9: REFERÊNCIA SINAPI
O10: APARECIDA | R10: RUA 43-E QD.84 ESQ.C/ 44-E S/N QD.84, SETOR GARAVELO PARK, CEP:74932-640 | S10: ABR/19 | T10: DESONERADA | X10: OUT/19 | Y10: DESONERADA
O12: ÁREA EXISTENTE (M²) | R12: ÁREA A CONSTRUIR (M²) | S12: ÁREA A DEMOLIR (M²) | X12: ÁREA TOTAL CONSTRUÍDA (M²)
O13: 1976.74 | R13: 209.56 | S13: 0 | X13: 2186.3
L15: FILTRO | O15: PLANILHA ORÇAMENTÁRIA
A16: Nível E | B16: Save Nivel | C16: Nível C | D16: Altura | E16: n1 | F16: n2 | G16: n3 | H16: n4 | I16: n5 | J16: Czero | K16: Cnível | L16: ↓ | M16: Nível | N16: Nível Corrigido | O16: ITEM | P16: TABELA | Q16: CODIGO | R16: DESCRIÇÃO DOS SERVIÇOS | S16: UNID | T16: QUANT | U16: REPET | V16: QUANT TOTAL | W16: MAT | X16: MO | Y16: T.SERVIÇO UNIT | Z16: VALOR TOTAL | AA16: OBSERVAÇÕES¹
A17: =CHOOSE(1+LOG(1+2*(ORÇAMENTO.Nivel="Nível 1")+4*(ORÇAMENTO.Nivel="Nível 2")+8*(ORÇAMENTO.Nivel="Nível 3")+16*(ORÇAMENTO.Nivel="Nível 4")+32*(ORÇAMENTO.Nivel="Serviço"),2),0,1,2,3,4,"S") -> S | B17: =IF(OR(C17="s",C17=0),OFFSET(B17,-1,0),C17) -> Save Nivel | C17: =IF(OFFSET(C17,-1,0)="L",1,IF(OFFSET(C17,-1,0)=1,2,IF(OR(A17="s",A17=0),"S",IF(AND(OFFSET(C17,-1,0)=2,A17=4),3,IF(AND(OR(OFFSET(C17,-1,0)="s",OFFSET(C17,-1,0)=0),A17<>"s",A17>OFFSET(B17,-1,0)),OFFSET(B17,-1,0),A17))))) -> S | D17: =IF(OR(C17="S",C17=0),0,IF(ISERROR(K17),J17,SMALL(J17:K17,1))) -> 0 | E17: =IF($C17=1,OFFSET(E17,-1,0)+1,OFFSET(E17,-1,0)) -> n1 | F17: =IF($C17=1,0,IF($C17=2,OFFSET(F17,-1,0)+1,OFFSET(F17,-1,0))) -> n2 | G17: =IF(AND($C17<=2,$C17<>0),0,IF($C17=3,OFFSET(G17,-1,0)+1,OFFSET(G17,-1,0))) -> n3 | H17: =IF(AND($C17<=3,$C17<>0),0,IF($C17=4,OFFSET(H17,-1,0)+1,OFFSET(H17,-1,0))) -> n4 | I17: =IF(AND($C17<=4,$C17<>0),0,IF(AND($C17="S",$Y17>0),OFFSET(I17,-1,0)+1,OFFSET(I17,-1,0))) -> n5 | J17: =IF(OR($C17="S",$C17=0),0,MATCH(0,OFFSET($D17,1,$C17,ROW($C$830)-ROW($C17)),0)) -> 0 | K17: =IF(OR($C17="S",$C17=0),0,MATCH(OFFSET($D17,0,$C17)+1,OFFSET($D17,1,$C17,ROW($C$830)-ROW($C17)),0)) -> 0 | M17: Serviço | N17: Serviço | O17: - | P17: SINAPI | R17: (sem código) | S17: - | U17: REPET | V17: - | W17: 0 | X17: 0 | Y17: 0 | Z17: -
A18: 0 | C18: L | D18: =COUNTA(OFFSET(D18,1,0):D$830) -> 811 | E18: =LEFT(O19,1)-1 -> 0 | L18: F | M18: LOTE | N18: LOTE | O18: AMPLIAÇÃO E REFORMA - CENTRO DE ENSINO EM PERÍODO INTEGRAL GARAVELO PARK | Z18: 0
A19: 1 | B19: =IF(OR(C19="s",C19=0),OFFSET(B19,-1,0),C19) -> 1 | C19: =IF(OFFSET(C19,-1,0)="L",1,IF(OFFSET(C19,-1,0)=1,2,IF(OR(A19="s",A19=0),"S",IF(AND(OFFSET(C19,-1,0)=2,A19=4),3,IF(AND(OR(OFFSET(C19,-1,0)="s",OFFSET(C19,-1,0)=0),A19<>"s",A19>OFFSET(B19,-1,0)),OFFSET(B19,-1,0),A19))))) -> 1 | D19: =IF(OR(C19="S",C19=0),0,IF(ISERROR(K19),J19,SMALL(J19:K19,1))) -> 468 | E19: =IF($C19=1,OFFSET(E19,-1,0)+1,OFFSET(E19,-1,0)) -> 1 | F19: =IF($C19=1,0,IF($C19=2,OFFSET(F19,-1,0)+1,OFFSET(F19,-1,0))) -> 0 | G19: =IF(AND($C19<=2,$C19<>0),0,IF($C19=3,OFFSET(G19,-1,0)+1,OFFSET(G19,-1,0))) -> 0 | H19: =IF(AND($C19<=3,$C19<>0),0,IF($C19=4,OFFSET(H19,-1,0)+1,OFFSET(H19,-1,0))) -> 0 | I19: 0 | J19: =IF(OR($C19="S",$C19=0),0,MATCH(0,OFFSET($D19,1,$C19,ROW($C$830)-ROW($C19)),0)) -> 811 | K19: =IF(OR($C19="S",$C19=0),0,MATCH(OFFSET($D19,0,$C19)+1,OFFSET($D19,1,$C19,ROW($C$830)-ROW($C19)),0)) -> 468 | L19: F | M19: Nível 1 | N19: Nível 1 | O19: 1. | P19: AGETOP | R19: AMPLIAÇÃO E REFORMA | S19: UN | T19: 1 | U19: 1 | V19: 1 | Y19: 0 | Z19: 0
A20: 2 | B20: =IF(OR(C20="s",C20=0),OFFSET(B20,-1,0),C20) -> 2 | C20: =IF(OFFSET(C20,-1,0)="L",1,IF(OFFSET(C20,-1,0)=1,2,IF(OR(A20="s",A20=0),"S",IF(AND(OFFSET(C20,-1,0)=2,A20=4),3,IF(AND(OR(OFFSET(C20,-1,0)="s",OFFSET(C20,-1,0)=0),A20<>"s",A20>OFFSET(B20,-1,0)),OFFSET(B20,-1,0),A20))))) -> 2 | D20: =IF(OR(C20="S",C20=0),0,IF(ISERROR(K20),J20,SMALL(J20:K20,1))) -> 35 | E20: =IF($C20=1,OFFSET(E20,-1,0)+1,OFFSET(E20,-1,0)) -> 1 | F20: =IF($C20=1,0,IF($C20=2,OFFSET(F20,-1,0)+1,OFFSET(F20,-1,0))) -> 1 | G20: =IF(AND($C20<=2,$C20<>0),0,IF($C20=3,OFFSET(G20,-1,0)+1,OFFSET(G20,-1,0))) -> 0 | H20: =IF(AND($C20<=3,$C20<>0),0,IF($C20=4,OFFSET(H20,-1,0)+1,OFFSET(H20,-1,0))) -> 0 | I20: 0 | J20: 467 | K20: 35 | M20: Nível 2 | N20: Nível 2 | O20: - | P20: AGETOP | R20: SERVIÇOS PRELIMINARES | S20: - | U20: 1 | V20: - | Y20: 0 | Z20: 0
A21: 3 | B21: 3 | C21: 3 | D21: 3 | E21: 1 | F21: 1 | G21: 1 | H21: 0 | I21: 0 | J21: 34 | K21: 3 | M21: Nível 3 | N21: Nível 3 | O21: - | P21: SINAPI | R21: ALVENARIA ADMINISTRAÇÃO | S21: - | U21: 1 | V21: - | Y21: 0 | Z21: 0
A22: S | B22: 3 | C22: S | D22: 0 | E22: 1 | F22: 1 | G22: 1 | H22: 0 | I22: 0 | J22: 0 | K22: 0 | M22: Serviço | N22: Serviço | O22: - | P22: SINAPI | Q22: 97622 | R22: DEMOLIÇÃO DE ALVENARIA DE BLOCO FURADO, DE FORMA MANUAL, SEM REAPROVEITAMENTO. AF_12/2017 | S22: M3 | T22: 1.61 | U22: 1 | V22: 1.61 | Y22: 0 | Z22: 0 | AA22: Referência: AGETOP - 20118
A23: S | B23: 3 | C23: S | D23: 0 | E23: 1 | F23: 1 | G23: 1 | H23: 0 | I23: 0 | J23: 0 | K23: 0 | M23: Serviço | N23: Serviço | O23: - | P23: SINAPI | Q23: 97644 | R23: REMOÇÃO DE PORTAS, DE FORMA MANUAL, SEM REAPROVEITAMENTO. AF_12/2017 | S23: M2 | T23: 5.04 | U23: 1 | V23: 5.04 | Y23: 0 | Z23: 0 | AA23: Referência: AGETOP - 20106
A24: 3 | B24: 3 | C24: 3 | D24: 5 | E24: 1 | F24: 1 | G24: 2 | H24: 0 | I24: 0 | J24: 31 | K24: 5 | M24: Nível 3 | N24: Nível 3 | O24: - | P24: SINAPI | R24: DEPÓSITO | S24: - | U24: 1 | V24: - | Y24: 0 | Z24: 0
A25: S | B25: 3 | C25: S | D25: 0 | E25: 1 | F25: 1 | G25: 2 | H25: 0 | I25: 0 | J25: 0 | K25: 0 | M25: Serviço | N25: Serviço | O25: - | P25: SINAPI | Q25: 97622 | R25: DEMOLIÇÃO DE ALVENARIA DE BLOCO FURADO, DE FORMA MANUAL, SEM REAPROVEITAMENTO. AF_12/2017 | S25: M3 | T25: 3.53 | U25: 1 | V25: 3.53 | Y25: 0 | Z25: 0 | AA25: Referência: AGETOP - 20118
A26: S | B26: 3 | C26: S | D26: 0 | E26: 1 | F26: 1 | G26: 2 | H26: 0 | I26: 0 | J26: 0 | K26: 0 | M26: Serviço | N26: Serviço | O26: - | P26: AGETOP | Q26: 20103 | R26: DEMOLIÇÃO ESTRUTURA EM MADEIRA TELHADO C/ TRANSP. ATÉ CB. E CARGA | S26: m2 | T26: 20.25 | U26: 1 | V26: 20.25 | Y26: 0 | Z26: 0
A27: S | B27: 3 | C27: S | D27: 0 | E27: 1 | F27: 1 | G27: 2 | H27: 0 | I27: 0 | J27: 0 | K27: 0 | M27: Serviço | N27: Serviço | O27: - | P27: AGETOP | Q27: 20102 | R27: DEMOLICAO-COBERTURA TELHA FIBROCIMENTO/FIBRA DE VIDRO/SIMILARES C/ TRANSP. ATÉ CB. E CARGA | S27: m2 | T27: 20.25 | U27: 1 | V27: 20.25 | Y27: 0 | Z27: 0
A28: S | B28: 3 | C28: S | D28: 0 | E28: 1 | F28: 1 | G28: 2 | H28: 0 | I28: 0 | J28: 0 | K28: 0 | M28: Serviço | N28: Serviço | O28: - | P28: SINAPI | Q28: 97644 | R28: REMOÇÃO DE PORTAS, DE FORMA MANUAL, SEM REAPROVEITAMENTO. AF_12/2017 | S28: M2 | T28: 1.68 | U28: 1 | V28: 1.68 | Y28: 0 | Z28: 0 | AA28: Referência: AGETOP - 20106
A29: 3 | B29: 3 | C29: 3 | D29: 2 | E29: 1 | F29: 1 | G29: 3 | H29: 0 | I29: 0 | J29: 26 | K29: 2 | M29: Nível 3 | N29: Nível 3 | O29: - | P29: SINAPI | R29: PORTÃO DE ACESSO | S29: - | U29: 1 | V29: - | Y29: 0 | Z29: 0
A30: S | B30: 3 | C30: S | D30: 0 | E30: 1 | F30: 1 | G30: 3 | H30: 0 | I30: 0 | J30: 0 | K30: 0 | M30: Serviço | N30: Serviço | O30: - | P30: SINAPI | Q30: 97622 | R30: DEMOLIÇÃO DE ALVENARIA DE BLOCO FURADO, DE FORMA MANUAL, SEM REAPROVEITAMENTO. AF_12/2017 | S30: M3 | T30: 0.31 | U30: 1 | V30: 0.31 | Y30: 0 | Z30: 0 | AA30: Referência: AGETOP - 20118
A31: 3 | B31: 3 | C31: 3 | D31: 2 | E31: 1 | F31: 1 | G31: 4 | H31: 0 | I31: 0 | J31: 24 | K31: 2 | M31: Nível 3 | N31: Nível 3 | O31: - | P31: SINAPI | R31: VESTIÁRIO | S31: - | U31: 1 | V31: - | Y31: 0 | Z31: 0
A32: S | B32: 3 | C32: S | D32: 0 | E32: 1 | F32: 1 | G32: 4 | H32: 0 | I32: 0 | J32: 0 | K32: 0 | M32: Serviço | N32: Serviço | O32: - | P32: AGETOP | Q32: 20121 | R32: DEM. MANUAL EM CONCR.SIMPLES C/TR.ATE CB.E CARGA (O.C.) | S32: m3 | T32: 2.76 | U32: 1 | V32: 2.76 | Y32: 0 | Z32: 0
A33: 3 | B33: 3 | C33: 3 | D33: 2 | E33: 1 | F33: 1 | G33: 5 | H33: 0 | I33: 0 | J33: 22 | K33: 2 | M33: Nível 3 | N33: Nível 3 | O33: - | P33: SINAPI | R33: PÁTIO MULTIUSO | S33: - | U33: 1 | V33: - | Y33: 0 | Z33: 0
A34: S | B34: 3 | C34: S | D34: 0 | E34: 1 | F34: 1 | G34: 5 | H34: 0 | I34: 0 | J34: 0 | K34: 0 | M34: Serviço | N34: Serviço | O34: - | P34: AGETOP | Q34: 20121 | R34: DEM. MANUAL EM CONCR.SIMPLES C/TR.ATE CB.E CARGA (O.C.) | S34: m3 | T34: 6.69 | U34: 1 | V34: 6.69 | Y34: 0 | Z34: 0
A35: 3 | B35: 3 | C35: 3 | D35: 2 | E35: 1 | F35: 1 | G35: 6 | H35: 0 | I35: 0 | J35: 20 | K35: 2 | M35: Nível 3 | N35: Nível 3 | O35: - | P35: SINAPI | R35: PASSARELAS | S35: - | U35: 1 | V35: - | Y35: 0 | Z35: 0
A36: S | B36: 3 | C36: S | D36: 0 | E36: 1 | F36: 1 | G36: 6 | H36: 0 | I36: 0 | J36: 0 | K36: 0 | M36: Serviço | N36: Serviço | O36: - | P36: AGETOP | Q36: 20121 | R36: DEM. MANUAL EM CONCR.SIMPLES C/TR.ATE CB.E CARGA (O.C.) | S36: m3 | T36: 1 | U36: 1 | V36: 1 | Y36: 0 | Z36: 0
A37: 3 | B37: 3 | C37: 3 | D37: 5 | E37: 1 | F37: 1 | G37: 7 | H37: 0 | I37: 0 | J37: 18 | K37: 5 | M37: Nível 3 | N37: Nível 3 | O37: - | P37: SINAPI | R37: SANITÁRIOS 1º PAVIMENTO | S37: - | U37: 1 | V37: - | Y37: 0 | Z37: 0
A38: S | B38: 3 | C38: S | D38: 0 | E38: 1 | F38: 1 | G38: 7 | H38: 0 | I38: 0 | J38: 0 | K38: 0 | M38: Serviço | N38: Serviço | O38: - | P38: AGETOP | Q38: 20163 | R38: DEMOLIÇÃO DAS INSTALAÇÕES HIDROSANITÁRIAS E AFINS C/ TRANSP. ATÉ CB. E CARGA | S38: H | T38: 2 | U38: 1 | V38: 2 | Y38: 0 | Z38: 0
A39: S | B39: 3 | C39: S | D39: 0 | E39: 1 | F39: 1 | G39: 7 | H39: 0 | I39: 0 | J39: 0 | K39: 0 | M39: Serviço | N39: Serviço | O39: - | P39: SINAPI | Q39: 97622 | R39: DEMOLIÇÃO DE ALVENARIA DE BLOCO FURADO, DE FORMA MANUAL, SEM REAPROVEITAMENTO. AF_12/2017 | S39: M3 | T39: 0.26 | U39: 1 | V39: 0.26 | Y39: 0 | Z39: 0 | AA39: Referência: AGETOP - 20118
A40: S | B40: 3 | C40: S | D40: 0 | E40: 1 | F40: 1 | G40: 7 | H40: 0 | I40: 0 | J40: 0 | K40: 0 | M40: Serviço | N40: Serviço | O40: - | P40: AGETOP | Q40: 20121 | R40: DEM. MANUAL EM CONCR.SIMPLES C/TR.ATE CB.E CARGA (O.C.) | S40: m3 | T40: 0.12 | U40: 1 | V40: 0.12 | Y40: 0 | Z40: 0
A41: S | B41: 3 | C41: S | D41: 0 | E41: 1 | F41: 1 | G41: 7 | H41: 0 | I41: 0 | J41: 0 | K41: 0 | M41: Serviço | N41: Serviço | O41: - | P41: SINAPI | Q41: 97633 | R41: DEMOLIÇÃO DE REVESTIMENTO CERÂMICO, DE FORMA MANUAL, SEM REAPROVEITAMENTO. AF_12/2017 | S41: M2 | T41: 133.14 | U41: 1 | V41: 133.14 | Y41: 0 | Z41: 0 | AA41: Referência: AGETOP - 20115
A42: 3 | B42: 3 | C42: 3 | D42: 2 | E42: 1 | F42: 1 | G42: 8 | H42: 0 | I42: 0 | J42: 13 | K42: 2 | M42: Nível 3 | N42: Nível 3 | O42: - | P42: SINAPI | R42: SANITÁRIOS TÉRREO | S42: - | U42: 1 | V42: - | Y42: 0 | Z42: 0
A43: S | B43: 3 | C43: S | D43: 0 | E43: 1 | F43: 1 | G43: 8 | H43: 0 | I43: 0 | J43: 0 | K43: 0 | M43: Serviço | N43: Serviço | O43: - | P43: AGETOP | Q43: 20134 | R43: DEM.DE FORRO GESSO C/TRANSP.ATE CB.E CARGA | S43: m2 | T43: 29.28 | U43: 1 | V43: 29.28 | Y43: 0 | Z43: 0
A44: 3 | B44: 3 | C44: 3 | D44: 2 | E44: 1 | F44: 1 | G44: 9 | H44: 0 | I44: 0 | J44: 11 | K44: 2 | M44: Nível 3 | N44: Nível 3 | O44: - | P44: SINAPI | R44: PISO TÁTIL | S44: - | U44: 1 | V44: - | Y44: 0 | Z44: 0
A45: S | B45: 3 | C45: S | D45: 0 | E45: 1 | F45: 1 | G45: 9 | H45: 0 | I45: 0 | J45: 0 | K45: 0 | M45: Serviço | N45: Serviço | O45: - | P45: AGETOP | Q45: 20121 | R45: DEM. MANUAL EM CONCR.SIMPLES C/TR.ATE CB.E CARGA (O.C.) | S45: m3 | T45: 4.86 | U45: 1 | V45: 4.86 | Y45: 0 | Z45: 0
A46: 3 | B46: 3 | C46: 3 | D46: 2 | E46: 1 | F46: 1 | G46: 10 | H46: 0 | I46: 0 | J46: 9 | K46: 2 | M46: Nível 3 | N46: Nível 3 | O46: - | P46: SINAPI | R46: CENTRAL DE GÁS | S46: - | U46: 1 | V46: - | Y46: 0 | Z46: 0
A47: S | B47: 3 | C47: S | D47: 0 | E47: 1 | F47: 1 | G47: 10 | H47: 0 | I47: 0 | J47: 0 | K47: 0 | M47: Serviço | N47: Serviço | O47: - | P47: AGETOP | Q47: 20121 | R47: DEM. MANUAL EM CONCR.SIMPLES C/TR.ATE CB.E CARGA (O.C.) | S47: m3 | T47: 0.09 | U47: 1 | V47: 0.09 | Y47: 0 | Z47: 0
A48: 3 | B48: 3 | C48: 3 | D48: 2 | E48: 1 | F48: 1 | G48: 11 | H48: 0 | I48: 0 | J48: 7 | K48: 2 | M48: Nível 3 | N48: Nível 3 | O48: - | P48: SINAPI | R48: COMBATE À INCÊNDIO | S48: - | U48: 1 | V48: - | Y48: 0 | Z48: 0
A49: S | B49: 3 | C49: S | D49: 0 | E49: 1 | F49: 1 | G49: 11 | H49: 0 | I49: 0 | J49: 0 | K49: 0 | M49: Serviço | N49: Serviço | O49: - | P49: AGETOP | Q49: 20121 | R49: DEM. MANUAL EM CONCR.SIMPLES C/TR.ATE CB.E CARGA (O.C.) | S49: m3 | T49: 7.89 | U49: 1 | V49: 7.89 | Y49: 0 | Z49: 0
A50: 3 | B50: 3 | C50: 3 | D50: 2 | E50: 1 | F50: 1 | G50: 12 | H50: 0 | I50: 0 | J50: =IF(OR($C50="S",$C50=0),0,MATCH(0,OFFSET($D50,1,$C50,ROW($C$830)-ROW($C50)),0)) -> 5 | K50: =IF(OR($C50="S",$C50=0),0,MATCH(OFFSET($D50,0,$C50)+1,OFFSET($D50,1,$C50,ROW($C$830)-ROW($C50)),0)) -> 2 | M50: Nível 3 | N50: Nível 3 | O50: - | P50: SINAPI | R50: INST. ELÉTRICAS | S50: - | U50: 1 | V50: - | Y50: 0 | Z50: 0
A51: S | B51: 3 | C51: S | D51: 0 | E51: 1 | F51: 1 | G51: 12 | H51: 0 | I51: 0 | J51: 0 | K51: 0 | M51: Serviço | N51: Serviço | O51: - | P51: AGETOP | Q51: 20162 | R51: DEMOLIÇÃO DAS INSTALAÇÕES ELÉTRICAS E AFINS C/ TRANSP. ATÉ CB. E CARGA | S51: H | T51: 40 | U51: 1 | V51: 40 | Y51: 0 | Z51: 0
A52: 3 | B52: =IF(OR(C52="s",C52=0),OFFSET(B52,-1,0),C52) -> 3 | C52: =IF(OFFSET(C52,-1,0)="L",1,IF(OFFSET(C52,-1,0)=1,2,IF(OR(A52="s",A52=0),"S",IF(AND(OFFSET(C52,-1,0)=2,A52=4),3,IF(AND(OR(OFFSET(C52,-1,0)="s",OFFSET(C52,-1,0)=0),A52<>"s",A52>OFFSET(B52,-1,0)),OFFSET(B52,-1,0),A52))))) -> 3 | D52: =IF(OR(C52="S",C52=0),0,IF(ISERROR(K52),J52,SMALL(J52:K52,1))) -> 3 | E52: 1 | F52: 1 | G52: 13 | H52: 0 | I52: 0 | J52: =IF(OR($C52="S",$C52=0),0,MATCH(0,OFFSET($D52,1,$C52,ROW($C$830)-ROW($C52)),0)) -> 3 | K52: =IF(OR($C52="S",$C52=0),0,MATCH(OFFSET($D52,0,$C52)+1,OFFSET($D52,1,$C52,ROW($C$830)-ROW($C52)),0)) ->  | M52: Nível 3 | N52: Nível 3 | O52: - | P52: SINAPI | R52: OUTROS | S52: - | U52: 1 | V52: - | Y52: 0 | Z52: 0
A53: S | B53: 3 | C53: S | D53: 0 | E53: 1 | F53: 1 | G53: 13 | H53: 0 | I53: 0 | J53: 0 | K53: 0 | M53: Serviço | N53: Serviço | O53: - | P53: AGETOP | Q53: 20190 | R53: LIMPEZA MECANICA DE TERRENO | S53: m2 | T53: 366.11 | U53: 1 | V53: 366.11 | Y53: 0 | Z53: 0
A54: S | B54: 3 | C54: S | D54: 0 | E54: 1 | F54: 1 | G54: 13 | H54: 0 | I54: 0 | J54: 0 | K54: 0 | M54: Serviço | N54: Serviço | O54: - | P54: SINAPI | Q54: 74209/1 | R54: PLACA DE OBRA EM CHAPA DE ACO GALVANIZADO | S54: M2 | T54: 7.5 | U54: 1 | V54: 7.5 | Y54: 0 | Z54: 0 | AA54: Referência: AGETOP - 21301
A55: 2 | B55: 2 | C55: 2 | D55: 3 | E55: 1 | F55: 2 | G55: 0 | H55: 0 | I55: 0 | J55: 432 | K55: 3 | M55: Nível 2 | N55: Nível 2 | O55: - | P55: AGETOP | R55: TRANSPORTES | S55: - | U55: 1 | V55: - | Y55: 0 | Z55: 0
A56: S | B56: 2 | C56: S | D56: 0 | E56: 1 | F56: 2 | G56: 0 | H56: 0 | I56: 0 | J56: 0 | K56: 0 | M56: Serviço | N56: Serviço | O56: - | P56: SINAPI | Q56: 72900 | R56: TRANSPORTE DE ENTULHO COM CAMINHAO BASCULANTE 6 M3, RODOVIA PAVIMENTADA, DMT 0,5 A 1,0 KM | S56: M3 | T56: 40.42 | U56: 1 | V56: 40.42 | Y56: 0 | Z56: 0
A57: S | B57: 2 | C57: S | D57: 0 | E57: 1 | F57: 2 | G57: 0 | H57: 0 | I57: 0 | J57: 0 | K57: 0 | M57: Serviço | N57: Serviço | O57: - | P57: SINAPI | Q57: 72897 | R57: CARGA MANUAL DE ENTULHO EM CAMINHAO BASCULANTE 6 M3 | S57: M3 | T57: 40.42 | U57: 1 | V57: 40.42 | Y57: 0 | Z57: 0
A58: 2 | B58: 2 | C58: 2 | D58: 32 | E58: 1 | F58: 3 | G58: 0 | H58: 0 | I58: 0 | J58: 429 | K58: 32 | M58: Nível 2 | N58: Nível 2 | O58: - | P58: AGETOP | R58: SERVIÇO EM TERRA | S58: - | U58: 1 | V58: - | Y58: 0 | Z58: 0
A59: 3 | B59: 3 | C59: 3 | D59: 8 | E59: 1 | F59: 3 | G59: 1 | H59: 0 | I59: 0 | J59: 31 | K59: 8 | M59: Nível 3 | N59: Nível 3 | O59: - | P59: SINAPI | R59: VESTIÁRIO | S59: - | U59: 1 | V59: - | Y59: 0 | Z59: 0
A60: S | B60: 3 | C60: S | D60: 0 | E60: 1 | F60: 3 | G60: 1 | H60: 0 | I60: 0 | J60: 0 | K60: 0 | M60: Serviço | N60: Serviço | O60: - | P60: SINAPI | Q60: 79480 | R60: ESCAVACAO MECANICA CAMPO ABERTO EM SOLO EXCETO ROCHA ATE 2,00M PROFUNDIDADE | S60: M3 | T60: 10.35 | U60: 1 | V60: 10.35 | Y60: 0 | Z60: 0 | AA60: Referência: AGETOP - 41004
A61: S | B61: 3 | C61: S | D61: 0 | E61: 1 | F61: 3 | G61: 1 | H61: 0 | I61: 0 | J61: 0 | K61: 0 | M61: Serviço | N61: Serviço | O61: - | P61: SINAPI | Q61: 72898 | R61: CARGA E DESCARGA MECANIZADAS DE ENTULHO EM CAMINHAO BASCULANTE 6 M3 | S61: M3 | T61: 10.35 | U61: 1 | V61: 10.35 | Y61: 0 | Z61: 0 | AA61: Referência: AGETOP - 41005
A62: S | B62: 3 | C62: S | D62: 0 | E62: 1 | F62: 3 | G62: 1 | H62: 0 | I62: 0 | J62: 0 | K62: 0 | M62: Serviço | N62: Serviço | O62: - | P62: AGETOP | Q62: 41012 | R62: INDENIZAÇÃO DE JAZIDA | S62: m3 | T62: 10.35 | U62: 1 | V62: 10.35 | Y62: 0 | Z62: 0
A63: S | B63: 3 | C63: S | D63: 0 | E63: 1 | F63: 3 | G63: 1 | H63: 0 | I63: 0 | J63: 0 | K63: 0 | M63: Serviço | N63: Serviço | O63: - | P63: AGETOP | Q63: 41006 | R63: TRANSPORTE DE MATERIAL ESCAVADO M3.KM | S63: m3km | T63: 103.5 | U63: 1 | V63: 103.5 | Y63: 0 | Z63: 0
A64: S | B64: 3 | C64: S | D64: 0 | E64: 1 | F64: 3 | G64: 1 | H64: 0 | I64: 0 | J64: 0 | K64: 0 | M64: Serviço | N64: Serviço | O64: - | P64: SINAPI | Q64: 74005/2 | R64: COMPACTACAO MECANICA C/ CONTROLE DO GC>=95% DO PN (AREAS) (C/MONIVELADORA 140 HP E ROLO COMPRESSOR VIBRATORIO 80 HP) | S64: M3 | T64: 8.28 | U64: 1 | V64: 8.28 | Y64: 0 | Z64: 0 | AA64: Referência: AGETOP - 41008
A65: S | B65: 3 | C65: S | D65: 0 | E65: 1 | F65: 3 | G65: 1 | H65: 0 | I65: 0 | J65: 0 | K65: 0 | M65: Serviço | N65: Serviço | O65: - | P65: AGETOP | Q65: 41140 | R65: REGULARIZAÇÃO DO TERRENO SEM APILOAMENTO COM TRANSPORTE MANUAL DA TERRA ESCAVADA | S65: m2 | T65: 55.24 | U65: 1 | V65: 55.24 | Y65: 0 | Z65: 0
A66: S | B66: 3 | C66: S | D66: 0 | E66: 1 | F66: 3 | G66: 1 | H66: 0 | I66: 0 | J66: 0 | K66: 0 | M66: Serviço | N66: Serviço | O66: - | P66: AGETOP | Q66: 41002 | R66: APILOAMENTO | S66: m2 | T66: 55.24 | U66: 1 | V66: 55.24 | Y66: 0 | Z66: 0
A67: 3 | B67: 3 | C67: 3 | D67: 8 | E67: 1 | F67: 3 | G67: 2 | H67: 0 | I67: 0 | J67: 23 | K67: 8 | M67: Nível 3 | N67: Nível 3 | O67: - | P67: SINAPI | R67: PÁTIO MULTIUSO | S67: - | U67: 1 | V67: - | Y67: 0 | Z67: 0
A68: S | B68: 3 | C68: S | D68: 0 | E68: 1 | F68: 3 | G68: 2 | H68: 0 | I68: 0 | J68: 0 | K68: 0 | M68: Serviço | N68: Serviço | O68: - | P68: SINAPI | Q68: 79480 | R68: ESCAVACAO MECANICA CAMPO ABERTO EM SOLO EXCETO ROCHA ATE 2,00M PROFUNDIDADE | S68: M3 | T68: 32.98 | U68: 1 | V68: 32.98 | Y68: 0 | Z68: 0 | AA68: Referência: AGETOP - 41004
A69: S | B69: 3 | C69: S | D69: 0 | E69: 1 | F69: 3 | G69: 2 | H69: 0 | I69: 0 | J69: 0 | K69: 0 | M69: Serviço | N69: Serviço | O69: - | P69: SINAPI | Q69: 72898 | R69: CARGA E DESCARGA MECANIZADAS DE ENTULHO EM CAMINHAO BASCULANTE 6 M3 | S69: M3 | T69: 32.98 | U69: 1 | V69: 32.98 | Y69: 0 | Z69: 0 | AA69: Referência: AGETOP - 41005
A70: S | B70: 3 | C70: S | D70: 0 | E70: 1 | F70: 3 | G70: 2 | H70: 0 | I70: 0 | J70: 0 | K70: 0 | M70: Serviço | N70: Serviço | O70: - | P70: AGETOP | Q70: 41012 | R70: INDENIZAÇÃO DE JAZIDA | S70: m3 | T70: 32.98 | U70: 1 | V70: 32.98 | Y70: 0 | Z70: 0
A71: S | B71: 3 | C71: S | D71: 0 | E71: 1 | F71: 3 | G71: 2 | H71: 0 | I71: 0 | J71: 0 | K71: 0 | M71: Serviço | N71: Serviço | O71: - | P71: AGETOP | Q71: 41006 | R71: TRANSPORTE DE MATERIAL ESCAVADO M3.KM | S71: m3km | T71: 329.8 | U71: 1 | V71: 329.8 | Y71: 0 | Z71: 0
A72: S | B72: 3 | C72: S | D72: 0 | E72: 1 | F72: 3 | G72: 2 | H72: 0 | I72: 0 | J72: 0 | K72: 0 | M72: Serviço | N72: Serviço | O72: - | P72: SINAPI | Q72: 74005/2 | R72: COMPACTACAO MECANICA C/ CONTROLE DO GC>=95% DO PN (AREAS) (C/MONIVELADORA 140 HP E ROLO COMPRESSOR VIBRATORIO 80 HP) | S72: M3 | T72: 26.39 | U72: 1 | V72: 26.39 | Y72: 0 | Z72: 0 | AA72: Referência: AGETOP - 41008
A73: S | B73: 3 | C73: S | D73: 0 | E73: 1 | F73: 3 | G73: 2 | H73: 0 | I73: 0 | J73: 0 | K73: 0 | M73: Serviço | N73: Serviço | O73: - | P73: AGETOP | Q73: 41140 | R73: REGULARIZAÇÃO DO TERRENO SEM APILOAMENTO COM TRANSPORTE MANUAL DA TERRA ESCAVADA | S73: m2 | T73: 133.98 | U73: 1 | V73: 133.98 | Y73: 0 | Z73: 0
A74: S | B74: 3 | C74: S | D74: 0 | E74: 1 | F74: 3 | G74: 2 | H74: 0 | I74: 0 | J74: 0 | K74: 0 | M74: Serviço | N74: Serviço | O74: - | P74: AGETOP | Q74: 41002 | R74: APILOAMENTO | S74: m2 | T74: 133.98 | U74: 1 | V74: 133.98 | Y74: 0 | Z74: 0
A75: 3 | B75: 3 | C75: 3 | D75: 3 | E75: 1 | F75: 3 | G75: 3 | H75: 0 | I75: 0 | J75: 15 | K75: 3 | M75: Nível 3 | N75: Nível 3 | O75: - | P75: SINAPI | R75: PASSARELAS | S75: - | U75: 1 | V75: - | Y75: 0 | Z75: 0
A76: S | B76: 3 | C76: S | D76: 0 | E76: 1 | F76: 3 | G76: 3 | H76: 0 | I76: 0 | J76: 0 | K76: 0 | M76: Serviço | N76: Serviço | O76: - | P76: AGETOP | Q76: 41140 | R76: REGULARIZAÇÃO DO TERRENO SEM APILOAMENTO COM TRANSPORTE MANUAL DA TERRA ESCAVADA | S76: m2 | T76: 20.16 | U76: 1 | V76: 20.16 | Y76: 0 | Z76: 0
A77: S | B77: 3 | C77: S | D77: 0 | E77: 1 | F77: 3 | G77: 3 | H77: 0 | I77: 0 | J77: 0 | K77: 0 | M77: Serviço | N77: Serviço | O77: - | P77: AGETOP | Q77: 41002 | R77: APILOAMENTO | S77: m2 | T77: 20.16 | U77: 1 | V77: 20.16 | Y77: 0 | Z77: 0
A78: 3 | B78: 3 | C78: 3 | D78: 3 | E78: 1 | F78: 3 | G78: 4 | H78: 0 | I78: 0 | J78: 12 | K78: 3 | M78: Nível 3 | N78: Nível 3 | O78: - | P78: SINAPI | R78: PASSEIO | S78: - | U78: 1 | V78: - | Y78: 0 | Z78: 0
A79: S | B79: 3 | C79: S | D79: 0 | E79: 1 | F79: 3 | G79: 4 | H79: 0 | I79: 0 | J79: 0 | K79: 0 | M79: Serviço | N79: Serviço | O79: - | P79: AGETOP | Q79: 41140 | R79: REGULARIZAÇÃO DO TERRENO SEM APILOAMENTO COM TRANSPORTE MANUAL DA TERRA ESCAVADA | S79: m2 | T79: 366.11 | U79: 1 | V79: 366.11 | Y79: 0 | Z79: 0
A80: S | B80: 3 | C80: S | D80: 0 | E80: 1 | F80: 3 | G80: 4 | H80: 0 | I80: 0 | J80: 0 | K80: 0 | M80: Serviço | N80: Serviço | O80: - | P80: AGETOP | Q80: 41002 | R80: APILOAMENTO | S80: m2 | T80: 366.11 | U80: 1 | V80: 366.11 | Y80: 0 | Z80: 0
A81: 3 | B81: 3 | C81: 3 | D81: 3 | E81: 1 | F81: 3 | G81: 5 | H81: 0 | I81: 0 | J81: 9 | K81: 3 | M81: Nível 3 | N81: Nível 3 | O81: - | P81: SINAPI | R81: CENTRAL DE GÁS | S81: - | U81: 1 | V81: - | Y81: 0 | Z81: 0
A82: S | B82: 3 | C82: S | D82: 0 | E82: 1 | F82: 3 | G82: 5 | H82: 0 | I82: 0 | J82: 0 | K82: 0 | M82: Serviço | N82: Serviço | O82: - | P82: SINAPI | Q82: 93358 | R82: ESCAVAÇÃO MANUAL DE VALA COM PROFUNDIDADE MENOR OU IGUAL A 1,30 M. AF_03/2016 | S82: M3 | T82: 0.6 | U82: 1 | V82: 0.6 | Y82: 0 | Z82: 0 | AA82: Referência: AGETOP - 40101
A83: S | B83: 3 | C83: S | D83: 0 | E83: 1 | F83: 3 | G83: 5 | H83: 0 | I83: 0 | J83: 0 | K83: 0 | M83: Serviço | N83: Serviço | O83: - | P83: SINAPI | Q83: 96995 | R83: REATERRO MANUAL APILOADO COM SOQUETE. AF_10/2017 | S83: M3 | T83: 0.6 | U83: 1 | V83: 0.6 | Y83: 0 | Z83: 0 | AA83: Referência: AGETOP - 40902
A84: 3 | B84: 3 | C84: 3 | D84: 3 | E84: 1 | F84: 3 | G84: 6 | H84: 0 | I84: 0 | J84: 6 | K84: 3 | M84: Nível 3 | N84: Nível 3 | O84: - | P84: SINAPI | R84: COMBATE À INCÊNDIO | S84: - | U84: 1 | V84: - | Y84: 0 | Z84: 0
A85: S | B85: 3 | C85: S | D85: 0 | E85: 1 | F85: 3 | G85: 6 | H85: 0 | I85: 0 | J85: 0 | K85: 0 | M85: Serviço | N85: Serviço | O85: - | P85: SINAPI | Q85: 93358 | R85: ESCAVAÇÃO MANUAL DE VALA COM PROFUNDIDADE MENOR OU IGUAL A 1,30 M. AF_03/2016 | S85: M3 | T85: 10.54 | U85: 1 | V85: 10.54 | Y85: 0 | Z85: 0 | AA85: Referência: AGETOP - 40101
A86: S | B86: 3 | C86: S | D86: 0 | E86: =IF($C86=1,OFFSET(E86,-1,0)+1,OFFSET(E86,-1,0)) -> 1 | F86: =IF($C86=1,0,IF($C86=2,OFFSET(F86,-1,0)+1,OFFSET(F86,-1,0))) -> 3 | G86: =IF(AND($C86<=2,$C86<>0),0,IF($C86=3,OFFSET(G86,-1,0)+1,OFFSET(G86,-1,0))) -> 6 | H86: =IF(AND($C86<=3,$C86<>0),0,IF($C86=4,OFFSET(H86,-1,0)+1,OFFSET(H86,-1,0))) -> 0 | I86: 0 | J86: 0 | K86: 0 | M86: Serviço | N86: Serviço | O86: - | P86: SINAPI | Q86: 96995 | R86: REATERRO MANUAL APILOADO COM SOQUETE. AF_10/2017 | S86: M3 | T86: 10.54 | U86: 1 | V86: 10.54 | Y86: 0 | Z86: 0 | AA86: Referência: AGETOP - 40902
A87: 3 | B87: 3 | C87: 3 | D87: 3 | E87: 1 | F87: 3 | G87: 7 | H87: 0 | I87: 0 | J87: =IF(OR($C87="S",$C87=0),0,MATCH(0,OFFSET($D87,1,$C87,ROW($C$830)-ROW($C87)),0)) -> 3 | K87: =IF(OR($C87="S",$C87=0),0,MATCH(OFFSET($D87,0,$C87)+1,OFFSET($D87,1,$C87,ROW($C$830)-ROW($C87)),0)) -> 383 | M87: Nível 3 | N87: Nível 3 | O87: - | P87: SINAPI | R87: INST. ELÉTRICAS | S87: - | U87: 1 | V87: - | Y87: 0 | Z87: 0
A88: S | B88: 3 | C88: S | D88: 0 | E88: 1 | F88: 3 | G88: 7 | H88: 0 | I88: 0 | J88: 0 | K88: 0 | M88: Serviço | N88: Serviço | O88: - | P88: SINAPI | Q88: 93358 | R88: ESCAVAÇÃO MANUAL DE VALA COM PROFUNDIDADE MENOR OU IGUAL A 1,30 M. AF_03/2016 | S88: M3 | T88: 14.77 | U88: 1 | V88: 14.77 | Y88: 0 | Z88: 0 | AA88: Referência: AGETOP - 40101
A89: S | B89: 3 | C89: S | D89: 0 | E89: 1 | F89: 3 | G89: 7 | H89: 0 | I89: 0 | J89: 0 | K89: 0 | M89: Serviço | N89: Serviço | O89: - | P89: SINAPI | Q89: 96995 | R89: REATERRO MANUAL APILOADO COM SOQUETE. AF_10/2017 | S89: M3 | T89: 14.77 | U89: 1 | V89: 14.77 | Y89: 0 | Z89: 0 | AA89: Referência: AGETOP - 40902
A90: =CHOOSE(1+LOG(1+2*(ORÇAMENTO.Nivel="Nível 1")+4*(ORÇAMENTO.Nivel="Nível 2")+8*(ORÇAMENTO.Nivel="Nível 3")+16*(ORÇAMENTO.Nivel="Nível 4")+32*(ORÇAMENTO.Nivel="Serviço"),2),0,1,2,3,4,"S") -> 2 | B90: =IF(OR(C90="s",C90=0),OFFSET(B90,-1,0),C90) -> 2 | C90: =IF(OFFSET(C90,-1,0)="L",1,IF(OFFSET(C90,-1,0)=1,2,IF(OR(A90="s",A90=0),"S",IF(AND(OFFSET(C90,-1,0)=2,A90=4),3,IF(AND(OR(OFFSET(C90,-1,0)="s",OFFSET(C90,-1,0)=0),A90<>"s",A90>OFFSET(B90,-1,0)),OFFSET(B90,-1,0),A90))))) -> 2 | D90: =IF(OR(C90="S",C90=0),0,IF(ISERROR(K90),J90,SMALL(J90:K90,1))) -> 19 | E90: =IF($C90=1,OFFSET(E90,-1,0)+1,OFFSET(E90,-1,0)) -> 1 | F90: =IF($C90=1,0,IF($C90=2,OFFSET(F90,-1,0)+1,OFFSET(F90,-1,0))) -> 4 | G90: =IF(AND($C90<=2,$C90<>0),0,IF($C90=3,OFFSET(G90,-1,0)+1,OFFSET(G90,-1,0))) -> 0 | H90: =IF(AND($C90<=3,$C90<>0),0,IF($C90=4,OFFSET(H90,-1,0)+1,OFFSET(H90,-1,0))) -> 0 | I90: =IF(AND($C90<=4,$C90<>0),0,IF(AND($C90="S",$Y90>0),OFFSET(I90,-1,0)+1,OFFSET(I90,-1,0))) -> 0 | J90: =IF(OR($C90="S",$C90=0),0,MATCH(0,OFFSET($D90,1,$C90,ROW($C$830)-ROW($C90)),0)) -> 397 | K90: =IF(OR($C90="S",$C90=0),0,MATCH(OFFSET($D90,0,$C90)+1,OFFSET($D90,1,$C90,ROW($C$830)-ROW($C90)),0)) -> 19 | M90: Nível 2 | N90: Nível 2 | O90: - | P90: AGETOP | R90: FUNDAÇÕES E SONDAGENS | S90: - | U90: 1 | V90: - | Y90: 0 | Z90: 0
A91: 3 | B91: 3 | C91: 3 | D91: 4 | E91: 1 | F91: 4 | G91: 1 | H91: 0 | I91: 0 | J91: 18 | K91: 4 | M91: Nível 3 | N91: Nível 3 | O91: - | P91: SINAPI | R91: ESTACAS | S91: - | U91: 1 | V91: - | Y91: 0 | Z91: 0
A92: S | B92: 3 | C92: S | D92: 0 | E92: 1 | F92: 4 | G92: 1 | H92: 0 | I92: 0 | J92: 0 | K92: 0 | M92: Serviço | N92: Serviço | O92: - | P92: SINAPI | Q92: 98230 | R92: ESTACA BROCA DE CONCRETO, DIÂMETRO DE 30 CM, PROFUNDIDADE DE ATÉ 3 M, ESCAVAÇÃO MANUAL COM TRADO CONCHA, NÃO ARMADA. AF_03/2018 | S92: M | T92: 10 | U92: 1 | V92: 10 | Y92: 0 | Z92: 0 | AA92: Referência: AGETOP - 50302
A93: S | B93: 3 | C93: S | D93: 0 | E93: 1 | F93: 4 | G93: 1 | H93: 0 | I93: 0 | J93: 0 | K93: 0 | M93: Serviço | N93: Serviço | O93: - | P93: SINAPI | Q93: 95577 | R93: MONTAGEM DE ARMADURA LONGITUDINAL DE ESTACAS DE SEÇÃO CIRCULAR, DIÂMETRO = 10,0 MM. AF_11/2016 | S93: KG | T93: 30 | U93: 1 | V93: 30 | Y93: 0 | Z93: 0 | AA93: Referência: AGETOP - 52005
A94: S | B94: 3 | C94: S | D94: 0 | E94: 1 | F94: 4 | G94: 1 | H94: 0 | I94: 0 | J94: 0 | K94: 0 | M94: Serviço | N94: Serviço | O94: - | P94: SINAPI | Q94: 95583 | R94: MONTAGEM DE ARMADURA TRANSVERSAL DE ESTACAS DE SEÇÃO CIRCULAR, DIÂMETRO = 5,0 MM. AF_11/2016 | S94: KG | T94: 9.72 | U94: 1 | V94: 9.72 | Y94: 0 | Z94: 0 | AA94: Referência: AGETOP - 52014
A95: 3 | B95: 3 | C95: 3 | D95: 6 | E95: 1 | F95: 4 | G95: 2 | H95: 0 | I95: 0 | J95: 14 | K95: 6 | M95: Nível 3 | N95: Nível 3 | O95: - | P95: SINAPI | R95: BLOCO | S95: - | U95: 1 | V95: - | Y95: 0 | Z95: 0
A96: S | B96: 3 | C96: S | D96: 0 | E96: 1 | F96: 4 | G96: 2 | H96: 0 | I96: =IF(AND($C96<=4,$C96<>0),0,IF(AND($C96="S",$Y96>0),OFFSET(I96,-1,0)+1,OFFSET(I96,-1,0))) -> 0 | J96: 0 | K96: 0 | M96: Serviço | N96: Serviço | O96: - | P96: SINAPI | Q96: 96522 | R96: ESCAVAÇÃO MANUAL PARA BLOCO DE COROAMENTO OU SAPATA, SEM PREVISÃO DE FÔRMA. AF_06/2017 | S96: M3 | T96: 0.75 | U96: 1 | V96: 0.75 | Y96: 0 | Z96: 0 | AA96: Referência: AGETOP - 50901
A97: S | B97: 3 | C97: S | D97: 0 | E97: 1 | F97: 4 | G97: 2 | H97: 0 | I97: 0 | J97: 0 | K97: 0 | M97: Serviço | N97: Serviço | O97: - | P97: AGETOP | Q97: 50902 | R97: APILOAMENTO (BLOCOS/SAPATAS) | S97: m2 | T97: 1.44 | U97: 1 | V97: 1.44 | Y97: 0 | Z97: 0
A98: S | B98: 3 | C98: S | D98: 0 | E98: 1 | F98: 4 | G98: 2 | H98: 0 | I98: 0 | J98: 0 | K98: 0 | M98: Serviço | N98: Serviço | O98: - | P98: SINAPI | Q98: 94965 | R98: CONCRETO FCK = 25MPA, TRAÇO 1:2,3:2,7 (CIMENTO/ AREIA MÉDIA/ BRITA 1) - PREPARO MECÂNICO COM BETONEIRA 400 L. AF_07/2016 | S98: M3 | T98: 0.75 | U98: 1 | V98: 0.75 | Y98: 0 | Z98: 0
A99: S | B99: 3 | C99: S | D99: 0 | E99: 1 | F99: 4 | G99: 2 | H99: 0 | I99: 0 | J99: 0 | K99: 0 | M99: Serviço | N99: Serviço | O99: - | P99: SINAPI | Q99: 74157/4 | R99: LANCAMENTO/APLICACAO MANUAL DE CONCRETO EM FUNDACOES | S99: M3 | T99: 0.75 | U99: 1 | V99: 0.75 | Y99: 0 | Z99: 0 | AA99: Referência: AGETOP - 51026
A100: S | B100: 3 | C100: S | D100: 0 | E100: 1 | F100: 4 | G100: 2 | H100: 0 | I100: 0 | J100: 0 | K100: 0 | M100: Serviço | N100: Serviço | O100: - | P100: SINAPI | Q100: 96543 | R100: ARMAÇÃO DE BLOCO, VIGA BALDRAME E SAPATA UTILIZANDO AÇO CA-60 DE 5 MM - MONTAGEM. AF_06/2017 | S100: KG | T100: 9.27 | U100: 1 | V100: 9.27 | Y100: 0 | Z100: 0 | AA100: Referência: AGETOP - 52014
A101: 3 | B101: 3 | C101: 3 | D101: 8 | E101: 1 | F101: 4 | G101: 3 | H101: 0 | I101: 0 | J101: 8 | K101: 237 | M101: Nível 3 | N101: Nível 3 | O101: - | P101: SINAPI | R101: VIGAS BALDRAMES | S101: - | U101: 1 | V101: - | Y101: 0 | Z101: 0
A102: S | B102: 3 | C102: S | D102: 0 | E102: 1 | F102: 4 | G102: 3 | H102: 0 | I102: 0 | J102: 0 | K102: 0 | M102: Serviço | N102: Serviço | O102: - | P102: SINAPI | Q102: 96527 | R102: ESCAVAÇÃO MANUAL DE VALA PARA VIGA BALDRAME, COM PREVISÃO DE FÔRMA. AF_06/2017 | S102: M3 | T102: 0.6 | U102: 1 | V102: 0.6 | Y102: 0 | Z102: 0 | AA102: Referência: AGETOP - 40101
A103: S | B103: 3 | C103: S | D103: 0 | E103: 1 | F103: 4 | G103: 3 | H103: 0 | I103: 0 | J103: 0 | K103: 0 | M103: Serviço | N103: Serviço | O103: - | P103: SINAPI | Q103: 96995 | R103: REATERRO MANUAL APILOADO COM SOQUETE. AF_10/2017 | S103: M3 | T103: 0.26 | U103: 1 | V103: 0.26 | Y103: 0 | Z103: 0 | AA103: Referência: AGETOP - 40902
A104: S | B104: 3 | C104: S | D104: 0 | E104: 1 | F104: 4 | G104: 3 | H104: 0 | I104: 0 | J104: 0 | K104: 0 | M104: Serviço | N104: Serviço | O104: - | P104: AGETOP | Q104: 60191 | R104: FORMA DE TABUA CINTA BALDRAME U=8 VEZES | S104: m2 | T104: 5.67 | U104: 1 | V104: 5.67 | Y104: 0 | Z104: 0
A105: S | B105: 3 | C105: S | D105: 0 | E105: 1 | F105: 4 | G105: 3 | H105: 0 | I105: 0 | J105: 0 | K105: 0 | M105: Serviço | N105: Serviço | O105: - | P105: SINAPI | Q105: 94965 | R105: CONCRETO FCK = 25MPA, TRAÇO 1:2,3:2,7 (CIMENTO/ AREIA MÉDIA/ BRITA 1) - PREPARO MECÂNICO COM BETONEIRA 400 L. AF_07/2016 | S105: M3 | T105: 0.34 | U105: 1 | V105: 0.34 | Y105: 0 | Z105: 0
A106: S | B106: 3 | C106: S | D106: 0 | E106: 1 | F106: 4 | G106: 3 | H106: 0 | I106: 0 | J106: 0 | K106: 0 | M106: Serviço | N106: Serviço | O106: - | P106: SINAPI | Q106: 74157/4 | R106: LANCAMENTO/APLICACAO MANUAL DE CONCRETO EM FUNDACOES | S106: M3 | T106: 0.34 | U106: 1 | V106: 0.34 | Y106: 0 | Z106: 0 | AA106: Referência: AGETOP - 51026
A107: S | B107: 3 | C107: S | D107: 0 | E107: 1 | F107: 4 | G107: 3 | H107: 0 | I107: 0 | J107: 0 | K107: 0 | M107: Serviço | N107: Serviço | O107: - | P107: SINAPI | Q107: 96545 | R107: ARMAÇÃO DE BLOCO, VIGA BALDRAME OU SAPATA UTILIZANDO AÇO CA-50 DE 8 MM - MONTAGEM. AF_06/2017 | S107: KG | T107: 12.09 | U107: 1 | V107: 12.09 | Y107: 0 | Z107: 0 | AA107: Referência: AGETOP - 52004
A108: S | B108: 3 | C108: S | D108: 0 | E108: 1 | F108: 4 | G108: 3 | H108: 0 | I108: 0 | J108: 0 | K108: 0 | M108: Serviço | N108: Serviço | O108: - | P108: SINAPI | Q108: 96543 | R108: ARMAÇÃO DE BLOCO, VIGA BALDRAME E SAPATA UTILIZANDO AÇO CA-60 DE 5 MM - MONTAGEM. AF_06/2017 | S108: KG | T108: 4.72 | U108: 1 | V108: 4.72 | Y108: 0 | Z108: 0 | AA108: Referência: AGETOP - 52014
A109: 2 | B109: 2 | C109: 2 | D109: 16 | E109: 1 | F109: 5 | G109: 0 | H109: 0 | I109: 0 | J109: 378 | K109: 16 | M109: Nível 2 | N109: Nível 2 | O109: - | P109: AGETOP | R109: ESTRUTURA | S109: - | U109: 1 | V109: - | Y109: 0 | Z109: 0
A110: 3 | B110: 3 | C110: 3 | D110: 6 | E110: 1 | F110: 5 | G110: 1 | H110: 0 | I110: 0 | J110: 15 | K110: 6 | M110: Nível 3 | N110: Nível 3 | O110: - | P110: SINAPI | R110: PILARES | S110: - | U110: 1 | V110: - | Y110: 0 | Z110: 0
A111: S | B111: 3 | C111: S | D111: 0 | E111: 1 | F111: 5 | G111: 1 | H111: 0 | I111: 0 | J111: 0 | K111: 0 | M111: Serviço | N111: Serviço | O111: - | P111: SINAPI | Q111: 92426 | R111: MONTAGEM E DESMONTAGEM DE FÔRMA DE PILARES RETANGULARES E ESTRUTURAS SIMILARES COM ÁREA MÉDIA DAS SEÇÕES MENOR OU IGUAL A 0,25 M², PÉ-DIREITO SIMPLES, EM CHAPA DE MADEIRA COMPENSADA RESINADA, 8 UTILIZAÇÕES. AF_12/2015 | S111: M2 | T111: 26.57 | U111: 1 | V111: 26.57 | Y111: 0 | Z111: 0
A112: S | B112: 3 | C112: S | D112: 0 | E112: 1 | F112: 5 | G112: 1 | H112: 0 | I112: 0 | J112: 0 | K112: 0 | M112: Serviço | N112: Serviço | O112: - | P112: SINAPI | Q112: 94965 | R112: CONCRETO FCK = 25MPA, TRAÇO 1:2,3:2,7 (CIMENTO/ AREIA MÉDIA/ BRITA 1) - PREPARO MECÂNICO COM BETONEIRA 400 L. AF_07/2016 | S112: M3 | T112: 1.33 | U112: 1 | V112: 1.33 | Y112: 0 | Z112: 0
A113: S | B113: 3 | C113: S | D113: 0 | E113: 1 | F113: 5 | G113: 1 | H113: 0 | I113: 0 | J113: 0 | K113: 0 | M113: Serviço | N113: Serviço | O113: - | P113: SINAPI | Q113: 92873 | R113: LANÇAMENTO COM USO DE BALDES, ADENSAMENTO E ACABAMENTO DE CONCRETO EM ESTRUTURAS. AF_12/2015 | S113: M3 | T113: 1.33 | U113: 1 | V113: 1.33 | Y113: 0 | Z113: 0 | AA113: Referência: AGETOP - 60801
A114: S | B114: 3 | C114: S | D114: 0 | E114: 1 | F114: 5 | G114: 1 | H114: 0 | I114: 0 | J114: 0 | K114: 0 | M114: Serviço | N114: Serviço | O114: - | P114: SINAPI | Q114: 92778 | R114: ARMAÇÃO DE PILAR OU VIGA DE UMA ESTRUTURA CONVENCIONAL DE CONCRETO ARMADO EM UMA EDIFICAÇÃO TÉRREA OU SOBRADO UTILIZANDO AÇO CA-50 DE 10,0 MM - MONTAGEM. AF_12/2015 | S114: KG | T114: 77.63 | U114: 1 | V114: 77.63 | Y114: 0 | Z114: 0 | AA114: Referência: AGETOP - 60305
A115: S | B115: 3 | C115: S | D115: 0 | E115: 1 | F115: 5 | G115: 1 | H115: 0 | I115: 0 | J115: 0 | K115: 0 | M115: Serviço | N115: Serviço | O115: - | P115: SINAPI | Q115: 92775 | R115: ARMAÇÃO DE PILAR OU VIGA DE UMA ESTRUTURA CONVENCIONAL DE CONCRETO ARMADO EM UMA EDIFICAÇÃO TÉRREA OU SOBRADO UTILIZANDO AÇO CA-60 DE 5,0 MM - MONTAGEM. AF_12/2015 | S115: KG | T115: 31.54 | U115: 1 | V115: 31.54 | Y115: 0 | Z115: 0 | AA115: Referência: AGETOP - 60314
A116: 3 | B116: 3 | C116: 3 | D116: 6 | E116: 1 | F116: 5 | G116: 2 | H116: 0 | I116: 0 | J116: 9 | K116: 6 | M116: Nível 3 | N116: Nível 3 | O116: - | R116: VIGAS DE COBERTURA | S116: - | U116: 1 | V116: - | Y116: 0 | Z116: 0
A117: S | B117: 3 | C117: S | D117: 0 | E117: 1 | F117: 5 | G117: 2 | H117: 0 | I117: 0 | J117: 0 | K117: 0 | M117: Serviço | N117: Serviço | O117: - | P117: SINAPI | Q117: 92464 | R117: MONTAGEM E DESMONTAGEM DE FÔRMA DE VIGA, ESCORAMENTO METÁLICO, PÉ-DIREITO SIMPLES, EM CHAPA DE MADEIRA RESINADA, 8 UTILIZAÇÕES. AF_12/2015 | S117: M2 | T117: 11.34 | U117: 1 | V117: 11.34 | Y117: 0 | Z117: 0 | AA117: Referência: AGETOP - 60209
A118: S | B118: 3 | C118: S | D118: 0 | E118: 1 | F118: 5 | G118: 2 | H118: 0 | I118: 0 | J118: 0 | K118: 0 | M118: Serviço | N118: Serviço | O118: - | P118: SINAPI | Q118: 94964 | R118: CONCRETO FCK = 20MPA, TRAÇO 1:2,7:3 (CIMENTO/ AREIA MÉDIA/ BRITA 1) - PREPARO MECÂNICO COM BETONEIRA 400 L. AF_07/2016 | S118: M3 | T118: 0.68 | U118: 1 | V118: 0.68 | Y118: 0 | Z118: 0
A119: S | B119: 3 | C119: S | D119: 0 | E119: 1 | F119: 5 | G119: 2 | H119: 0 | I119: 0 | J119: 0 | K119: 0 | M119: Serviço | N119: Serviço | O119: - | P119: SINAPI | Q119: 92873 | R119: LANÇAMENTO COM USO DE BALDES, ADENSAMENTO E ACABAMENTO DE CONCRETO EM ESTRUTURAS. AF_12/2015 | S119: M3 | T119: 0.68 | U119: 1 | V119: 0.68 | Y119: 0 | Z119: 0 | AA119: Referência: AGETOP - 60801
A120: S | B120: 3 | C120: S | D120: 0 | E120: 1 | F120: 5 | G120: 2 | H120: 0 | I120: 0 | J120: 0 | K120: 0 | M120: Serviço | N120: Serviço | O120: - | P120: SINAPI | Q120: 92777 | R120: ARMAÇÃO DE PILAR OU VIGA DE UMA ESTRUTURA CONVENCIONAL DE CONCRETO ARMADO EM UMA EDIFICAÇÃO TÉRREA OU SOBRADO UTILIZANDO AÇO CA-50 DE 8,0 MM - MONTAGEM. AF_12/2015 | S120: KG | T120: 24.81 | U120: 1 | V120: 24.81 | Y120: 0 | Z120: 0 | AA120: Referência: AGETOP - 60304
A121: S | B121: 3 | C121: S | D121: 0 | E121: 1 | F121: 5 | G121: 2 | H121: 0 | I121: 0 | J121: 0 | K121: 0 | M121: Serviço | N121: Serviço | O121: - | P121: SINAPI | Q121: 92775 | R121: ARMAÇÃO DE PILAR OU VIGA DE UMA ESTRUTURA CONVENCIONAL DE CONCRETO ARMADO EM UMA EDIFICAÇÃO TÉRREA OU SOBRADO UTILIZANDO AÇO CA-60 DE 5,0 MM - MONTAGEM. AF_12/2015 | S121: KG | T121: 9.45 | U121: 1 | V121: 9.45 | Y121: 0 | Z121: 0 | AA121: Referência: AGETOP - 60314
A122: 3 | B122: 3 | C122: 3 | D122: 3 | E122: 1 | F122: 5 | G122: 3 | H122: 0 | I122: 0 | J122: =IF(OR($C122="S",$C122=0),0,MATCH(0,OFFSET($D122,1,$C122,ROW($C$830)-ROW($C122)),0)) -> 3 | K122: =IF(OR($C122="S",$C122=0),0,MATCH(OFFSET($D122,0,$C122)+1,OFFSET($D122,1,$C122,ROW($C$830)-ROW($C122)),0)) -> 216 | M122: Nível 3 | N122: Nível 3 | O122: - | R122: LAJE | S122: - | U122: 1 | V122: - | Y122: 0 | Z122: 0
A123: S | B123: 3 | C123: S | D123: 0 | E123: 1 | F123: 5 | G123: 3 | H123: 0 | I123: 0 | J123: 0 | K123: 0 | M123: Serviço | N123: Serviço | O123: - | P123: SINAPI | Q123: 92267 | R123: FABRICAÇÃO DE FÔRMA PARA LAJES, EM CHAPA DE MADEIRA COMPENSADA RESINADA, E = 17 MM. AF_12/2015 | S123: M2 | T123: 2.57 | U123: 1 | V123: 2.57 | Y123: 0 | Z123: 0
A124: S | B124: 3 | C124: S | D124: 0 | E124: 1 | F124: 5 | G124: 3 | H124: 0 | I124: 0 | J124: 0 | K124: 0 | M124: Serviço | N124: Serviço | O124: - | P124: SINAPI | Q124: 92784 | R124: ARMAÇÃO DE LAJE DE UMA ESTRUTURA CONVENCIONAL DE CONCRETO ARMADO EM UMA EDIFICAÇÃO TÉRREA OU SOBRADO UTILIZANDO AÇO CA-60 DE 5,0 MM - MONTAGEM. AF_12/2015 | S124: KG | T124: 5.63 | U124: 1 | V124: 5.63 | Y124: 0 | Z124: 0 | AA124: Referência: AGETOP - 60314
A125: =CHOOSE(1+LOG(1+2*(ORÇAMENTO.Nivel="Nível 1")+4*(ORÇAMENTO.Nivel="Nível 2")+8*(ORÇAMENTO.Nivel="Nível 3")+16*(ORÇAMENTO.Nivel="Nível 4")+32*(ORÇAMENTO.Nivel="Serviço"),2),0,1,2,3,4,"S") -> 2 | B125: =IF(OR(C125="s",C125=0),OFFSET(B125,-1,0),C125) -> 2 | C125: =IF(OFFSET(C125,-1,0)="L",1,IF(OFFSET(C125,-1,0)=1,2,IF(OR(A125="s",A125=0),"S",IF(AND(OFFSET(C125,-1,0)=2,A125=4),3,IF(AND(OR(OFFSET(C125,-1,0)="s",OFFSET(C125,-1,0)=0),A125<>"s",A125>OFFSET(B125,-1,0)),OFFSET(B125,-1,0),A125))))) -> 2 | D125: =IF(OR(C125="S",C125=0),0,IF(ISERROR(K125),J125,SMALL(J125:K125,1))) -> 158 | E125: =IF($C125=1,OFFSET(E125,-1,0)+1,OFFSET(E125,-1,0)) -> 1 | F125: =IF($C125=1,0,IF($C125=2,OFFSET(F125,-1,0)+1,OFFSET(F125,-1,0))) -> 6 | G125: =IF(AND($C125<=2,$C125<>0),0,IF($C125=3,OFFSET(G125,-1,0)+1,OFFSET(G125,-1,0))) -> 0 | H125: =IF(AND($C125<=3,$C125<>0),0,IF($C125=4,OFFSET(H125,-1,0)+1,OFFSET(H125,-1,0))) -> 0 | I125: =IF(AND($C125<=4,$C125<>0),0,IF(AND($C125="S",$Y125>0),OFFSET(I125,-1,0)+1,OFFSET(I125,-1,0))) -> 0 | J125: 362 | K125: 158 | M125: Nível 2 | N125: Nível 2 | O125: - | R125: INSTALAÇÕES ELÉTRICAS | S125: - | U125: 1 | V125: - | Y125: 0 | Z125: 0
A126: 3 | B126: 3 | C126: 3 | D126: 62 | E126: 1 | F126: 6 | G126: 1 | H126: 0 | I126: 0 | J126: 157 | K126: 62 | M126: Nível 3 | N126: Nível 3 | O126: - | P126: SINAPI | R126: REFORMA | S126: - | U126: 1 | V126: - | Y126: 0 | Z126: 0
A127: S | B127: 3 | C127: S | D127: 0 | E127: 1 | F127: 6 | G127: 1 | H127: 0 | I127: 0 | J127: 0 | K127: 0 | M127: Serviço | N127: Serviço | O127: - | P127: SINAPI | Q127: 74131/4 | R127: QUADRO DE DISTRIBUICAO DE ENERGIA DE EMBUTIR, EM CHAPA METALICA, PARA 18 DISJUNTORES TERMOMAGNETICOS MONOPOLARES, COM BARRAMENTO TRIFASICO E NEUTRO, FORNECIMENTO E INSTALACAO | S127: UN | T127: 3 | U127: 1 | V127: 3 | Y127: 0 | Z127: 0
A128: S | B128: 3 | C128: S | D128: 0 | E128: 1 | F128: 6 | G128: 1 | H128: 0 | I128: 0 | J128: 0 | K128: 0 | M128: Serviço | N128: Serviço | O128: - | P128: SINAPI | Q128: 74131/5 | R128: QUADRO DE DISTRIBUICAO DE ENERGIA DE EMBUTIR, EM CHAPA METALICA, PARA 24 DISJUNTORES TERMOMAGNETICOS MONOPOLARES, COM BARRAMENTO TRIFASICO E NEUTRO, FORNECIMENTO E INSTALACAO | S128: UN | T128: 2 | U128: 1 | V128: 2 | Y128: 0 | Z128: 0
A129: S | B129: 3 | C129: S | D129: 0 | E129: 1 | F129: 6 | G129: 1 | H129: 0 | I129: 0 | J129: 0 | K129: 0 | M129: Serviço | N129: Serviço | O129: - | P129: SINAPI | Q129: 93673 | R129: DISJUNTOR TRIPOLAR TIPO DIN, CORRENTE NOMINAL DE 50A - FORNECIMENTO E INSTALAÇÃO. AF_04/2016 | S129: UN | T129: 1 | U129: 1 | V129: 1 | Y129: 0 | Z129: 0 | AA129: Referência: AGETOP - 71174
A130: S | B130: 3 | C130: S | D130: 0 | E130: 1 | F130: 6 | G130: 1 | H130: 0 | I130: 0 | J130: 0 | K130: 0 | M130: Serviço | N130: Serviço | O130: - | P130: SINAPI | Q130: 93669 | R130: DISJUNTOR TRIPOLAR TIPO DIN, CORRENTE NOMINAL DE 20A - FORNECIMENTO E INSTALAÇÃO. AF_04/2016 | S130: UN | T130: 1 | U130: 1 | V130: 1 | Y130: 0 | Z130: 0
A131: S | B131: 3 | C131: S | D131: 0 | E131: 1 | F131: 6 | G131: 1 | H131: 0 | I131: 0 | J131: 0 | K131: 0 | M131: Serviço | N131: Serviço | O131: - | P131: SINAPI | Q131: 93671 | R131: DISJUNTOR TRIPOLAR TIPO DIN, CORRENTE NOMINAL DE 32A - FORNECIMENTO E INSTALAÇÃO. AF_04/2016 | S131: UN | T131: 4 | U131: 1 | V131: 4 | Y131: 0 | Z131: 0 | AA131: Referência: AGETOP - 71173
A132: S | B132: 3 | C132: S | D132: 0 | E132: 1 | F132: 6 | G132: 1 | H132: 0 | I132: 0 | J132: 0 | K132: 0 | M132: Serviço | N132: Serviço | O132: - | P132: AGETOP | Q132: 71175 | R132: DISJUNTOR TRIPOLAR DE 60 A 100-A | S132: Un | T132: 2 | U132: 1 | V132: 2 | Y132: 0 | Z132: 0
A133: S | B133: 3 | C133: S | D133: 0 | E133: 1 | F133: 6 | G133: 1 | H133: 0 | I133: 0 | J133: 0 | K133: 0 | M133: Serviço | N133: Serviço | O133: - | P133: SINAPI | Q133: 93656 | R133: DISJUNTOR MONOPOLAR TIPO DIN, CORRENTE NOMINAL DE 25A - FORNECIMENTO E INSTALAÇÃO. AF_04/2016 | S133: UN | T133: 32 | U133: 1 | V133: 32 | Y133: 0 | Z133: 0
A134: S | B134: 3 | C134: S | D134: 0 | E134: 1 | F134: 6 | G134: 1 | H134: 0 | I134: 0 | J134: 0 | K134: 0 | M134: Serviço | N134: Serviço | O134: - | P134: SINAPI | Q134: 93654 | R134: DISJUNTOR MONOPOLAR TIPO DIN, CORRENTE NOMINAL DE 16A - FORNECIMENTO E INSTALAÇÃO. AF_04/2016 | S134: UN | T134: 16 | U134: 1 | V134: 16 | Y134: 0 | Z134: 0
A135: S | B135: 3 | C135: S | D135: 0 | E135: 1 | F135: 6 | G135: 1 | H135: 0 | I135: 0 | J135: 0 | K135: 0 | M135: Serviço | N135: Serviço | O135: - | P135: SINAPI | Q135: 93653 | R135: DISJUNTOR MONOPOLAR TIPO DIN, CORRENTE NOMINAL DE 10A - FORNECIMENTO E INSTALAÇÃO. AF_04/2016 | S135: UN | T135: 21 | U135: 1 | V135: 21 | Y135: 0 | Z135: 0
A136: S | B136: 3 | C136: S | D136: 0 | E136: 1 | F136: 6 | G136: 1 | H136: 0 | I136: 0 | J136: 0 | K136: 0 | M136: Serviço | N136: Serviço | O136: - | P136: AGETOP | Q136: 71456 | R136: INTERRUPTOR DIFERENCIAL RESIDUAL (D.R.) TETRAPOLAR DE 40A-30mA | S136: Un | T136: 11 | U136: 1 | V136: 11 | Y136: 0 | Z136: 0
A137: S | B137: 3 | C137: S | D137: 0 | E137: 1 | F137: 6 | G137: 1 | H137: 0 | I137: 0 | J137: 0 | K137: 0 | M137: Serviço | N137: Serviço | O137: - | P137: SINAPI | Q137: 91926 | R137: CABO DE COBRE FLEXÍVEL ISOLADO, 2,5 MM², ANTI-CHAMA 450/750 V, PARA CIRCUITOS TERMINAIS - FORNECIMENTO E INSTALAÇÃO. AF_12/2015 | S137: M | T137: 5303.95 | U137: 1 | V137: 5303.95 | Y137: 0 | Z137: 0 | AA137: Referência: AGETOP - 70563
A138: S | B138: 3 | C138: S | D138: 0 | E138: 1 | F138: 6 | G138: 1 | H138: 0 | I138: 0 | J138: 0 | K138: 0 | M138: Serviço | N138: Serviço | O138: - | P138: SINAPI | Q138: 91928 | R138: CABO DE COBRE FLEXÍVEL ISOLADO, 4 MM², ANTI-CHAMA 450/750 V, PARA CIRCUITOS TERMINAIS - FORNECIMENTO E INSTALAÇÃO. AF_12/2015 | S138: M | T138: 1530 | U138: 1 | V138: 1530 | Y138: 0 | Z138: 0 | AA138: Referência: AGETOP - 70564
A139: S | B139: 3 | C139: S | D139: 0 | E139: 1 | F139: 6 | G139: 1 | H139: 0 | I139: 0 | J139: 0 | K139: 0 | M139: Serviço | N139: Serviço | O139: - | P139: SINAPI | Q139: 91930 | R139: CABO DE COBRE FLEXÍVEL ISOLADO, 6 MM², ANTI-CHAMA 450/750 V, PARA CIRCUITOS TERMINAIS - FORNECIMENTO E INSTALAÇÃO. AF_12/2015 | S139: M | T139: 1389.3 | U139: 1 | V139: 1389.3 | Y139: 0 | Z139: 0 | AA139: Referência: AGETOP - 70565
A140: S | B140: 3 | C140: S | D140: 0 | E140: 1 | F140: 6 | G140: 1 | H140: 0 | I140: 0 | J140: 0 | K140: 0 | M140: Serviço | N140: Serviço | O140: - | P140: SINAPI | Q140: 92979 | R140: CABO DE COBRE FLEXÍVEL ISOLADO, 10 MM², ANTI-CHAMA 450/750 V, PARA DISTRIBUIÇÃO - FORNECIMENTO E INSTALAÇÃO. AF_12/2015 | S140: M | T140: 313 | U140: 1 | V140: 313 | Y140: 0 | Z140: 0
A141: S | B141: 3 | C141: S | D141: 0 | E141: 1 | F141: 6 | G141: 1 | H141: 0 | I141: 0 | J141: 0 | K141: 0 | M141: Serviço | N141: Serviço | O141: - | P141: SINAPI | Q141: 92981 | R141: CABO DE COBRE FLEXÍVEL ISOLADO, 16 MM², ANTI-CHAMA 450/750 V, PARA DISTRIBUIÇÃO - FORNECIMENTO E INSTALAÇÃO. AF_12/2015 | S141: M | T141: 631.2 | U141: 1 | V141: 631.2 | Y141: 0 | Z141: 0
A142: S | B142: 3 | C142: S | D142: 0 | E142: 1 | F142: 6 | G142: 1 | H142: 0 | I142: 0 | J142: 0 | K142: 0 | M142: Serviço | N142: Serviço | O142: - | P142: SINAPI | Q142: 92983 | R142: CABO DE COBRE FLEXÍVEL ISOLADO, 25 MM², ANTI-CHAMA 450/750 V, PARA DISTRIBUIÇÃO - FORNECIMENTO E INSTALAÇÃO. AF_12/2015 | S142: M | T142: 435.6 | U142: 1 | V142: 435.6 | Y142: 0 | Z142: 0
A143: S | B143: 3 | C143: S | D143: 0 | E143: 1 | F143: 6 | G143: 1 | H143: 0 | I143: 0 | J143: 0 | K143: 0 | M143: Serviço | N143: Serviço | O143: - | P143: SINAPI | Q143: 92986 | R143: CABO DE COBRE FLEXÍVEL ISOLADO, 35 MM², ANTI-CHAMA 0,6/1,0 KV, PARA DISTRIBUIÇÃO - FORNECIMENTO E INSTALAÇÃO. AF_12/2015 | S143: M | T143: 60 | U143: 1 | V143: 60 | Y143: 0 | Z143: 0 | AA143: Referência: AGETOP - 70512
A144: S | B144: 3 | C144: S | D144: 0 | E144: 1 | F144: 6 | G144: 1 | H144: 0 | I144: 0 | J144: 0 | K144: 0 | M144: Serviço | N144: Serviço | O144: - | P144: AGETOP | Q144: 70541 | R144: CABO DE COBRE NU No. 16 MM2 (6,94 M/KG) | S144: M | T144: 50 | U144: 1 | V144: 50 | Y144: 0 | Z144: 0
A145: S | B145: 3 | C145: S | D145: 0 | E145: 1 | F145: 6 | G145: 1 | H145: 0 | I145: 0 | J145: 0 | K145: 0 | M145: Serviço | N145: Serviço | O145: - | P145: AGETOP | Q145: 70544 | R145: CABO DE COBRE NÚ No. 50 MM2 | S145: M | T145: 100 | U145: 1 | V145: 100 | Y145: 0 | Z145: 0
A146: S | B146: 3 | C146: S | D146: 0 | E146: 1 | F146: 6 | G146: 1 | H146: 0 | I146: 0 | J146: 0 | K146: 0 | M146: Serviço | N146: Serviço | O146: - | P146: SINAPI | Q146: 91867 | R146: ELETRODUTO RÍGIDO ROSCÁVEL, PVC, DN 25 MM (3/4"), PARA CIRCUITOS TERMINAIS, INSTALADO EM LAJE - FORNECIMENTO E INSTALAÇÃO. AF_12/2015 | S146: M | T146: 2861.85 | U146: 1 | V146: 2861.85 | Y146: 0 | Z146: 0 | AA146: Referência: AGETOP - 71201
A147: S | B147: 3 | C147: S | D147: 0 | E147: 1 | F147: 6 | G147: 1 | H147: 0 | I147: 0 | J147: 0 | K147: 0 | M147: Serviço | N147: Serviço | O147: - | P147: SINAPI | Q147: 91868 | R147: ELETRODUTO RÍGIDO ROSCÁVEL, PVC, DN 32 MM (1"), PARA CIRCUITOS TERMINAIS, INSTALADO EM LAJE - FORNECIMENTO E INSTALAÇÃO. AF_12/2015 | S147: M | T147: 1187.4 | U147: 1 | V147: 1187.4 | Y147: 0 | Z147: 0 | AA147: Referência: AGETOP - 71202
A148: S | B148: 3 | C148: S | D148: 0 | E148: 1 | F148: 6 | G148: 1 | H148: 0 | I148: 0 | J148: 0 | K148: 0 | M148: Serviço | N148: Serviço | O148: - | P148: SINAPI | Q148: 93008 | R148: ELETRODUTO RÍGIDO ROSCÁVEL, PVC, DN 50 MM (1 1/2") - FORNECIMENTO E INSTALAÇÃO. AF_12/2015 | S148: M | T148: 204.4 | U148: 1 | V148: 204.4 | Y148: 0 | Z148: 0
A149: S | B149: 3 | C149: S | D149: 0 | E149: 1 | F149: 6 | G149: 1 | H149: 0 | I149: 0 | J149: 0 | K149: 0 | M149: Serviço | N149: Serviço | O149: - | P149: SINAPI | Q149: 93010 | R149: ELETRODUTO RÍGIDO ROSCÁVEL, PVC, DN 75 MM (2 1/2") - FORNECIMENTO E INSTALAÇÃO. AF_12/2015 | S149: M | T149: 20 | U149: 1 | V149: 20 | Y149: 0 | Z149: 0
A150: S | B150: 3 | C150: S | D150: 0 | E150: 1 | F150: 6 | G150: 1 | H150: 0 | I150: 0 | J150: 0 | K150: 0 | M150: Serviço | N150: Serviço | O150: - | P150: SINAPI | Q150: 91865 | R150: ELETRODUTO RÍGIDO ROSCÁVEL, PVC, DN 40 MM (1 1/4"), PARA CIRCUITOS TERMINAIS, INSTALADO EM FORRO - FORNECIMENTO E INSTALAÇÃO. AF_12/2015 | S150: M | T150: 77.7 | U150: 1 | V150: 77.7 | Y150: 0 | Z150: 0
A151: S | B151: 3 | C151: S | D151: 0 | E151: 1 | F151: 6 | G151: 1 | H151: 0 | I151: 0 | J151: 0 | K151: 0 | M151: Serviço | N151: Serviço | O151: - | P151: SINAPI | Q151: 93009 | R151: ELETRODUTO RÍGIDO ROSCÁVEL, PVC, DN 60 MM (2") - FORNECIMENTO E INSTALAÇÃO. AF_12/2015 | S151: M | T151: 149.8 | U151: 1 | V151: 149.8 | Y151: 0 | Z151: 0
A152: S | B152: 3 | C152: S | D152: 0 | E152: 1 | F152: 6 | G152: 1 | H152: 0 | I152: 0 | J152: 0 | K152: 0 | M152: Serviço | N152: Serviço | O152: - | P152: AGETOP | Q152: 70351 | R152: BRACADEIRA METALICA TIPO "U" DIAM. 3/4" | S152: Un | T152: 900 | U152: 1 | V152: 900 | Y152: 0 | Z152: 0
A153: S | B153: 3 | C153: S | D153: 0 | E153: 1 | F153: 6 | G153: 1 | H153: 0 | I153: 0 | J153: 0 | K153: 0 | M153: Serviço | N153: Serviço | O153: - | P153: AGETOP | Q153: 70352 | R153: BRACADEIRA METALICA TIPO "U" DIAM. 1" | S153: Un | T153: 395 | U153: 1 | V153: 395 | Y153: 0 | Z153: 0
A154: S | B154: 3 | C154: S | D154: 0 | E154: 1 | F154: 6 | G154: 1 | H154: 0 | I154: 0 | J154: =IF(OR($C154="S",$C154=0),0,MATCH(0,OFFSET($D154,1,$C154,ROW($C$830)-ROW($C154)),0)) -> 0 | K154: =IF(OR($C154="S",$C154=0),0,MATCH(OFFSET($D154,0,$C154)+1,OFFSET($D154,1,$C154,ROW($C$830)-ROW($C154)),0)) -> 0 | M154: Serviço | N154: Serviço | O154: - | P154: AGETOP | Q154: 70354 | R154: BRACADEIRA METALICA TIPO "U" DIAM. 1.1/2" | S154: Un | T154: 69 | U154: 1 | V154: 69 | Y154: 0 | Z154: 0
A155: S | B155: 3 | C155: S | D155: 0 | E155: 1 | F155: 6 | G155: 1 | H155: 0 | I155: 0 | J155: 0 | K155: 0 | M155: Serviço | N155: Serviço | O155: - | P155: AGETOP | Q155: 70353 | R155: BRACADEIRA METALICA TIPO "U" DIAM. 1.1/4" | S155: Un | T155: 26 | U155: 1 | V155: 26 | Y155: 0 | Z155: 0
A156: S | B156: 3 | C156: S | D156: 0 | E156: 1 | F156: 6 | G156: 1 | H156: 0 | I156: 0 | J156: 0 | K156: 0 | M156: Serviço | N156: Serviço | O156: - | P156: AGETOP | Q156: 70355 | R156: BRACADEIRA METALICA TIPO "U" DIAM. 2" | S156: Un | T156: 50 | U156: 1 | V156: 50 | Y156: 0 | Z156: 0
A157: S | B157: 3 | C157: S | D157: 0 | E157: 1 | F157: 6 | G157: 1 | H157: 0 | I157: 0 | J157: 0 | K157: 0 | M157: Serviço | N157: Serviço | O157: - | P157: SINAPI | Q157: 91879 | R157: LUVA PARA ELETRODUTO, PVC, ROSCÁVEL, DN 25 MM (3/4"), PARA CIRCUITOS TERMINAIS, INSTALADA EM LAJE - FORNECIMENTO E INSTALAÇÃO. AF_12/2015 | S157: UN | T157: 900 | U157: 1 | V157: 900 | Y157: 0 | Z157: 0 | AA157: Referência: AGETOP - 71741
A158: S | B158: 3 | C158: S | D158: 0 | E158: 1 | F158: 6 | G158: 1 | H158: 0 | I158: 0 | J158: 0 | K158: 0 | M158: Serviço | N158: Serviço | O158: - | P158: SINAPI | Q158: 91880 | R158: LUVA PARA ELETRODUTO, PVC, ROSCÁVEL, DN 32 MM (1"), PARA CIRCUITOS TERMINAIS, INSTALADA EM LAJE - FORNECIMENTO E INSTALAÇÃO. AF_12/2015 | S158: UN | T158: 395 | U158: 1 | V158: 395 | Y158: 0 | Z158: 0 | AA158: Referência: AGETOP - 71742
A159: S | B159: 3 | C159: S | D159: 0 | E159: 1 | F159: 6 | G159: 1 | H159: 0 | I159: 0 | J159: 0 | K159: 0 | M159: Serviço | N159: Serviço | O159: - | P159: SINAPI | Q159: 93013 | R159: LUVA PARA ELETRODUTO, PVC, ROSCÁVEL, DN 50 MM (1 1/2") - FORNECIMENTO E INSTALAÇÃO. AF_12/2015 | S159: UN | T159: 69 | U159: 1 | V159: 69 | Y159: 0 | Z159: 0 | AA159: Referência: AGETOP - 71744
A160: S | B160: 3 | C160: S | D160: 0 | E160: 1 | F160: 6 | G160: 1 | H160: 0 | I160: 0 | J160: 0 | K160: 0 | M160: Serviço | N160: Serviço | O160: - | P160: SINAPI | Q160: 91877 | R160: LUVA PARA ELETRODUTO, PVC, ROSCÁVEL, DN 40 MM (1 1/4"), PARA CIRCUITOS TERMINAIS, INSTALADA EM FORRO - FORNECIMENTO E INSTALAÇÃO. AF_12/2015 | S160: UN | T160: 26 | U160: 1 | V160: 26 | Y160: 0 | Z160: 0
A161: S | B161: 3 | C161: S | D161: 0 | E161: 1 | F161: 6 | G161: 1 | H161: 0 | I161: 0 | J161: 0 | K161: 0 | M161: Serviço | N161: Serviço | O161: - | P161: SINAPI | Q161: 93014 | R161: LUVA PARA ELETRODUTO, PVC, ROSCÁVEL, DN 60 MM (2") - FORNECIMENTO E INSTALAÇÃO. AF_12/2015 | S161: UN | T161: 50 | U161: 1 | V161: 50 | Y161: 0 | Z161: 0 | AA161: Referência: AGETOP - 71745
A162: S | B162: 3 | C162: S | D162: 0 | E162: 1 | F162: 6 | G162: 1 | H162: 0 | I162: 0 | J162: 0 | K162: 0 | M162: Serviço | N162: Serviço | O162: - | P162: SINAPI | Q162: 95801 | R162: CONDULETE DE ALUMÍNIO, TIPO X, PARA ELETRODUTO DE AÇO GALVANIZADO DN 20 MM (3/4''), APARENTE - FORNECIMENTO E INSTALAÇÃO. AF_11/2016_P | S162: UN | T162: 122 | U162: 1 | V162: 122 | Y162: 0 | Z162: 0 | AA162: Referência: AGETOP - 70929
A163: S | B163: 3 | C163: S | D163: 0 | E163: 1 | F163: 6 | G163: 1 | H163: 0 | I163: 0 | J163: 0 | K163: 0 | M163: Serviço | N163: Serviço | O163: - | P163: AGETOP | Q163: 72385 | R163: TAMPA CEGA PARA CONDULETE DE PVC | S163: Un | T163: 122 | U163: 1 | V163: 122 | Y163: 0 | Z163: 0
A164: S | B164: 3 | C164: S | D164: 0 | E164: 1 | F164: 6 | G164: 1 | H164: 0 | I164: 0 | J164: 0 | K164: 0 | M164: Serviço | N164: Serviço | O164: - | P164: SINAPI | Q164: 91902 | R164: CURVA 90 GRAUS PARA ELETRODUTO, PVC, ROSCÁVEL, DN 25 MM (3/4"), PARA CIRCUITOS TERMINAIS, INSTALADA EM LAJE - FORNECIMENTO E INSTALAÇÃO. AF_12/2015 | S164: UN | T164: 100 | U164: 1 | V164: 100 | Y164: 0 | Z164: 0 | AA164: Referência: AGETOP - 71141
A165: S | B165: 3 | C165: S | D165: 0 | E165: 1 | F165: 6 | G165: 1 | H165: 0 | I165: 0 | J165: 0 | K165: 0 | M165: Serviço | N165: Serviço | O165: - | P165: SINAPI | Q165: 91905 | R165: CURVA 90 GRAUS PARA ELETRODUTO, PVC, ROSCÁVEL, DN 32 MM (1"), PARA CIRCUITOS TERMINAIS, INSTALADA EM LAJE - FORNECIMENTO E INSTALAÇÃO. AF_12/2015 | S165: UN | T165: 90 | U165: 1 | V165: 90 | Y165: 0 | Z165: 0 | AA165: Referência: AGETOP - 71142
A166: S | B166: 3 | C166: S | D166: 0 | E166: 1 | F166: 6 | G166: 1 | H166: 0 | I166: 0 | J166: 0 | K166: 0 | M166: Serviço | N166: Serviço | O166: - | P166: AGETOP | Q166: 71124 | R166: CURVA 90 GRAUS AÇO ZINCADO DIÂMETRO 1.1/2" | S166: Un | T166: 50 | U166: 1 | V166: 50 | Y166: 0 | Z166: 0
A167: S | B167: 3 | C167: S | D167: 0 | E167: 1 | F167: 6 | G167: 1 | H167: 0 | I167: 0 | J167: 0 | K167: 0 | M167: Serviço | N167: Serviço | O167: - | P167: AGETOP | Q167: 71123 | R167: CURVA 90 GRAUS AÇO ZINCADO DIÂMETRO 1.1/4" | S167: Un | T167: 10 | U167: 1 | V167: 10 | Y167: 0 | Z167: 0
A168: S | B168: 3 | C168: S | D168: 0 | E168: 1 | F168: 6 | G168: 1 | H168: 0 | I168: 0 | J168: 0 | K168: 0 | M168: Serviço | N168: Serviço | O168: - | P168: AGETOP | Q168: 71125 | R168: CURVA 90 GRAUS AÇO ZINCADO DIÂMETRO 2" | S168: Un | T168: 20 | U168: 1 | V168: 20 | Y168: 0 | Z168: 0
A169: S | B169: 3 | C169: S | D169: 0 | E169: 1 | F169: 6 | G169: 1 | H169: 0 | I169: 0 | J169: 0 | K169: 0 | M169: Serviço | N169: Serviço | O169: - | P169: SINAPI | Q169: 92870 | R169: CAIXA RETANGULAR 4" X 4" ALTA (2,00 M DO PISO), METÁLICA, INSTALADA EM PAREDE - FORNECIMENTO E INSTALAÇÃO. AF_12/2015 | S169: UN | T169: 408 | U169: 1 | V169: 408 | Y169: 0 | Z169: 0
A170: S | B170: 3 | C170: S | D170: 0 | E170: 1 | F170: 6 | G170: 1 | H170: 0 | I170: 0 | J170: 0 | K170: 0 | M170: Serviço | N170: Serviço | O170: - | P170: SINAPI | Q170: 91953 | R170: INTERRUPTOR SIMPLES (1 MÓDULO), 10A/250V, INCLUINDO SUPORTE E PLACA - FORNECIMENTO E INSTALAÇÃO. AF_12/2015 | S170: UN | T170: 29 | U170: 1 | V170: 29 | Y170: 0 | Z170: 0 | AA170: Referência: AGETOP - 71440
A171: S | B171: 3 | C171: S | D171: 0 | E171: 1 | F171: 6 | G171: 1 | H171: 0 | I171: 0 | J171: 0 | K171: 0 | M171: Serviço | N171: Serviço | O171: - | P171: SINAPI | Q171: 91959 | R171: INTERRUPTOR SIMPLES (2 MÓDULOS), 10A/250V, INCLUINDO SUPORTE E PLACA - FORNECIMENTO E INSTALAÇÃO. AF_12/2015 | S171: UN | T171: 21 | U171: 1 | V171: 21 | Y171: 0 | Z171: 0 | AA171: Referência: AGETOP - 71441
A172: S | B172: 3 | C172: S | D172: 0 | E172: 1 | F172: 6 | G172: 1 | H172: 0 | I172: 0 | J172: 0 | K172: 0 | M172: Serviço | N172: Serviço | O172: - | P172: SINAPI | Q172: 92000 | R172: TOMADA BAIXA DE EMBUTIR (1 MÓDULO), 2P+T 10 A, INCLUINDO SUPORTE E PLACA - FORNECIMENTO E INSTALAÇÃO. AF_12/2015 | S172: UN | T172: 13 | U172: 1 | V172: 13 | Y172: 0 | Z172: 0 | AA172: Referência: AGETOP - 72578
A173: S | B173: 3 | C173: S | D173: 0 | E173: 1 | F173: 6 | G173: 1 | H173: 0 | I173: 0 | J173: 0 | K173: 0 | M173: Serviço | N173: Serviço | O173: - | P173: SINAPI | Q173: 92008 | R173: TOMADA BAIXA DE EMBUTIR (2 MÓDULOS), 2P+T 10 A, INCLUINDO SUPORTE E PLACA - FORNECIMENTO E INSTALAÇÃO. AF_12/2015 | S173: UN | T173: 4 | U173: 1 | V173: 4 | Y173: 0 | Z173: 0
A174: S | B174: 3 | C174: S | D174: 0 | E174: 1 | F174: 6 | G174: 1 | H174: 0 | I174: 0 | J174: 0 | K174: 0 | M174: Serviço | N174: Serviço | O174: - | P174: SINAPI | Q174: 91996 | R174: TOMADA MÉDIA DE EMBUTIR (1 MÓDULO), 2P+T 10 A, INCLUINDO SUPORTE E PLACA - FORNECIMENTO E INSTALAÇÃO. AF_12/2015 | S174: UN | T174: 5 | U174: 1 | V174: 5 | Y174: 0 | Z174: 0 | AA174: Referência: AGETOP - 72578
A175: S | B175: 3 | C175: S | D175: 0 | E175: 1 | F175: 6 | G175: 1 | H175: 0 | I175: 0 | J175: 0 | K175: 0 | M175: Serviço | N175: Serviço | O175: - | P175: SINAPI | Q175: 92004 | R175: TOMADA MÉDIA DE EMBUTIR (2 MÓDULOS), 2P+T 10 A, INCLUINDO SUPORTE E PLACA - FORNECIMENTO E INSTALAÇÃO. AF_12/2015 | S175: UN | T175: 6 | U175: 1 | V175: 6 | Y175: 0 | Z175: 0 | AA175: Referência: AGETOP - 72578
A176: S | B176: 3 | C176: S | D176: 0 | E176: 1 | F176: 6 | G176: 1 | H176: 0 | I176: 0 | J176: 0 | K176: 0 | M176: Serviço | N176: Serviço | O176: - | P176: SINAPI | Q176: 91993 | R176: TOMADA ALTA DE EMBUTIR (1 MÓDULO), 2P+T 20 A, INCLUINDO SUPORTE E PLACA - FORNECIMENTO E INSTALAÇÃO. AF_12/2015 | S176: UN | T176: 31 | U176: 1 | V176: 31 | Y176: 0 | Z176: 0 | AA176: Referência: AGETOP - 72585
A177: S | B177: 3 | C177: S | D177: 0 | E177: 1 | F177: 6 | G177: 1 | H177: 0 | I177: 0 | J177: 0 | K177: 0 | M177: Serviço | N177: Serviço | O177: - | P177: SINAPI | Q177: 91992 | R177: TOMADA ALTA DE EMBUTIR (1 MÓDULO), 2P+T 10 A, INCLUINDO SUPORTE E PLACA - FORNECIMENTO E INSTALAÇÃO. AF_12/2015 | S177: UN | T177: 6 | U177: 1 | V177: 6 | Y177: 0 | Z177: 0
A178: S | B178: 3 | C178: S | D178: 0 | E178: 1 | F178: 6 | G178: 1 | H178: 0 | I178: 0 | J178: 0 | K178: 0 | M178: Serviço | N178: Serviço | O178: - | P178: SINAPI | Q178: 97585 | R178: LUMINÁRIA TIPO CALHA, DE SOBREPOR, COM 2 LÂMPADAS TUBULARES DE 18 W - FORNECIMENTO E INSTALAÇÃO. AF_11/2017 | S178: UN | T178: 228 | U178: 1 | V178: 228 | Y178: 0 | Z178: 0
A179: S | B179: 3 | C179: S | D179: 0 | E179: 1 | F179: 6 | G179: 1 | H179: 0 | I179: 0 | J179: 0 | K179: 0 | M179: Serviço | N179: Serviço | O179: - | P179: SINAPI | Q179: 97593 | R179: LUMINÁRIA TIPO SPOT, DE SOBREPOR, COM 1 LÂMPADA DE 15 W - FORNECIMENTO E INSTALAÇÃO. AF_11/2017 | S179: UN | T179: 11 | U179: 1 | V179: 11 | Y179: 0 | Z179: 0 | AA179: Referência: AGETOP - 71688
A180: S | B180: 3 | C180: S | D180: 0 | E180: 1 | F180: 6 | G180: 1 | H180: 0 | I180: 0 | J180: 0 | K180: 0 | M180: Serviço | N180: Serviço | O180: - | P180: SINAPI | Q180: 97606 | R180: LUMINÁRIA ARANDELA TIPO MEIA-LUA, PARA 1 LÂMPADA DE 15 W - FORNECIMENTO E INSTALAÇÃO. AF_11/2017 | S180: UN | T180: 22 | U180: 1 | V180: 22 | Y180: 0 | Z180: 0
A181: S | B181: 3 | C181: S | D181: 0 | E181: 1 | F181: 6 | G181: 1 | H181: 0 | I181: 0 | J181: 0 | K181: 0 | M181: Serviço | N181: Serviço | O181: - | P181: SINAPI | Q181: 97610 | R181: LÂMPADA COMPACTA DE LED 10 W, BASE E27 - FORNECIMENTO E INSTALAÇÃO. AF_11/2017 | S181: UN | T181: 487 | U181: 1 | V181: 487 | Y181: 0 | Z181: 0
A182: S | B182: 3 | C182: S | D182: 0 | E182: 1 | F182: 6 | G182: 1 | H182: 0 | I182: 0 | J182: 0 | K182: 0 | M182: Serviço | N182: Serviço | O182: - | P182: SINAPI | Q182: 97889 | R182: CAIXA ENTERRADA ELÉTRICA RETANGULAR, EM ALVENARIA COM TIJOLOS CERÂMICOS MACIÇOS, FUNDO COM BRITA, DIMENSÕES INTERNAS: 0,8X0,8X0,6 M. AF_05/2018 | S182: UN | T182: 2 | U182: 1 | V182: 2 | Y182: 0 | Z182: 0
A183: S | B183: 3 | C183: S | D183: 0 | E183: 1 | F183: 6 | G183: 1 | H183: 0 | I183: 0 | J183: 0 | K183: 0 | M183: Serviço | N183: Serviço | O183: - | P183: SINAPI | Q183: 6171 | R183: TAMPA DE CONCRETO ARMADO 60X60X5CM PARA CAIXA | S183: UN | T183: 2 | U183: 1 | V183: 2 | Y183: 0 | Z183: 0
A184: S | B184: 3 | C184: S | D184: 0 | E184: 1 | F184: 6 | G184: 1 | H184: 0 | I184: 0 | J184: 0 | K184: 0 | M184: Serviço | N184: Serviço | O184: - | P184: SINAPI | Q184: 92870 | R184: CAIXA RETANGULAR 4" X 4" ALTA (2,00 M DO PISO), METÁLICA, INSTALADA EM PAREDE - FORNECIMENTO E INSTALAÇÃO. AF_12/2015 | S184: UN | T184: 1 | U184: 1 | V184: 1 | Y184: 0 | Z184: 0
A185: S | B185: 3 | C185: S | D185: 0 | E185: 1 | F185: 6 | G185: 1 | H185: 0 | I185: 0 | J185: 0 | K185: 0 | M185: Serviço | N185: Serviço | O185: - | P185: AGETOP | Q185: 71861 | R185: PARAFUSO P/BUCHA S-6 | S185: Un | T185: 5760 | U185: 1 | V185: 5760 | Y185: 0 | Z185: 0
A186: S | B186: 3 | C186: S | D186: 0 | E186: 1 | F186: 6 | G186: 1 | H186: 0 | I186: 0 | J186: =IF(OR($C186="S",$C186=0),0,MATCH(0,OFFSET($D186,1,$C186,ROW($C$830)-ROW($C186)),0)) -> 0 | K186: =IF(OR($C186="S",$C186=0),0,MATCH(OFFSET($D186,0,$C186)+1,OFFSET($D186,1,$C186,ROW($C$830)-ROW($C186)),0)) -> 0 | M186: Serviço | N186: Serviço | O186: - | P186: AGETOP | Q186: 70647 | R186: CAIXA DE PASSAGEM METÁLICA DE EMBUTIR 30X30X12 CM | S186: Un | T186: 7 | U186: 1 | V186: 7 | Y186: 0 | Z186: 0
A187: S | B187: 3 | C187: S | D187: 0 | E187: 1 | F187: 6 | G187: 1 | H187: 0 | I187: 0 | J187: 0 | K187: 0 | M187: Serviço | N187: Serviço | O187: - | P187: AGETOP | Q187: 70391 | R187: BUCHA DE NYLON S-6 | S187: Un | T187: 5760 | U187: 1 | V187: 5760 | Y187: 0 | Z187: 0
A188: 3 | B188: 3 | C188: 3 | D188: 20 | E188: 1 | F188: 6 | G188: 2 | H188: 0 | I188: 0 | J188: 95 | K188: 20 | M188: Nível 3 | N188: Nível 3 | O188: - | Q188: IMPLANTAÇÃO | R188: AMPLIAÇÃO | S188: - | U188: 1 | V188: - | Y188: 0 | Z188: 0
A189: S | B189: 3 | C189: S | D189: 0 | E189: 1 | F189: 6 | G189: 2 | H189: 0 | I189: 0 | J189: 0 | K189: 0 | M189: Serviço | N189: Serviço | O189: - | P189: SINAPI | Q189: 93671 | R189: DISJUNTOR TRIPOLAR TIPO DIN, CORRENTE NOMINAL DE 32A - FORNECIMENTO E INSTALAÇÃO. AF_04/2016 | S189: UN | T189: 1 | U189: 1 | V189: 1 | Y189: 0 | Z189: 0 | AA189: Referência: AGETOP - 71173
A190: S | B190: 3 | C190: S | D190: 0 | E190: 1 | F190: 6 | G190: 2 | H190: 0 | I190: 0 | J190: 0 | K190: 0 | M190: Serviço | N190: Serviço | O190: - | P190: SINAPI | Q190: 93672 | R190: DISJUNTOR TRIPOLAR TIPO DIN, CORRENTE NOMINAL DE 40A - FORNECIMENTO E INSTALAÇÃO. AF_04/2016 | S190: UN | T190: 1 | U190: 1 | V190: 1 | Y190: 0 | Z190: 0 | AA190: Referência: AGETOP - 71174
A191: S | B191: 3 | C191: S | D191: 0 | E191: 1 | F191: 6 | G191: 2 | H191: 0 | I191: 0 | J191: 0 | K191: 0 | M191: Serviço | N191: Serviço | O191: - | P191: SINAPI | Q191: 91930 | R191: CABO DE COBRE FLEXÍVEL ISOLADO, 6 MM², ANTI-CHAMA 450/750 V, PARA CIRCUITOS TERMINAIS - FORNECIMENTO E INSTALAÇÃO. AF_12/2015 | S191: M | T191: 621 | U191: 1 | V191: 621 | Y191: 0 | Z191: 0 | AA191: Referência: AGETOP - 70565
A192: S | B192: 3 | C192: S | D192: 0 | E192: 1 | F192: 6 | G192: 2 | H192: 0 | I192: 0 | J192: 0 | K192: 0 | M192: Serviço | N192: Serviço | O192: - | P192: SINAPI | Q192: 92979 | R192: CABO DE COBRE FLEXÍVEL ISOLADO, 10 MM², ANTI-CHAMA 450/750 V, PARA DISTRIBUIÇÃO - FORNECIMENTO E INSTALAÇÃO. AF_12/2015 | S192: M | T192: 412 | U192: 1 | V192: 412 | Y192: 0 | Z192: 0
A193: S | B193: 3 | C193: S | D193: 0 | E193: 1 | F193: 6 | G193: 2 | H193: 0 | I193: 0 | J193: 0 | K193: 0 | M193: Serviço | N193: Serviço | O193: - | P193: SINAPI | Q193: 91872 | R193: ELETRODUTO RÍGIDO ROSCÁVEL, PVC, DN 32 MM (1"), PARA CIRCUITOS TERMINAIS, INSTALADO EM PAREDE - FORNECIMENTO E INSTALAÇÃO. AF_12/2015 | S193: M | T193: 87 | U193: 1 | V193: 87 | Y193: 0 | Z193: 0 | AA193: Referência: AGETOP - 71202
A194: S | B194: 3 | C194: S | D194: 0 | E194: 1 | F194: 6 | G194: 2 | H194: 0 | I194: 0 | J194: 0 | K194: 0 | M194: Serviço | N194: Serviço | O194: - | P194: SINAPI | Q194: 93008 | R194: ELETRODUTO RÍGIDO ROSCÁVEL, PVC, DN 50 MM (1 1/2") - FORNECIMENTO E INSTALAÇÃO. AF_12/2015 | S194: M | T194: 48 | U194: 1 | V194: 48 | Y194: 0 | Z194: 0
A195: S | B195: 3 | C195: S | D195: 0 | E195: 1 | F195: 6 | G195: 2 | H195: 0 | I195: 0 | J195: 0 | K195: 0 | M195: Serviço | N195: Serviço | O195: - | P195: SINAPI | Q195: 93009 | R195: ELETRODUTO RÍGIDO ROSCÁVEL, PVC, DN 60 MM (2") - FORNECIMENTO E INSTALAÇÃO. AF_12/2015 | S195: M | T195: 81 | U195: 1 | V195: 81 | Y195: 0 | Z195: 0
A196: S | B196: 3 | C196: S | D196: 0 | E196: 1 | F196: 6 | G196: 2 | H196: 0 | I196: 0 | J196: 0 | K196: 0 | M196: Serviço | N196: Serviço | O196: - | P196: AGETOP | Q196: 70352 | R196: BRACADEIRA METALICA TIPO "U" DIAM. 1" | S196: Un | T196: 29 | U196: 1 | V196: 29 | Y196: 0 | Z196: 0
A197: S | B197: 3 | C197: S | D197: 0 | E197: 1 | F197: 6 | G197: 2 | H197: 0 | I197: 0 | J197: 0 | K197: 0 | M197: Serviço | N197: Serviço | O197: - | P197: AGETOP | Q197: 70354 | R197: BRACADEIRA METALICA TIPO "U" DIAM. 1.1/2" | S197: Un | T197: 16 | U197: 1 | V197: 16 | Y197: 0 | Z197: 0
A198: S | B198: 3 | C198: S | D198: 0 | E198: 1 | F198: 6 | G198: 2 | H198: 0 | I198: 0 | J198: 0 | K198: 0 | M198: Serviço | N198: Serviço | O198: - | P198: AGETOP | Q198: 70355 | R198: BRACADEIRA METALICA TIPO "U" DIAM. 2" | S198: Un | T198: 27 | U198: 1 | V198: 27 | Y198: 0 | Z198: 0
A199: S | B199: 3 | C199: S | D199: 0 | E199: 1 | F199: 6 | G199: 2 | H199: 0 | I199: 0 | J199: 0 | K199: 0 | M199: Serviço | N199: Serviço | O199: - | P199: SINAPI | Q199: 91880 | R199: LUVA PARA ELETRODUTO, PVC, ROSCÁVEL, DN 32 MM (1"), PARA CIRCUITOS TERMINAIS, INSTALADA EM LAJE - FORNECIMENTO E INSTALAÇÃO. AF_12/2015 | S199: UN | T199: 29 | U199: 1 | V199: 29 | Y199: 0 | Z199: 0 | AA199: Referência: AGETOP - 71742
A200: S | B200: 3 | C200: S | D200: 0 | E200: 1 | F200: 6 | G200: 2 | H200: 0 | I200: 0 | J200: 0 | K200: 0 | M200: Serviço | N200: Serviço | O200: - | P200: SINAPI | Q200: 93013 | R200: LUVA PARA ELETRODUTO, PVC, ROSCÁVEL, DN 50 MM (1 1/2") - FORNECIMENTO E INSTALAÇÃO. AF_12/2015 | S200: UN | T200: 16 | U200: 1 | V200: 16 | Y200: 0 | Z200: 0 | AA200: Referência: AGETOP - 71744
A201: S | B201: 3 | C201: S | D201: 0 | E201: 1 | F201: 6 | G201: 2 | H201: 0 | I201: 0 | J201: 0 | K201: 0 | M201: Serviço | N201: Serviço | O201: - | P201: SINAPI | Q201: 93014 | R201: LUVA PARA ELETRODUTO, PVC, ROSCÁVEL, DN 60 MM (2") - FORNECIMENTO E INSTALAÇÃO. AF_12/2015 | S201: UN | T201: 27 | U201: 1 | V201: 27 | Y201: 0 | Z201: 0 | AA201: Referência: AGETOP - 71745
A202: S | B202: 3 | C202: S | D202: 0 | E202: 1 | F202: 6 | G202: 2 | H202: 0 | I202: 0 | J202: 0 | K202: 0 | M202: Serviço | N202: Serviço | O202: - | P202: AGETOP | Q202: 70647 | R202: CAIXA DE PASSAGEM METÁLICA DE EMBUTIR 30X30X12 CM | S202: Un | T202: 4 | U202: 1 | V202: 4 | Y202: 0 | Z202: 0
A203: S | B203: 3 | C203: S | D203: 0 | E203: 1 | F203: 6 | G203: 2 | H203: 0 | I203: 0 | J203: 0 | K203: 0 | M203: Serviço | N203: Serviço | O203: - | P203: SINAPI | Q203: 97889 | R203: CAIXA ENTERRADA ELÉTRICA RETANGULAR, EM ALVENARIA COM TIJOLOS CERÂMICOS MACIÇOS, FUNDO COM BRITA, DIMENSÕES INTERNAS: 0,8X0,8X0,6 M. AF_05/2018 | S203: UN | T203: 1 | U203: 1 | V203: 1 | Y203: 0 | Z203: 0
A204: S | B204: 3 | C204: S | D204: 0 | E204: 1 | F204: 6 | G204: 2 | H204: 0 | I204: 0 | J204: 0 | K204: 0 | M204: Serviço | N204: Serviço | O204: - | P204: SINAPI | Q204: 6171 | R204: TAMPA DE CONCRETO ARMADO 60X60X5CM PARA CAIXA | S204: UN | T204: 1 | U204: 1 | V204: 1 | Y204: 0 | Z204: 0
A205: S | B205: 3 | C205: S | D205: 0 | E205: 1 | F205: 6 | G205: 2 | H205: 0 | I205: 0 | J205: 0 | K205: 0 | M205: Serviço | N205: Serviço | O205: - | P205: SINAPI | Q205: 92870 | R205: CAIXA RETANGULAR 4" X 4" ALTA (2,00 M DO PISO), METÁLICA, INSTALADA EM PAREDE - FORNECIMENTO E INSTALAÇÃO. AF_12/2015 | S205: UN | T205: 3 | U205: 1 | V205: 3 | Y205: 0 | Z205: 0
A206: S | B206: 3 | C206: S | D206: 0 | E206: 1 | F206: 6 | G206: 2 | H206: 0 | I206: 0 | J206: 0 | K206: 0 | M206: Serviço | N206: Serviço | O206: - | P206: AGETOP | Q206: 71861 | R206: PARAFUSO P/BUCHA S-6 | S206: Un | T206: 288 | U206: 1 | V206: 288 | Y206: 0 | Z206: 0
... 697 more rows

Sheet Resumo
B3: UNIDADE ESCOLAR | G3: CÓDIGO INEP
B4: =Orçamento!$O$4 -> CENTRO DE ENSINO EM PERÍODO INTEGRAL GARAVELO PARK | G4: =Orçamento!X4 -> 52030660
B6: OBRA | G6: CIDADE
B7: =Orçamento!$O$7 -> AMPLIAÇÃO E REFORMA | G7: =Orçamento!$X$7 -> APARECIDA DE GOIÂNIA
B9: ENDEREÇO | G9: CRE
B10: =Orçamento!$R$10 -> RUA 43-E QD.84 ESQ.C/ 44-E S/N QD.84, SETOR GARAVELO PARK, CEP:74932-640 | G10: =Orçamento!$O$10 -> APARECIDA
B12: REFERÊNCIA | D12: DATA | G12: ÁREA TOTAL CONSTRUÍDA (M²)
B13: =CONCATENATE("AGETOP E SINAPI - ",Orçamento!$T$10) -> AGETOP E SINAPI - DESONERADA | D13: =Orçamento!$S$7 -> 2020-03-25 | G13: =Orçamento!$X$13 -> 2186.3
A14: FILTRO
B15: RESUMO GERAL DO ORÇAMENTO
A16: ↓ | B16: ITEM | C16: DESCRIÇÃO DOS SERVIÇOS | G16: PREÇO SEM BDI | H16: PREÇO COM BDI | I16: PARTICIP. (%)
A17: =IF(G17>0,"F","") ->  | B17: 1. | C17: =Orçamento!$P883 -> AMPLIAÇÃO E REFORMA | G17: =IFERROR(Orçamento!S883,"-") -> 0 | H17: =IFERROR(Orçamento!X883,"") -> 0 | I17: =Orçamento!AA883 -> 
A18: =IF(G18>0,"F","") ->  | B18: 2. | C18: =Orçamento!$P884 -> BLOCO VESTIÁRIO (BLOCO G) | G18: =IFERROR(Orçamento!S884,"-") -> 0 | H18: =IFERROR(Orçamento!X884,"") -> 0 | I18: =Orçamento!AA884 -> 
B19: 3. | C19: =Orçamento!$P885 -> PÁTIO MULTIUSO - PADRÃO SEDUC - OPÇÃO 03 | G19: =IFERROR(Orçamento!S885,"-") -> 0 | H19: =IFERROR(Orçamento!X885,"") -> 0 | I19: =Orçamento!AA885 -> 
B20: 4. | C20: =Orçamento!$P886 -> PASSARELA MODELO 01 - PADRÃO SÉC. XXI 2015 | G20: =IFERROR(Orçamento!S886,"-") -> 0 | H20: =IFERROR(Orçamento!X886,"") -> 0 | I20: =Orçamento!AA886 -> 
B21: 5. | C21: =Orçamento!$P887 ->  | G21: =IFERROR(Orçamento!S887,"-") -> 0 | H21: =IFERROR(Orçamento!X887,"") -> 0 | I21: =Orçamento!AA887 -> 
B22: 6. | C22: =Orçamento!$P888 ->  | G22: =IFERROR(Orçamento!S888,"-") -> 0 | H22: =IFERROR(Orçamento!X888,"") -> 0 | I22: =Orçamento!AA888 -> 
B23: 7. | C23: =Orçamento!$P889 ->  | G23: =IFERROR(Orçamento!S889,"-") -> 0 | H23: =IFERROR(Orçamento!X889,"") -> 0 | I23: =Orçamento!AA889 -> 
B24: 8. | C24: =Orçamento!$P890 ->  | G24: =IFERROR(Orçamento!S890,"-") -> 0 | H24: =IFERROR(Orçamento!X890,"") -> 0 | I24: =Orçamento!AA890 -> 
B25: 9. | C25: =Orçamento!$P891 ->  | G25: =IFERROR(Orçamento!S891,"-") -> 0 | H25: =IFERROR(Orçamento!X891,"") -> 0 | I25: =Orçamento!AA891 -> 
B26: 10. | C26: =Orçamento!$P892 ->  | G26: =IFERROR(Orçamento!S892,"-") -> 0 | H26: =IFERROR(Orçamento!X892,"") -> 0 | I26: =Orçamento!AA892 -> 
B27: 11. | C27: =Orçamento!$P893 ->  | G27: =IFERROR(Orçamento!S893,"-") -> 0 | H27: =IFERROR(Orçamento!X893,"") -> 0 | I27: =Orçamento!AA893 -> 
B28: 12. | C28: =Orçamento!$P894 ->  | G28: =IFERROR(Orçamento!S894,"-") -> 0 | H28: =IFERROR(Orçamento!X894,"") -> 0 | I28: =Orçamento!AA894 -> 
B29: 13. | C29: =Orçamento!$P895 ->  | G29: =IFERROR(Orçamento!S895,"-") -> 0 | H29: =IFERROR(Orçamento!X895,"") -> 0 | I29: =Orçamento!AA895 -> 
B30: 14. | C30: =Orçamento!$P896 ->  | G30: =IFERROR(Orçamento!S896,"-") -> 0 | H30: =IFERROR(Orçamento!X896,"") -> 0 | I30: =Orçamento!AA896 -> 
B31: 15. | C31: =Orçamento!$P897 ->  | G31: =IFERROR(Orçamento!S897,"-") -> 0 | H31: =IFERROR(Orçamento!X897,"") -> 0 | I31: =Orçamento!AA897 -> 
B32: 16. | C32: =Orçamento!$P898 ->  | G32: =IFERROR(Orçamento!S898,"-") -> 0 | H32: =IFERROR(Orçamento!X898,"") -> 0 | I32: =Orçamento!AA898 -> 
B33: 17. | C33: =Orçamento!$P899 ->  | G33: =IFERROR(Orçamento!S899,"-") -> 0 | H33: =IFERROR(Orçamento!X899,"") -> 0 | I33: =Orçamento!AA899 -> 
B34: 18. | C34: =Orçamento!$P900 ->  | G34: =IFERROR(Orçamento!S900,"-") -> 0 | H34: =IFERROR(Orçamento!X900,"") -> 0 | I34: =Orçamento!AA900 -> 
B35: 19. | C35: =Orçamento!$P901 ->  | G35: =IFERROR(Orçamento!S901,"-") -> 0 | H35: =IFERROR(Orçamento!X901,"") -> 0 | I35: =Orçamento!AA901 -> 
B36: 20. | C36: =Orçamento!$P902 ->  | G36: =IFERROR(Orçamento!S902,"-") -> 0 | H36: =IFERROR(Orçamento!X902,"") -> 0 | I36: =Orçamento!AA902 -> 
A37: F | B37: TOTAL GERAL DO ORÇAMENTO (R$) | G37: =SUM(G17:G36) -> 0 | H37: 0 | I37: =SUM(I17:I36) -> 
A38: F
A39: F

Sheet Somatório
B3: UNIDADE ESCOLAR | E3: CÓDIGO INEP
B4: =Orçamento!$O$4 -> CENTRO DE ENSINO EM PERÍODO INTEGRAL GARAVELO PARK | E4: =Orçamento!X4 -> 52030660
B6: OBRA | E6: CIDADE
B7: =Orçamento!$O$7 -> AMPLIAÇÃO E REFORMA | E7: =Orçamento!$X$7 -> APARECIDA DE GOIÂNIA
B9: ENDEREÇO | E9: CRE
B10: =Orçamento!$R$10 -> RUA 43-E QD.84 ESQ.C/ 44-E S/N QD.84, SETOR GARAVELO PARK, CEP:74932-640 | E10: =Orçamento!$O$10 -> APARECIDA
B12: REFERÊNCIA | D12: DATA | E12: ÁREA TOTAL CONSTRUÍDA (M²)
B13: =CONCATENATE("AGETOP E SINAPI - ",Orçamento!$T$10) -> AGETOP E SINAPI - DESONERADA | D13: =Orçamento!$S$7 -> 2020-03-25 | E13: =Orçamento!$X$13 -> 2186.3
A14: FILTRO
B15: SOMATÓRIO DE SERVIÇOS
A16: ↓ | B16: ITEM | C16: DESCRIÇÃO DOS SERVIÇOS | D16: PREÇO SEM BDI (R$) | E16: PREÇO COM BDI (R$) | F16: PARTIC. ( % )
A17: =IF(D17>0,"F","") ->  | B17: a. | C17: =Orçamento!P849 -> SERVIÇOS PRELIMINARES | D17: =Orçamento!S849 -> 0 | E17: =Orçamento!X849 -> 0 | F17: =Orçamento!AA849 -> 0
A18: =IF(D18>0,"F","") ->  | B18: b. | C18: =Orçamento!P850 -> TRANSPORTES | D18: =Orçamento!S850 -> 0 | E18: =Orçamento!X850 -> 0 | F18: =Orçamento!AA850 -> 0
B19: c. | C19: =Orçamento!P851 -> SERVIÇO EM TERRA | D19: =Orçamento!S851 -> 0 | E19: =Orçamento!X851 -> 0 | F19: =Orçamento!AA851 -> 0
B20: d. | C20: =Orçamento!P852 -> FUNDAÇÕES E SONDAGENS | D20: =Orçamento!S852 -> 0 | E20: =Orçamento!X852 -> 0 | F20: =Orçamento!AA852 -> 0
B21: e. | C21: =Orçamento!P853 -> ESTRUTURA | D21: =Orçamento!S853 -> 0 | E21: =Orçamento!X853 -> 0 | F21: =Orçamento!AA853 -> 0
B22: f. | C22: =Orçamento!P854 -> INSTALAÇÕES ELÉTRICAS | D22: =Orçamento!S854 -> 0 | E22: =Orçamento!X854 -> 0 | F22: =Orçamento!AA854 -> 0
B23: g. | C23: =Orçamento!P855 -> INSTALAÇÕES HIDROSSANITÁRIAS | D23: =Orçamento!S855 -> 0 | E23: =Orçamento!X855 -> 0 | F23: =Orçamento!AA855 -> 0
B24: h | C24: =Orçamento!P856 -> INSTALAÇÕES ESPECIAIS | D24: =Orçamento!S856 -> 0 | E24: =Orçamento!X856 -> 0 | F24: =Orçamento!AA856 -> 0
B25: i. | C25: =Orçamento!P857 -> ALVENARIAS E DIVISÓRIAS | D25: =Orçamento!S857 -> 0 | E25: =Orçamento!X857 -> 0 | F25: =Orçamento!AA857 -> 0
B26: j. | C26: =Orçamento!P858 -> ALVENARIA AUTO-PORTANTE | D26: =Orçamento!S858 -> 0 | E26: =Orçamento!X858 -> 0 | F26: =Orçamento!AA858 -> 0
B27: k. | C27: =Orçamento!P859 -> IMPERMEABILIZAÇÃO | D27: =Orçamento!S859 -> 0 | E27: =Orçamento!X859 -> 0 | F27: =Orçamento!AA859 -> 0
B28: l. | C28: =Orçamento!P860 -> ISOLAMENTO TÉRMICO E ACÚSTICO | D28: =Orçamento!S860 -> 0 | E28: =Orçamento!X860 -> 0 | F28: =Orçamento!AA860 -> 0
B29: m. | C29: =Orçamento!P861 -> ESTRUTURA DE MADEIRA | D29: =Orçamento!S861 -> 0 | E29: =Orçamento!X861 -> 0 | F29: =Orçamento!AA861 -> 0
B30: n. | C30: =Orçamento!P862 -> ESTRUTURAS METÁLICAS | D30: =Orçamento!S862 -> 0 | E30: =Orçamento!X862 -> 0 | F30: =Orçamento!AA862 -> 0
B31: o. | C31: =Orçamento!P863 -> COBERTURAS | D31: =Orçamento!S863 -> 0 | E31: =Orçamento!X863 -> 0 | F31: =Orçamento!AA863 -> 0
B32: p. | C32: =Orçamento!P864 -> ESQUADRIAS DE MADEIRA | D32: =Orçamento!S864 -> 0 | E32: =Orçamento!X864 -> 0 | F32: =Orçamento!AA864 -> 0
B33: q. | C33: =Orçamento!P865 -> ESQUADRIAS METÁLICAS | D33: =Orçamento!S865 -> 0 | E33: =Orçamento!X865 -> 0 | F33: =Orçamento!AA865 -> 0
B34: r. | C34: =Orçamento!P866 -> VIDROS | D34: =Orçamento!S866 -> 0 | E34: =Orçamento!X866 -> 0 | F34: =Orçamento!AA866 -> 0
B35: s. | C35: =Orçamento!P867 -> REVESTIMENTO DE PAREDE | D35: =Orçamento!S867 -> 0 | E35: =Orçamento!X867 -> 0 | F35: =Orçamento!AA867 -> 0
B36: t. | C36: =Orçamento!P868 -> FORROS | D36: =Orçamento!S868 -> 0 | E36: =Orçamento!X868 -> 0 | F36: =Orçamento!AA868 -> 0
B37: u. | C37: =Orçamento!P869 -> REVESTIMENTO DE PISO | D37: =Orçamento!S869 -> 0 | E37: =Orçamento!X869 -> 0 | F37: =Orçamento!AA869 -> 0
B38: v. | C38: =Orçamento!P870 -> FERRAGENS | D38: =Orçamento!S870 -> 0 | E38: =Orçamento!X870 -> 0 | F38: =Orçamento!AA870 -> 0
B39: w. | C39: =Orçamento!P871 -> MARCENARIA | D39: =Orçamento!S871 -> 0 | E39: =Orçamento!X871 -> 0 | F39: =Orçamento!AA871 -> 0
B40: x. | C40: =Orçamento!P872 -> ADMINISTRAÇÃO | D40: =Orçamento!S872 -> 0 | E40: =Orçamento!X872 -> 0 | F40: =Orçamento!AA872 -> 0
B41: y. | C41: =Orçamento!P873 -> PINTURA | D41: =Orçamento!S873 -> 0 | E41: =Orçamento!X873 -> 0 | F41: =Orçamento!AA873 -> 0
B42: z. | C42: =Orçamento!P874 -> DIVERSOS | D42: =Orçamento!S874 -> 0 | E42: =Orçamento!X874 -> 0 | F42: =Orçamento!AA874 -> 0
A43: F | B43: TOTAL GERAL DO ORÇAMENTO | D43: =SUM(D17:D42) -> 0 | E43: =SUM(E17:E42) -> 0 | F43: =SUM(F17:F42) -> 0
B45: (*) Para itens da AGETOP, os vidros não estão inclusos nas esquadrias e já foram considerados os custos de contramarco para as esquadrias de alumínio;

Sheet Cronog_120_Dias
B3: UNIDADE ESCOLAR | I3: PRAZO
B4: =Orçamento!O4 -> CENTRO DE ENSINO EM PERÍODO INTEGRAL GARAVELO PARK | I4: 120 DIAS CORRIDOS
B6: OBRA | I6: DATA
B7: =Orçamento!O7 -> AMPLIAÇÃO E REFORMA | I7: =Orçamento!S7 -> 2020-03-25
B9: LOCAL | I9: ÁREA TOTAL CONSTRUÍDA (M²)
A10: FILTRO | B10: =Orçamento!X7 -> APARECIDA DE GOIÂNIA | I10: =Orçamento!X13 -> 2186.3
B12: CRONOGRAMA - FÍSICO FINANCEIRO
A13: ↓ | B13: CUSTO TOTAL: | C13: =D93 -> 0 | D13: VALOR | E13: Dias: | F13: 30 | J13: 60 | N13: 90 | R13: 120 | V13: TOTAL
B14: DESCRIÇÃO DOS SERVIÇOS | E14: % | F14: 1ª PARCELA | J14: 2ª PARCELA | N14: 3ª PARCELA | R14: 4ª PARCELA
A15: =IF(D15>0,"F","") ->  | B15: SERVIÇOS PRELIMINARES | D15: =Orçamento!X849 -> 0 | E15: =Orçamento!AA849 -> 0 | F15: =ROUND(F17*$D$15,2) -> 0 | J15: =ROUND(J17*$D$15,2) -> 0 | N15: =ROUND(N17*$D$15,2) -> 0 | R15: =ROUND(R17*$D$15,2) -> 0 | V15: =SUM(F15:U15) -> 0 | X15: =IF(D15=V15,"OK","ERRO") -> OK
A16: =IF(A15="F",A15,"") -> 
A17: =IF(A16="F",A16,"") ->  | F17: 1 | J17: 0 | N17: 0 | R17: =100%-(SUM(F17:Q17)) -> 0 | V17: =IFERROR(E15/100,"") -> 0 | X17: =IF(E15=V17*100,"OK","ERRO") -> OK
A18: =IF(D18>0,"F","") ->  | B18: TRANSPORTES | D18: =Orçamento!X850 -> 0 | E18: =Orçamento!AA850 -> 0 | F18: =ROUND(F20*$D$18,2) -> 0 | J18: =ROUND(J20*$D$18,2) -> 0 | N18: =ROUND(N20*$D$18,2) -> 0 | R18: =ROUND(R20*$D$18,2) -> 0 | V18: =SUM(F18:U18) -> 0 | X18: =IF(D18=V18,"OK","ERRO") -> OK
A19: =IF(A18="F",A18,"") -> 
A20: =IF(A19="F",A19,"") ->  | F20: 0.27 | J20: 0.24 | N20: 0.26 | R20: =100%-(SUM(F20:Q20)) -> 0.23 | V20: =IFERROR(E18/100,"") -> 0 | X20: =IF(E18=V20*100,"OK","ERRO") -> OK
A21: =IF(D21>0,"F","") ->  | B21: SERVIÇO EM TERRA | D21: =Orçamento!X851 -> 0 | E21: =Orçamento!AA851 -> 0 | F21: =ROUND(F23*$D$21,2) -> 0 | J21: =ROUND(J23*$D$21,2) -> 0 | N21: =ROUND(N23*$D$21,2) -> 0 | R21: =ROUND(R23*$D$21,2) -> 0 | V21: =SUM(F21:U21) -> 0 | X21: =IF(D21=V21,"OK","ERRO") -> OK
A22: =IF(A21="F",A21,"") -> 
A23: =IF(A22="F",A22,"") ->  | F23: 1 | J23: 0 | N23: 0 | R23: =100%-(SUM(F23:Q23)) -> 0 | V23: =IFERROR(E21/100,"") -> 0 | X23: =IF(E21=V23*100,"OK","ERRO") -> OK
A24: =IF(D24>0,"F","") ->  | B24: FUNDAÇÕES E SONDAGENS | D24: =Orçamento!X852 -> 0 | E24: =Orçamento!AA852 -> 0 | F24: =ROUND(F26*$D$24,2) -> 0 | J24: =ROUND(J26*$D$24,2) -> 0 | N24: =ROUND(N26*$D$24,2) -> 0 | R24: =ROUND(R26*$D$24,2) -> 0 | V24: =SUM(F24:U24) -> 0 | X24: =IF(D24=V24,"OK","ERRO") -> OK
A25: =IF(A24="F",A24,"") -> 
A26: =IF(A25="F",A25,"") ->  | F26: 1 | J26: 0 | R26: =100%-(SUM(F26:Q26)) -> 0 | V26: =IFERROR(E24/100,"") -> 0 | X26: =IF(E24=V26*100,"OK","ERRO") -> OK
A27: =IF(D27>0,"F","") ->  | B27: ESTRUTURA | D27: =Orçamento!X853 -> 0 | E27: =Orçamento!AA853 -> 0 | F27: =ROUND(F29*$D$27,2) -> 0 | J27: =ROUND(J29*$D$27,2) -> 0 | N27: =ROUND(N29*$D$27,2) -> 0 | R27: =ROUND(R29*$D$27,2) -> 0 | V27: =SUM(F27:U27) -> 0 | X27: =IF(D27=V27,"OK","ERRO") -> OK
A28: =IF(A27="F",A27,"") -> 
A29: =IF(A28="F",A28,"") ->  | F29: 0.495 | J29: 0.505 | N29: 0 | R29: =100%-(SUM(F29:Q29)) -> 0 | V29: =IFERROR(E27/100,"") -> 0 | X29: =IF(E27=V29*100,"OK","ERRO") -> OK
A30: =IF(D30>0,"F","") ->  | B30: INST.ELET/TELEFÔNICA/CABEAMENTO ESTRUTURADO | D30: =Orçamento!X854 -> 0 | E30: =Orçamento!AA854 -> 0 | F30: =ROUND(F32*$D$30,2) -> 0 | J30: =ROUND(J32*$D$30,2) -> 0 | N30: =ROUND(N32*$D$30,2) -> 0 | R30: =ROUND(R32*$D$30,2) -> 0 | V30: =SUM(F30:U30) -> 0 | X30: =IF(D30=V30,"OK","ERRO") -> OK
A31: =IF(A30="F",A30,"") -> 
A32: =IF(A31="F",A31,"") ->  | F32: 0.2 | J32: 0.55 | N32: 0.25 | R32: =100%-(SUM(F32:Q32)) -> 0 | V32: =IFERROR(E30/100,"") -> 0 | X32: =IF(E30=V32*100,"OK","ERRO") -> OK
A33: =IF(D33>0,"F","") ->  | B33: INSTALAÇÕES HIDROSSANITÁRIAS | D33: =Orçamento!X855 -> 0 | E33: =Orçamento!AA855 -> 0 | F33: =ROUND(F35*$D$33,2) -> 0 | J33: =ROUND(J35*$D$33,2) -> 0 | N33: =ROUND(N35*$D$33,2) -> 0 | R33: =ROUND(R35*$D$33,2) -> 0 | V33: =SUM(F33:U33) -> 0 | X33: =IF(D33=V33,"OK","ERRO") -> OK
A34: =IF(A33="F",A33,"") -> 
A35: =IF(A34="F",A34,"") ->  | F35: 0.2 | J35: 0.55 | N35: 0.25 | R35: =100%-(SUM(F35:Q35)) -> 0 | V35: =IFERROR(E33/100,"") -> 0 | X35: =IF(E33=V35*100,"OK","ERRO") -> OK
A36: =IF(D36>0,"F","") ->  | B36: INSTALAÇÕES ESPECIAIS | D36: =Orçamento!X856 -> 0 | E36: =Orçamento!AA856 -> 0 | F36: =ROUND(F38*$D$36,2) -> 0 | J36: =ROUND(J38*$D$36,2) -> 0 | N36: =ROUND(N38*$D$36,2) -> 0 | R36: =ROUND(R38*$D$36,2) -> 0 | V36: =SUM(F36:U36) -> 0 | X36: =IF(D36=V36,"OK","ERRO") -> OK
A37: =IF(A36="F",A36,"") -> 
A38: =IF(A37="F",A37,"") ->  | F38: 0.22 | J38: 0.44 | N38: 0.34 | R38: =100%-(SUM(F38:Q38)) -> 0 | V38: =IFERROR(E36/100,"") -> 0 | X38: =IF(E36=V38*100,"OK","ERRO") -> OK
A39: =IF(D39>0,"F","") ->  | B39: ALVENARIA E DIVISÓRIAS | D39: =Orçamento!X857 -> 0 | E39: =Orçamento!AA857 -> 0 | F39: =ROUND(F41*$D$39,2) -> 0 | J39: =ROUND(J41*$D$39,2) -> 0 | N39: =ROUND(N41*$D$39,2) -> 0 | R39: =ROUND(R41*$D$39,2) -> 0 | V39: =SUM(F39:U39) -> 0 | X39: =IF(D39=V39,"OK","ERRO") -> OK
A40: =IF(A39="F",A39,"") -> 
A41: =IF(A40="F",A40,"") ->  | J41: 0.63 | N41: 0.37 | R41: =100%-(SUM(F41:Q41)) -> 0 | V41: =IFERROR(E39/100,"") -> 0 | X41: =IF(E39=V41*100,"OK","ERRO") -> OK
A42: =IF(D42>0,"F","") ->  | B42: ALVENARIA AUTO-PORTANTE | D42: =Orçamento!X858 -> 0 | E42: =Orçamento!AA858 -> 0 | F42: =ROUND(F44*$D$42,2) -> 0 | J42: =ROUND(J44*$D$42,2) -> 0 | N42: =ROUND(N44*$D$42,2) -> 0 | R42: =ROUND(R44*$D$42,2) -> 0 | V42: =SUM(F42:U42) -> 0 | X42: =IF(D42=V42,"OK","ERRO") -> OK
A43: =IF(A42="F",A42,"") -> 
A44: =IF(A43="F",A43,"") ->  | J44: 0.63 | N44: 0.37 | R44: =100%-(SUM(F44:Q44)) -> 0 | V44: =IFERROR(E42/100,"") -> 0 | X44: =IF(E42=V44*100,"OK","ERRO") -> OK
A45: =IF(D45>0,"F","") ->  | B45: IMPERMEABILIZAÇÃO | D45: =Orçamento!X859 -> 0 | E45: =Orçamento!AA859 -> 0 | F45: =ROUND(F47*$D$45,2) -> 0 | J45: =ROUND(J47*$D$45,2) -> 0 | N45: =ROUND(N47*$D$45,2) -> 0 | R45: =ROUND(R47*$D$45,2) -> 0 | V45: =SUM(F45:U45) -> 0 | X45: =IF(D45=V45,"OK","ERRO") -> OK
A46: =IF(A45="F",A45,"") -> 
A47: =IF(A46="F",A46,"") ->  | F47: 0.5 | J47: 0.25 | N47: 0.25 | R47: =100%-(SUM(F47:Q47)) -> 0 | V47: =IFERROR(E45/100,"") -> 0 | X47: =IF(E45=V47*100,"OK","ERRO") -> OK
A48: =IF(D48>0,"F","") ->  | B48: ISOLAMENTO TÉRMICO E ACÚSTICO | D48: =Orçamento!X860 -> 0 | E48: =Orçamento!AA860 -> 0 | F48: =ROUND(F50*$D$48,2) -> 0 | J48: =ROUND(J50*$D$48,2) -> 0 | N48: =ROUND(N50*$D$48,2) -> 0 | R48: =ROUND(R50*$D$48,2) -> 0 | V48: =SUM(F48:U48) -> 0 | X48: =IF(D48=V48,"OK","ERRO") -> OK
A49: =IF(A48="F",A48,"") -> 
A50: =IF(A49="F",A49,"") ->  | J50: 0.55 | N50: 0.4 | R50: =100%-(SUM(F50:Q50)) -> 0.05 | V50: =IFERROR(E48/100,"") -> 0 | X50: =IF(E48=V50*100,"OK","ERRO") -> OK
A51: =IF(D51>0,"F","") ->  | B51: ESTRUTURA DE MADEIRA | D51: =Orçamento!X861 -> 0 | E51: =Orçamento!AA861 -> 0 | F51: =ROUND(F53*$D$51,2) -> 0 | J51: =ROUND(J53*$D$51,2) -> 0 | N51: =ROUND(N53*$D$51,2) -> 0 | R51: =ROUND(R53*$D$51,2) -> 0 | V51: =SUM(F51:U51) -> 0 | X51: =IF(D51=V51,"OK","ERRO") -> OK
A52: =IF(A51="F",A51,"") -> 
A53: =IF(A52="F",A52,"") ->  | J53: 0.35 | N53: 0.65 | R53: =100%-(SUM(F53:Q53)) -> 0 | V53: =IFERROR(E51/100,"") -> 0 | X53: =IF(E51=V53*100,"OK","ERRO") -> OK
A54: =IF(D54>0,"F","") ->  | B54: ESTRUTURA METÁLICA | D54: =Orçamento!X862 -> 0 | E54: =Orçamento!AA862 -> 0 | F54: =ROUND(F56*$D$54,2) -> 0 | J54: =ROUND(J56*$D$54,2) -> 0 | N54: =ROUND(N56*$D$54,2) -> 0 | R54: =ROUND(R56*$D$54,2) -> 0 | V54: =SUM(F54:U54) -> 0 | X54: =IF(D54=V54,"OK","ERRO") -> OK
A55: =IF(A54="F",A54,"") -> 
A56: =IF(A55="F",A55,"") ->  | J56: 0.35 | N56: 0.65 | R56: =100%-(SUM(F56:Q56)) -> 0 | V56: =IFERROR(E54/100,"") -> 0 | X56: =IF(E54=V56*100,"OK","ERRO") -> OK
A57: =IF(D57>0,"F","") ->  | B57: COBERTURAS | D57: =Orçamento!X863 -> 0 | E57: =Orçamento!AA863 -> 0 | F57: =ROUND(F59*$D$57,2) -> 0 | J57: =ROUND(J59*$D$57,2) -> 0 | N57: =ROUND(N59*$D$57,2) -> 0 | R57: =ROUND(R59*$D$57,2) -> 0 | V57: =SUM(F57:U57) -> 0 | X57: =IF(D57=V57,"OK","ERRO") -> OK
A58: =IF(A57="F",A57,"") -> 
A59: =IF(A58="F",A58,"") ->  | N59: 0.55 | R59: =100%-(SUM(F59:Q59)) -> 0.45 | V59: =IFERROR(E57/100,"") -> 0 | X59: =IF(E57=V59*100,"OK","ERRO") -> OK
A60: =IF(D60>0,"F","") ->  | B60: ESQUADRIAS DE MADEIRA | D60: =Orçamento!X864 -> 0 | E60: =Orçamento!AA864 -> 0 | F60: =ROUND(F62*$D$60,2) -> 0 | J60: =ROUND(J62*$D$60,2) -> 0 | N60: =ROUND(N62*$D$60,2) -> 0 | R60: =ROUND(R62*$D$60,2) -> 0 | V60: =SUM(F60:U60) -> 0 | X60: =IF(D60=V60,"OK","ERRO") -> OK
A61: =IF(A60="F",A60,"") -> 
A62: =IF(A61="F",A61,"") ->  | N62: 0.55 | R62: =100%-(SUM(F62:Q62)) -> 0.45 | V62: =IFERROR(E60/100,"") -> 0 | X62: =IF(E60=V62*100,"OK","ERRO") -> OK
A63: =IF(D63>0,"F","") ->  | B63: ESQUADRIAS METÁLICAS | D63: =Orçamento!X865 -> 0 | E63: =Orçamento!AA865 -> 0 | F63: =ROUND(F65*$D$63,2) -> 0 | J63: =ROUND(J65*$D$63,2) -> 0 | N63: =ROUND(N65*$D$63,2) -> 0 | R63: =ROUND(R65*$D$63,2) -> 0 | V63: =SUM(F63:U63) -> 0 | X63: =IF(D63=V63,"OK","ERRO") -> OK
A64: =IF(A63="F",A63,"") -> 
A65: =IF(A64="F",A64,"") ->  | N65: 0.55 | R65: =100%-(SUM(F65:Q65)) -> 0.45 | V65: =IFERROR(E63/100,"") -> 0 | X65: =IF(E63=V65*100,"OK","ERRO") -> OK
A66: =IF(D66>0,"F","") ->  | B66: VIDROS | D66: =Orçamento!X866 -> 0 | E66: =Orçamento!AA866 -> 0 | F66: =ROUND(F68*$D$66,2) -> 0 | J66: =ROUND(J68*$D$66,2) -> 0 | N66: =ROUND(N68*$D$66,2) -> 0 | R66: =ROUND(R68*$D$66,2) -> 0 | V66: =SUM(F66:U66) -> 0 | X66: =IF(D66=V66,"OK","ERRO") -> OK
A67: =IF(A66="F",A66,"") -> 
A68: =IF(A67="F",A67,"") ->  | N68: 0 | R68: 1 | V68: =IFERROR(E66/100,"") -> 0 | X68: =IF(E66=V68*100,"OK","ERRO") -> OK
A69: =IF(D69>0,"F","") ->  | B69: REVESTIMENTO DE PAREDE | D69: =Orçamento!X867 -> 0 | E69: =Orçamento!AA867 -> 0 | F69: =ROUND(F71*$D$69,2) -> 0 | J69: =ROUND(J71*$D$69,2) -> 0 | N69: =ROUND(N71*$D$69,2) -> 0 | R69: =ROUND(R71*$D$69,2) -> 0 | V69: =SUM(F69:U69) -> 0 | X69: =IF(D69=V69,"OK","ERRO") -> OK
A70: =IF(A69="F",A69,"") -> 
A71: =IF(A70="F",A70,"") ->  | N71: 1 | R71: =100%-(SUM(F71:Q71)) -> 0 | V71: =IFERROR(E69/100,"") -> 0 | X71: =IF(E69=V71*100,"OK","ERRO") -> OK
A72: =IF(D72>0,"F","") ->  | B72: FORROS | D72: =Orçamento!X868 -> 0 | E72: =Orçamento!AA868 -> 0 | F72: =ROUND(F74*$D$72,2) -> 0 | J72: =ROUND(J74*$D$72,2) -> 0 | N72: =ROUND(N74*$D$72,2) -> 0 | R72: =ROUND(R74*$D$72,2) -> 0 | V72: =SUM(F72:U72) -> 0 | X72: =IF(D72=V72,"OK","ERRO") -> OK
A73: =IF(A72="F",A72,"") -> 
A74: =IF(A73="F",A73,"") ->  | N74: 0.4 | R74: =100%-(SUM(F74:Q74)) -> 0.6 | V74: =IFERROR(E72/100,"") -> 0 | X74: =IF(E72=V74*100,"OK","ERRO") -> OK
A75: =IF(D75>0,"F","") ->  | B75: REVESTIMENTO DE PISO | D75: =Orçamento!X869 -> 0 | E75: =Orçamento!AA869 -> 0 | F75: =ROUND(F77*$D$75,2) -> 0 | J75: =ROUND(J77*$D$75,2) -> 0 | N75: =ROUND(N77*$D$75,2) -> 0 | R75: =ROUND(R77*$D$75,2) -> 0 | V75: =SUM(F75:U75) -> 0 | X75: =IF(D75=V75,"OK","ERRO") -> OK
A76: =IF(A75="F",A75,"") -> 
A77: =IF(A76="F",A76,"") ->  | N77: 0.4 | R77: =100%-(SUM(F77:Q77)) -> 0.6 | V77: =IFERROR(E75/100,"") -> 0 | X77: =IF(E75=V77*100,"OK","ERRO") -> OK
A78: =IF(D78>0,"F","") ->  | B78: FERRAGENS | D78: =Orçamento!X870 -> 0 | E78: =Orçamento!AA870 -> 0 | F78: =ROUND(F80*$D$78,2) -> 0 | J78: =ROUND(J80*$D$78,2) -> 0 | N78: =ROUND(N80*$D$78,2) -> 0 | R78: =ROUND(R80*$D$78,2) -> 0 | V78: =SUM(F78:U78) -> 0 | X78: =IF(D78=V78,"OK","ERRO") -> OK
A79: =IF(A78="F",A78,"") -> 
A80: =IF(A79="F",A79,"") ->  | R80: =100%-(SUM(F80:Q80)) -> 1 | V80: =IFERROR(E78/100,"") -> 0 | X80: =IF(E78=V80*100,"OK","ERRO") -> OK
A81: =IF(D81>0,"F","") ->  | B81: MARCENARIA | D81: =Orçamento!X871 -> 0 | E81: =Orçamento!AA871 -> 0 | F81: =ROUND(F83*$D$81,2) -> 0 | J81: =ROUND(J83*$D$81,2) -> 0 | N81: =ROUND(N83*$D$81,2) -> 0 | R81: =ROUND(R83*$D$81,2) -> 0 | V81: =SUM(F81:U81) -> 0 | X81: =IF(D81=V81,"OK","ERRO") -> OK
A82: =IF(A81="F",A81,"") -> 
A83: =IF(A82="F",A82,"") ->  | R83: =100%-(SUM(F83:Q83)) -> 1 | V83: =IFERROR(E81/100,"") -> 0 | X83: =IF(E81=V83*100,"OK","ERRO") -> OK
A84: =IF(D84>0,"F","") ->  | B84: ADMINISTRAÇÃO - MENSALISTAS | D84: =Orçamento!X872 -> 0 | E84: =Orçamento!AA872 -> 0 | F84: =ROUND(F86*$D$84,2) -> 0 | J84: =ROUND(J86*$D$84,2) -> 0 | N84: =ROUND(N86*$D$84,2) -> 0 | R84: =ROUND(R86*$D$84,2) -> 0 | V84: =SUM(F84:U84) -> 0 | X84: =IF(D84=V84,"OK","ERRO") -> OK
A85: =IF(A84="F",A84,"") -> 
A86: =IF(A85="F",A85,"") ->  | F86: 0.27 | J86: 0.22 | N86: 0.25 | R86: =100%-(SUM(F86:Q86)) -> 0.26 | V86: =IFERROR(E84/100,"") -> 0 | X86: =IF(E84=V86*100,"OK","ERRO") -> OK
A87: =IF(D87>0,"F","") ->  | B87: PINTURA | D87: =Orçamento!X873 -> 0 | E87: =Orçamento!AA873 -> 0 | F87: =ROUND(F89*$D$87,2) -> 0 | J87: =ROUND(J89*$D$87,2) -> 0 | N87: =ROUND(N89*$D$87,2) -> 0 | R87: =ROUND(R89*$D$87,2) -> 0 | V87: =SUM(F87:U87) -> 0 | X87: =IF(D87=V87,"OK","ERRO") -> OK
A88: =IF(A87="F",A87,"") -> 
A89: =IF(A88="F",A88,"") ->  | N89: 0.36 | R89: =100%-(SUM(F89:Q89)) -> 0.64 | V89: =IFERROR(E87/100,"") -> 0 | X89: =IF(E87=V89*100,"OK","ERRO") -> OK
A90: =IF(D90>0,"F","") ->  | B90: DIVERSOS | D90: =Orçamento!X874 -> 0 | E90: =Orçamento!AA874 -> 0 | F90: =ROUND(F92*$D$90,2) -> 0 | J90: =ROUND(J92*$D$90,2) -> 0 | N90: =ROUND(N92*$D$90,2) -> 0 | R90: =ROUND(R92*$D$90,2) -> 0 | V90: =SUM(F90:U90) -> 0 | X90: =IF(D90=V90,"OK","ERRO") -> OK
A91: =IF(A90="F",A90,"") -> 
A92: =IF(A91="F",A91,"") ->  | F92: 0.275 | J92: 0.245 | N92: 0.24 | R92: =100%-(SUM(F92:Q92)) -> 0.24 | V92: =IFERROR(E90/100,"") -> 0 | X92: =IF(E90=V92*100,"OK","ERRO") -> OK
A93: F | B93: CUSTO DO ORÇAMENTO | D93: =SUM(D15:D92) -> 0 | E93: =SUM(E15:E92) -> 0 | F93: =F15+F18+F21+F24+F27+F30+F33+F36+F39+F42+F45+F48+F51+F54+F57+F60+F63+F66+F69+F72+F75+F78+F81+F84+F87+F90 -> 0 | J93: =J15+J18+J21+J24+J27+J30+J33+J36+J39+J42+J45+J48+J51+J54+J57+J60+J63+J66+J69+J72+J75+J78+J81+J84+J87+J90 -> 0 | N93: =N15+N18+N21+N24+N27+N30+N33+N36+N39+N42+N45+N48+N51+N54+N57+N60+N63+N66+N69+N72+N75+N78+N81+N84+N87+N90 -> 0 | R93: =R15+R18+R21+R24+R27+R30+R33+R36+R39+R42+R45+R48+R51+R54+R57+R60+R63+R66+R69+R72+R75+R78+R81+R84+R87+R90 -> 0 | V93: =V15+V18+V21+V24+V27+V30+V33+V36+V39+V42+V45+V48+V51+V54+V57+V60+V63+V66+V69+V72+V75+V78+V81+V84+V87+V90 -> 0
A94: F | B94: PERCENTUAIS: | F94: =IFERROR(F93/$D$93,"") ->  | J94: =IFERROR(J93/$D$93,"") ->  | N94: =IFERROR(N93/$D$93,"") ->  | R94: =IFERROR(R93/$D$93,"") ->  | V94: =SUM(F94:U94) -> 0
A95: F | B95: TOTAIS ACUMULADOS: | F95: =F93 -> 0 | J95: =J93+F95 -> 0 | N95: =N93+J95 -> 0 | R95: =R93+N95 -> 0
A96: F | B96: PERCENTUAIS ACUMULADOS: | F96: =F94 ->  | J96: =J94+F96 ->  | N96: =N94+J96 ->  | R96: =R94+N96 -> 
A97: F
A98: F | B98: OBSERVAÇÕES:
A99: F | B99: Os pagamentos somente poderão ser efetuados mediante medição e atesto pelos técnicos da Secretaria da Educação.

Sheet Composição BDI
A3: UNIDADE ESCOLAR
A4: =Orçamento!$O$4 -> CENTRO DE ENSINO EM PERÍODO INTEGRAL GARAVELO PARK
A6: OBRA
A7: =Orçamento!$O$7 -> AMPLIAÇÃO E REFORMA
A9: ENDEREÇO
A10: =Orçamento!$R$10 -> RUA 43-E QD.84 ESQ.C/ 44-E S/N QD.84, SETOR GARAVELO PARK, CEP:74932-640
A12: CIDADE
A13: =Orçamento!$X$7 -> APARECIDA DE GOIÂNIA
A15: CRE
A16: =Orçamento!$O$10 -> APARECIDA
A18: DETALHAMENTO DA COMPOSIÇÃO DE BDI
A19: COMPOSIÇÃO BDI PARA OBRAS CIVIS | F19: BDI CONSTRUÇÃO E REFORMA
A20: DESCRIÇÃO | B20: COEF. | C20: TAXA % (a.m) | D20: % no preço de venda | F20: Situação | G20: 1º Quartil | H20: Médio | I20: 3º Quartil
A21: 1) COFINS | B21: 1 | C21: 0.03 | D21: =C21 -> 0.03 | F21: =IF(OR(C21<G21,C21>I21),"FORA DO INTERVALO","OK") -> OK | G21: 0.03 | H21: 0.03 | I21: 0.03
A22: 2) PIS | B22: 1 | C22: 0.0065 | D22: =C22 -> 0.0065 | F22: =IF(OR(C22<G22,C22>I22),"FORA DO INTERVALO","OK") -> OK | G22: 0.0065 | H22: 0.0065 | I22: 0.0065
A23: 3) ISSQN | B23: 1 | C23: 0.05 | D23: =C23*B23 -> 0.05 | F23: OK | G23: 0.02 | H23: 0.035 | I23: 0.05
A24: 4) CPRB | B24: 1 | C24: 0.045 | D24: =C24 -> 0.045 | F24: OK | G24: 0.045 | H24: 0.045 | I24: 0.045
A25: 5) Administração Central | B25: 1 | C25: 0.03 | D25: 0.03 | F25: OK | G25: 0.03 | H25: 0.04 | I25: 0.055
A26: 6) Despesas Financeiras | B26: 1 | C26: 0.0056 | D26: 0.0056 | F26: FORA DO INTERVALO | G26: 0.0059 | H26: 0.0123 | I26: 0.0139
A27: 7) Seguros + Garantias | B27: 1 | C27: 0.0012 | D27: 0.0012 | F27: FORA DO INTERVALO | G27: 0.008 | H27: 0.008 | I27: 0.01
A28: 8) Risco | B28: 1 | C28: 0.0097 | D28: 0.0097 | F28: OK | G28: 0.0097 | H28: 0.0127 | I28: 0.0127
A29: 9) Lucro | B29: 1 | C29: 0.0616 | D29: 0.0616 | F29: OK | G29: 0.0616 | H29: 0.074 | I29: 0.0896
A30: BDI - FINAL | D30: =(((1+D25+D27+D28)*(1+D26)*(1+D29))/(1-(D21+D22+D23+D24))-1) -> 0.2794560148 | F30: FORA DO INTERVALO | G30: 0.2034 | H30: 0.2212 | I30: 0.25
A32: Notas:
A33: (1) e (2) Alíquota definida por lei.
A34: (3) Alíquota e base de cálculo definidas pela legislação municipal.
A35: (4) Alíquota definida pelas leis 12.546/11, 12844/13 e 13.161/15 (CPRB – contribuição previdenciária sobre a receita bruta).
A36: (5) Valores definidos a partir dos limites no Acórdão nº 2.622/2013 - TCU – Plenário. Valores entre o 1º e 3º quartis.
A37: (6) Valor calculado pela expressão matemática do acórdão 2.369/2011 – TCU – Plenário e disponibilizado pela AGETOP em dezembro de 2018. (Foi utilizado para o cálculo a média da Taxa SELIC no período de 11/2017 a 10/2018)
A39: (7) Valores definidos pela AGETOP a partir dos limites no Acórdão nº 2.622/2013 - TCU – Plenário. Valores médios. Observação da AGETOP: (Seguros contra erros de execução, incêndio e explosão, danos da natureza (vendaval, destelhamento, alagamento, inundação, desmoronamento, geadas etc.), emprego de material defeituoso ou inadequado, roubo e/ou furto qualificado, quebra de equipamentos, desmoronamento de estrutura, nas modalidades de Obras Civis em Construção (OCC); Instalação e Montagem (IM); e Obras Civis em Construção e Instalação e Montagem (OCC/IM). Bem como coberturas adicionais para ampliação dessas coberturas básicas, como: cobertura de responsabilidade civil geral, cobertura de responsabilidade civil cruzada, cobertura de despesas extraordinárias, cobertura de tumultos, cobertura de desentulho do local, cobertura de riscos do fabricante, dentre outras, incluindo o seguro de vida em grupo regido pela convenção coletiva dos trabalhadores na indústria da construção civil). A partir de 24/02/2015 por intermédio da Portaria 449/2015 a Presidência da AGETOP, na pessoa do Senhor Jayme Eduardo Rincon, determinou a exclusão dos valores referentes aos Seguros de Risco de Engenharia e Responsabilidade Civil do Profissional na composição do cálculo do B.D.I..
A40: (8) Valores definidos a partir dos limites no Acórdão nº 2.622/2013 - TCU – Plenário. Valores entre 1º e 3° quartis.
A41: (9) Valores definidos a partir dos limites definidos no Acórdão nº 2.622/2013 - TCU – Plenário. Valores adotados e praticados no mercado ( “ ex ante ” ) ou aqueles entre os 1º e 3º quartis.
A43: (*) A fórmula para estipulação da taxa de BDI estimado adotado é a mesma que foi aplicada para a obtenção das tabelas contidas no Acórdão n. 2.622/2013 – TCUPlenário
A45: Obs.: Para obras com valores superiores a R$ 20.000.000,00 sugere-se recalcular o BDI, dimensionando as taxas de administração central e lucro para patamares inferiores ao estipulado acima.

Sheet Relatório CENTRAL
B3: UNIDADE ESCOLAR | D3: CIDADE
B4: =Orçamento!$O$4 -> CENTRO DE ENSINO EM PERÍODO INTEGRAL GARAVELO PARK | D4: =Orçamento!$X$7 -> APARECIDA DE GOIÂNIA
B6: OBRA | D6: CRE
B7: =Orçamento!$O$7 -> AMPLIAÇÃO E REFORMA | D7: =Orçamento!$O$10 -> APARECIDA
B9: ENDEREÇO | D9: DATA
A10: FILTRO | B10: =Orçamento!$R$10 -> RUA 43-E QD.84 ESQ.C/ 44-E S/N QD.84, SETOR GARAVELO PARK, CEP:74932-640 | D10: =Orçamento!$S$7 -> 2020-03-25
B12: RELATÓRIO CENTRAL
A13: ↓ | B13: CÓDIGO | C13: ETAPA | D13: PREÇO (R$) C/ BDI | E13: PARTIC ( % )
A14: =IF(D14>0,"F","") ->  | B14: =Orçamento!O849 -> a. | C14: =Orçamento!P849 -> SERVIÇOS PRELIMINARES | D14: =Orçamento!X849 -> 0 | E14: =Orçamento!AA849 -> 0
A15: =IF(D15>0,"F","") ->  | B15: =Orçamento!O850 -> b. | C15: =Orçamento!P850 -> TRANSPORTES | D15: =Orçamento!X850 -> 0 | E15: =Orçamento!AA850 -> 0
B16: =Orçamento!O851 -> c. | C16: =Orçamento!P851 -> SERVIÇO EM TERRA | D16: =Orçamento!X851 -> 0 | E16: =Orçamento!AA851 -> 0
B17: =Orçamento!O852 -> d. | C17: =Orçamento!P852 -> FUNDAÇÕES E SONDAGENS | D17: =Orçamento!X852 -> 0 | E17: =Orçamento!AA852 -> 0
B18: =Orçamento!O853 -> e. | C18: =Orçamento!P853 -> ESTRUTURA | D18: =Orçamento!X853 -> 0 | E18: =Orçamento!AA853 -> 0
B19: =Orçamento!O854 -> f. | C19: =Orçamento!P854 -> INSTALAÇÕES ELÉTRICAS | D19: =Orçamento!X854 -> 0 | E19: =Orçamento!AA854 -> 0
B20: =Orçamento!O855 -> g. | C20: =Orçamento!P855 -> INSTALAÇÕES HIDROSSANITÁRIAS | D20: =Orçamento!X855 -> 0 | E20: =Orçamento!AA855 -> 0
B21: =Orçamento!O856 -> h | C21: =Orçamento!P856 -> INSTALAÇÕES ESPECIAIS | D21: =Orçamento!X856 -> 0 | E21: =Orçamento!AA856 -> 0
B22: =Orçamento!O857 -> i. | C22: =Orçamento!P857 -> ALVENARIAS E DIVISÓRIAS | D22: =Orçamento!X857 -> 0 | E22: =Orçamento!AA857 -> 0
B23: =Orçamento!O858 -> j. | C23: =Orçamento!P858 -> ALVENARIA AUTO-PORTANTE | D23: =Orçamento!X858 -> 0 | E23: =Orçamento!AA858 -> 0
B24: =Orçamento!O859 -> k. | C24: =Orçamento!P859 -> IMPERMEABILIZAÇÃO | D24: =Orçamento!X859 -> 0 | E24: =Orçamento!AA859 -> 0
B25: =Orçamento!O860 -> l. | C25: =Orçamento!P860 -> ISOLAMENTO TÉRMICO E ACÚSTICO | D25: =Orçamento!X860 -> 0 | E25: =Orçamento!AA860 -> 0
B26: =Orçamento!O861 -> m. | C26: =Orçamento!P861 -> ESTRUTURA DE MADEIRA | D26: =Orçamento!X861 -> 0 | E26: =Orçamento!AA861 -> 0
B27: =Orçamento!O862 -> n. | C27: =Orçamento!P862 -> ESTRUTURAS METÁLICAS | D27: =Orçamento!X862 -> 0 | E27: =Orçamento!AA862 -> 0
B28: =Orçamento!O863 -> o. | C28: =Orçamento!P863 -> COBERTURAS | D28: =Orçamento!X863 -> 0 | E28: =Orçamento!AA863 -> 0
B29: =Orçamento!O864 -> p. | C29: =Orçamento!P864 -> ESQUADRIAS DE MADEIRA | D29: =Orçamento!X864 -> 0 | E29: =Orçamento!AA864 -> 0
B30: =Orçamento!O865 -> q. | C30: =Orçamento!P865 -> ESQUADRIAS METÁLICAS | D30: =Orçamento!X865 -> 0 | E30: =Orçamento!AA865 -> 0
B31: =Orçamento!O866 -> r. | C31: =Orçamento!P866 -> VIDROS | D31: =Orçamento!X866 -> 0 | E31: =Orçamento!AA866 -> 0
B32: =Orçamento!O867 -> s. | C32: =Orçamento!P867 -> REVESTIMENTO DE PAREDE | D32: =Orçamento!X867 -> 0 | E32: =Orçamento!AA867 -> 0
B33: =Orçamento!O868 -> t. | C33: =Orçamento!P868 -> FORROS | D33: =Orçamento!X868 -> 0 | E33: =Orçamento!AA868 -> 0
B34: =Orçamento!O869 -> u. | C34: =Orçamento!P869 -> REVESTIMENTO DE PISO | D34: =Orçamento!X869 -> 0 | E34: =Orçamento!AA869 -> 0
B35: =Orçamento!O870 -> v. | C35: =Orçamento!P870 -> FERRAGENS | D35: =Orçamento!X870 -> 0 | E35: =Orçamento!AA870 -> 0
B36: =Orçamento!O871 -> w. | C36: =Orçamento!P871 -> MARCENARIA | D36: =Orçamento!X871 -> 0 | E36: =Orçamento!AA871 -> 0
B37: =Orçamento!O872 -> x. | C37: =Orçamento!P872 -> ADMINISTRAÇÃO | D37: =Orçamento!X872 -> 0 | E37: =Orçamento!AA872 -> 0
B38: =Orçamento!O873 -> y. | C38: =Orçamento!P873 -> PINTURA | D38: =Orçamento!X873 -> 0 | E38: =Orçamento!AA873 -> 0
B39: =Orçamento!O874 -> z. | C39: =Orçamento!P874 -> DIVERSOS | D39: =Orçamento!X874 -> 0 | E39: =Orçamento!AA874 -> 0
A40: F | B40: TOTAL GERAL DO ORÇAMENTO (R$) C/BDI | D40: =SUM(D14:D39) -> 0 | E40: =SUM(E14:E39) -> 0

Sheet Parc Maior Relev
B3: UNIDADE ESCOLAR | E3: CÓDIGO INEP
B4: =Orçamento!$O$4 -> CENTRO DE ENSINO EM PERÍODO INTEGRAL GARAVELO PARK | E4: =Orçamento!$X$4 -> 52030660
B6: OBRA | E6: CIDADE
B7: =Orçamento!$O$7 -> AMPLIAÇÃO E REFORMA | E7: =Orçamento!$X$7 -> APARECIDA DE GOIÂNIA
B9: CRE | E9: ÁREA TOTAL CONSTRUÍDA (M²)
B10: =Orçamento!$O$10 -> APARECIDA | E10: =Orçamento!$X$13 -> 2186.3
A11: FILTRO
B12: PARCELA DE MAIOR RELEVÂNCIA
B13: CÓDIGO | C13: SERVIÇO | D13: DESCRIÇÃO | E13: UNID | F13: QUANT | G13: PARC. MAIOR RELEV (100%)
A14: =IF(F14>0,"F","") -> F | B14: 70000 | C14: INSTALAÇÕES ELÉTRICAS | D14: SUBESTAÇÃO | E14: KVA | F14: 150 | G14: =F14 -> 150
B15: CÓDIGO | C15: SERVIÇO | D15: DESCRIÇÃO | E15: UNID | F15: QUANT | G15: PARC. MAIOR RELEV (50%)
B16: 70000 | C16: INSTALAÇÕES ELÉTRICAS | D16: INSTALAÇÕES ELÉTRICAS | E16: KVA | F16: =SUMIF(Orçamento!$R$20:$R$830,'Parc Maior Relev'!D16,Orçamento!$T$20:$T$830) -> 0 | G16: =F16*0.5 -> 0
B17: 160000 | C17: COBERTURAS | D17: TELHA CERÂMICA | E17: M2 | F17: =SUMIF(Orçamento!$R$20:$R$830,'Parc Maior Relev'!D17,Orçamento!$T$20:$T$830) -> 0 | G17: 0
B18: 160000 | C18: COBERTURAS | D18: TELHA FIBROCIMENTO | E18: M2 | F18: =SUMIF(Orçamento!$R$20:$R$830,'Parc Maior Relev'!D18,Orçamento!$T$20:$T$830) -> 0 | G18: 0
B19: 160000 | C19: COBERTURAS | D19: TELHA METÁLICA | E19: M2 | F19: =SUMIF(Orçamento!$R$20:$R$830,'Parc Maior Relev'!D19,Orçamento!$T$20:$T$830) -> 0 | G19: 0
B20: 200000 | C20: REVESTIMENTO DE PAREDE | D20: REBOCO | E20: M2 | F20: =SUMIF(Orçamento!$R$20:$R$830,'Parc Maior Relev'!D20,Orçamento!$T$20:$T$830) -> 0 | G20: 0
B21: 200000 | C21: REVESTIMENTO DE PAREDE | D21: REVESTIMENTO CERÂMICO | E21: M2 | F21: =SUMIF(Orçamento!$R$20:$R$830,'Parc Maior Relev'!D21,Orçamento!$T$20:$T$830) -> 0 | G21: 0
B22: 210000 | C22: FORROS | D22: FORRO DE GESSO | E22: M2 | F22: =SUMIF(Orçamento!$R$20:$R$830,'Parc Maior Relev'!D22,Orçamento!$T$20:$T$830) -> 0 | G22: 0
B23: 210000 | C23: FORROS | D23: FORRO PVC | E23: M2 | F23: =SUMIF(Orçamento!$R$20:$R$830,'Parc Maior Relev'!D23,Orçamento!$T$20:$T$830) -> 0 | G23: 0
B24: 210000 | C24: FORROS | D24: FORRO ACARTONADO | E24: M2 | F24: =SUMIF(Orçamento!$R$20:$R$830,'Parc Maior Relev'!D24,Orçamento!$T$20:$T$830) -> 0 | G24: 0
B25: 220000 | C25: REVESTIMENTO DE PISO | D25: PISO GRANITINA | E25: M2 | F25: =Orçamento!V782+Orçamento!V824 -> 155.26 | G25: 77.63
B26: 220000 | C26: REVESTIMENTO DE PISO | D26: PISO LAMINADO | E26: M2 | F26: =SUMIF(Orçamento!$R$20:$R$830,'Parc Maior Relev'!D26,Orçamento!$T$20:$T$830) -> 0 | G26: 0
B27: 220000 | C27: REVESTIMENTO DE PISO | D27: PISO CONCRETO DESEMPENADO | E27: M2 | F27: =SUMIF(Orçamento!$R$20:$R$830,'Parc Maior Relev'!D27,Orçamento!$T$20:$T$830) -> 0 | G27: 0
B28: 220000 | C28: REVESTIMENTO DE PISO | D28: PISO CERÂMICO | E28: M2 | F28: =SUMIF(Orçamento!$R$20:$R$830,'Parc Maior Relev'!D28,Orçamento!$T$20:$T$830) -> 0 | G28: 0
B29: 260000 | C29: PINTURA | D29: PINTURA | E29: M2 | F29: =SUMIF(Orçamento!$R$20:$R$830,'Parc Maior Relev'!D29,Orçamento!$T$20:$T$830) -> 0 | G29: 0
A30: F
A31: F | B31: (*) Para os fins do inciso I dp § 1º do Art. 30 da Lei Federal 8.666/93, são consideradas parcelas de maior relevância técnica as execuções apresentadas
A32: F

Sheet Composições
A4: UNIDADE ESCOLAR | H4: CÓDIGO INEP
A5: =Orçamento!$O$4 -> CENTRO DE ENSINO EM PERÍODO INTEGRAL GARAVELO PARK | H5: =Orçamento!$X$4 -> 52030660
A7: OBRA | H7: CIDADE
A8: =Orçamento!$O$7 -> AMPLIAÇÃO E REFORMA | H8: =Orçamento!$X$7 -> APARECIDA DE GOIÂNIA
A10: CRE | D10: ENDEREÇO | H10: REFERÊNCIA AGETOP
A11: =Orçamento!$O$10 -> APARECIDA | D11: =Orçamento!$R$10 -> RUA 43-E QD.84 ESQ.C/ 44-E S/N QD.84, SETOR GARAVELO PARK, CEP:74932-640 | H11: =Orçamento!$S$10 -> ABR/19 | I11: =Orçamento!$T$10 -> DESONERADA
A13: DATA | D13: ÁREA TOTAL CONSTRUÍDA (M²) | H13: REFERÊNCIA SINAPI
A14: =Orçamento!$S$7 -> 2020-03-25 | D14: =Orçamento!$X$13 -> 2186.3 | H14: =Orçamento!$X$10 -> OUT/19 | I14: =Orçamento!$Y$10 -> DESONERADA
A16: COMPOSIÇÕES DE CUSTOS UNITÁRIOS - SEE-GO
A17: 46 | B17: FONTE | C17: CÓDIGO | D17: DESCRIÇÃO | E17: UNIDADE | F17: COEFIC. | G17: CUSTO UNITÁRIO | I17: CUSTO TOTAL (A) + (B) + (C) + (D) + (E)
G18: DESONERADO | H18: NÃO DESONER. | I18: DESONERADO | J18: NÃO DESONER.
B19: COMPOSIÇÃO | C19: COMP 046_SEE | D19: CAPUZ PARA PROTEÇÃO DOS PARA RAIOS | E19: UN | I19: 16.1 | J19: 16.15
B20: AGETOP_I | C20: 8 | D20: AJUDANTE | E20: h | F20: 0.0333 | G20: 8.75 | H20: 10.14 | I20: 0.29 | J20: 0.34
B21: AGETOP_I | C21: 12 | D21: MATERIAL HIDRO-SANITÁRIO | E21: 0 | F21: 0.0333 | G21: 0 | H21: 0 | I21: 0 | J21: 0
B22: MÃO DE OBRA (B) - TOTAL | I22: 0.29 | J22: 0.34
B23: COTAÇÃO | C23: COT 010_SEE | D23: CAPUZ PARA PROTEÇÃO DOS PARA RAIOS | E23: UN | F23: 1 | G23: 15.81 | H23: 15.81 | I23: 15.81 | J23: 15.81
B24: MATERIAL (C) - TOTAL | I24: 15.81 | J24: 15.81
A26: 47 | B26: FONTE | C26: CÓDIGO | D26: DESCRIÇÃO | E26: UNIDADE | F26: COEFIC. | G26: CUSTO UNITÁRIO | I26: CUSTO TOTAL (A) + (B) + (C) + (D) + (E)
G27: DESONERADO | H27: NÃO DESONER. | I27: DESONERADO | J27: NÃO DESONER.
B28: COMPOSIÇÃO | C28: COMP 047_SEE | D28: CAPUZ DE PROTEÇÃO PARA BUCHA DE TRANSFORMADOR | E28: UN | I28: 16.1 | J28: 16.15
B29: AGETOP_I | C29: 8 | D29: AJUDANTE | E29: h | F29: 0.0333 | G29: 8.75 | H29: 10.14 | I29: 0.29 | J29: 0.34
B30: AGETOP_I | C30: 12 | D30: MATERIAL HIDRO-SANITÁRIO | E30: 0 | F30: 0.0333 | G30: 0 | H30: 0 | I30: 0 | J30: 0
B31: MÃO DE OBRA (B) - TOTAL | I31: 0.29 | J31: 0.34
B32: COTAÇÃO | C32: COT 011_SEE | D32: CAPUZ DE PROTEÇÃO PARA BUCHA DE TRANSFORMADOR | E32: UN | F32: 1 | G32: 15.81 | H32: 15.81 | I32: 15.81 | J32: 15.81
B33: MATERIAL (C) - TOTAL | I33: 15.81 | J33: 15.81
A35: 48 | B35: FONTE | C35: CÓDIGO | D35: DESCRIÇÃO | E35: UNIDADE | F35: COEFIC. | G35: CUSTO UNITÁRIO | I35: CUSTO TOTAL (A) + (B) + (C) + (D) + (E)
G36: DESONERADO | H36: NÃO DESONER. | I36: DESONERADO | J36: NÃO DESONER.
B37: COMPOSIÇÃO | C37: COMP 048_SEE | D37: HASTE ROSQUEADA "TIRANTE" 3/8" | E37: M | I37: 8.88 | J37: 9.44
B38: AGETOP_I | C38: 8 | D38: AJUDANTE | E38: h | F38: 0.4 | G38: 8.75 | H38: 10.14 | I38: 3.5 | J38: 4.06
B39: AGETOP_I | C39: 12 | D39: MATERIAL HIDRO-SANITÁRIO | E39: 0 | F39: 0.4 | G39: 0 | H39: 0 | I39: 0 | J39: 0
B40: MÃO DE OBRA (B) - TOTAL | I40: 3.5 | J40: 4.06
B41: COTAÇÃO | C41: COT 012_SEE | D41: HASTE ROSQUEADA "TIRANTE" 3/8" | E41: M | F41: 1 | G41: 5.383333333 | H41: 5.383333333 | I41: 5.38 | J41: 5.38
B42: MATERIAL (C) - TOTAL | I42: 5.38 | J42: 5.38
A44: 49 | B44: FONTE | C44: CÓDIGO | D44: DESCRIÇÃO | E44: UNIDADE | F44: COEFIC. | G44: CUSTO UNITÁRIO | I44: CUSTO TOTAL (A) + (B) + (C) + (D) + (E)
G45: DESONERADO | H45: NÃO DESONER. | I45: DESONERADO | J45: NÃO DESONER.
B46: COMPOSIÇÃO | C46: COMP 049_SEE | D46: PORCA SEXTAVADA 3/8" | E46: UN | I46: 0.21 | J46: 0.22
B47: AGETOP_I | C47: 8 | D47: AJUDANTE | E47: h | F47: 0.009 | G47: 8.75 | H47: 10.14 | I47: 0.08 | J47: 0.09
B48: MÃO DE OBRA (B) - TOTAL | I48: 0.08 | J48: 0.09
B49: COTAÇÃO | C49: COT 013_SEE | D49: PORCA SEXTAVADA 3/8" | E49: UN | F49: 1 | G49: 0.13 | H49: 0.13 | I49: 0.13 | J49: 0.13
B50: MATERIAL (C) - TOTAL | I50: 0.13 | J50: 0.13
A52: 40 | B52: FONTE | C52: CÓDIGO | D52: DESCRIÇÃO | E52: UNIDADE | F52: COEFIC. | G52: CUSTO UNITÁRIO | I52: CUSTO TOTAL (A) + (B) + (C) + (D) + (E)
G53: DESONERADO | H53: NÃO DESONER. | I53: DESONERADO | J53: NÃO DESONER.
B54: COMPOSIÇÃO | C54: COMP 040_SEE | D54: CONJUNTO MOTOR-BOMBA ELÉTRICA TRIFÁSICO 380/220 V PARA VZ= 24,33 M³/H, HM= 46,24 M POTÊNCIA= 7,5 CV | E54: UN | I54: 3862.67 | J54: 3873.79
B55: AGETOP_I | C55: 8 | D55: AJUDANTE | E55: h | F55: 8 | G55: 8.75 | H55: 10.14 | I55: 70 | J55: 81.12
B56: AGETOP_I | C56: 11 | D56: MATERIAL ELÉTRICO | E56: 0 | F56: 8 | G56: 0 | H56: 0 | I56: 0 | J56: 0
B57: MÃO DE OBRA (B) - TOTAL | I57: 70 | J57: 81.12
B58: COTAÇÃO | C58: COT 008_SEE | D58: CONJUNTO MOTOR-BOMBA ELÉTRICA TRIFÁSICO 380/220 V PARA VZ= 24,33 M³/H, HM= 46,24 M POTÊNCIA= 7,5 CV | E58: UN | F58: 1 | G58: 3792.666667 | H58: 3792.666667 | I58: 3792.67 | J58: 3792.67
B59: MATERIAL (C) - TOTAL | I59: 3792.67 | J59: 3792.67
A61: 194 | B61: FONTE | C61: CÓDIGO | D61: DESCRIÇÃO | E61: UNIDADE | F61: COEFIC. | G61: CUSTO UNITÁRIO | I61: CUSTO TOTAL (A) + (B) + (C) + (D) + (E)
G62: DESONERADO | H62: NÃO DESONER. | I62: DESONERADO | J62: NÃO DESONER.
B63: COMPOSIÇÃO | C63: COMP 194_SEE | D63: TAMPÃO CEGO COM CORRENTE 1.1/2" | E63: UN | I63: 52.31 | J63: 52.31
B64: AGETOP_I | C64: 11 | D64: MATERIAL ELÉTRICO | E64: 0 | F64: 0.15 | G64: 0 | H64: 0 | I64: 0 | J64: 0
B65: MÃO DE OBRA (B) - TOTAL | I65: 0 | J65: 0
B66: SINAPI_I | C66: 20964 | D66: TAMPAO COM CORRENTE, EM LATAO, ENGATE RAPIDO 1 1/2", PARA INSTALACAO PREDIAL DE COMBATE A INCENDIO | E66: UN | F66: 1 | G66: 52.31 | H66: 52.31 | I66: 52.31 | J66: 52.31
B67: MATERIAL (C) - TOTAL | I67: 52.31 | J67: 52.31
A69: 17 | B69: FONTE | C69: CÓDIGO | D69: DESCRIÇÃO | E69: UNIDADE | F69: COEFIC. | G69: CUSTO UNITÁRIO | I69: CUSTO TOTAL (A) + (B) + (C) + (D) + (E)
G70: DESONERADO | H70: NÃO DESONER. | I70: DESONERADO | J70: NÃO DESONER.
B71: COMPOSIÇÃO | C71: COMP 017_SEE | D71: REDUCAO GIRATÓRIA TIPO STORZ LATAO P/ INST. PREDIAL COMBATE A INCENDIO ENGATE RAPIDO 2.1/2" X 1.1/2" | E71: UN | G71: - | H71: - | I71: 97.09 | J71: 97.31
B72: AGETOP_I | C72: 8 | D72: AJUDANTE | E72: h | F72: 0.16 | G72: 8.75 | H72: 10.14 | I72: 1.4 | J72: 1.62
B73: AGETOP_I | C73: 11 | D73: MATERIAL ELÉTRICO | E73: 0 | F73: 0.16 | G73: 0 | H73: 0 | I73: 0 | J73: 0
B74: MÃO DE OBRA (B) - TOTAL | I74: 1.4 | J74: 1.62
B75: SINAPI_I | C75: 20972 | D75: REDUCAO FIXA TIPO STORZ, ENGATE RAPIDO 2.1/2" X 1.1/2", EM LATAO, PARA INSTALACAO PREDIAL COMBATE A INCENDIO PREDIAL | E75: UN | F75: 1 | G75: 95.69 | H75: 95.69 | I75: 95.69 | J75: 95.69
B76: MATERIAL (C) - TOTAL | I76: 95.69 | J76: 95.69
A78: 18 | B78: FONTE | C78: CÓDIGO | D78: DESCRIÇÃO | E78: UNIDADE | F78: COEFIC. | G78: CUSTO UNITÁRIO | I78: CUSTO TOTAL (A) + (B) + (C) + (D) + (E)
G79: DESONERADO | H79: NÃO DESONER. | I79: DESONERADO | J79: NÃO DESONER.
B80: COMPOSIÇÃO | C80: COMP 018_SEE | D80: CHAVE DUPLA P/ CONEXÕES TIPO STORZ EM LATÃO ENGATE RÁPIDO 1 1/2" X 2 1/2" | E80: UN | G80: - | H80: - | I80: 12.75 | J80: 12.75
B81: AGETOP_I | C81: 11 | D81: MATERIAL ELÉTRICO | E81: 0 | F81: 0.15 | G81: 0 | H81: 0 | I81: 0 | J81: 0
B82: MÃO DE OBRA (B) - TOTAL | I82: 0 | J82: 0
B83: SINAPI_I | C83: 20971 | D83: CHAVE DUPLA PARA CONEXOES TIPO STORZ, ENGATE RAPIDO 1 1/2" X 2 1/2", EM LATAO, PARA INSTALACAO PREDIAL COMBATE A INCENDIO | E83: UN | F83: 1 | G83: 12.75 | H83: 12.75 | I83: 12.75 | J83: 12.75
B84: MATERIAL (C) - TOTAL | I84: 12.75 | J84: 12.75
A86: 87 | B86: FONTE | C86: CÓDIGO | D86: DESCRIÇÃO | E86: UNIDADE | F86: COEFIC. | G86: CUSTO UNITÁRIO | I86: CUSTO TOTAL (A) + (B) + (C) + (D) + (E)
G87: DESONERADO | H87: NÃO DESONER. | I87: DESONERADO | J87: NÃO DESONER.
B88: COMPOSIÇÃO | C88: COMP 087_SEE | D88: REGISTRO DE GAVETA COM HASTE ASCENDENTE DE BRONZE 2 1/2" | E88: UN | I88: 241.73 | J88: 243.33
B89: AGETOP_I | C89: 8 | D89: AJUDANTE | E89: h | F89: 1.15 | G89: 8.75 | H89: 10.14 | I89: 10.06 | J89: 11.66
B90: AGETOP_I | C90: 11 | D90: MATERIAL ELÉTRICO | E90: 0 | F90: 1.15 | G90: 0 | H90: 0 | I90: 0 | J90: 0
B91: MÃO DE OBRA (B) - TOTAL | I91: 10.06 | J91: 11.66
B92: AGETOP_I | C92: H689 | F92: 2.82 | G92: 0 | H92: 0 | I92: 0 | J92: 0
B93: COTAÇÃO | C93: COT 017_SEE | D93: REGISTRO DE GAVETA COM HASTE ASCENDENTE DE BRONZE 2 1/2" | E93: UN | F93: 1 | G93: 231.6666667 | H93: 231.6666667 | I93: 231.67 | J93: 231.67
B94: MATERIAL (C) - TOTAL | I94: 231.67 | J94: 231.67
A96: 30 | B96: FONTE | C96: CÓDIGO | D96: DESCRIÇÃO | E96: UNIDADE | F96: COEFIC. | G96: CUSTO UNITÁRIO | I96: CUSTO TOTAL (A) + (B) + (C) + (D) + (E)
G97: DESONERADO | H97: NÃO DESONER. | I97: DESONERADO | J97: NÃO DESONER.
B98: COMPOSIÇÃO | C98: COMP 030_SEE | D98: COTOVELO DE FERRO GALV. 90° X 2 1/2" | E98: UN | I98: 56.78 | J98: 58.06
B99: AGETOP_I | C99: 8 | D99: AJUDANTE | E99: h | F99: 0.92 | G99: 8.75 | H99: 10.14 | I99: 8.05 | J99: 9.33
B100: AGETOP_I | C100: 11 | D100: MATERIAL ELÉTRICO | E100: 0 | F100: 0.92 | G100: 0 | H100: 0 | I100: 0 | J100: 0
B101: MÃO DE OBRA (B) - TOTAL | I101: 8.05 | J101: 9.33
B102: SINAPI_I | C102: 3470 | D102: COTOVELO 90 GRAUS DE FERRO GALVANIZADO, COM ROSCA BSP, DE 2 1/2" | E102: UN | F102: 1 | G102: 48.73 | H102: 48.73 | I102: 48.73 | J102: 48.73
B103: AGETOP_I | C103: H689 | F103: 2 | G103: 0 | H103: 0 | I103: 0 | J103: 0
B104: MATERIAL (C) - TOTAL | I104: 48.73 | J104: 48.73
A106: 77 | B106: FONTE | C106: CÓDIGO | D106: DESCRIÇÃO | E106: UNIDADE | F106: COEFIC. | G106: CUSTO UNITÁRIO | I106: CUSTO TOTAL (A) + (B) + (C) + (D) + (E)
G107: DESONERADO | H107: NÃO DESONER. | I107: DESONERADO | J107: NÃO DESONER.
B108: COMPOSIÇÃO | C108: COMP 077_SEE | D108: UNIAO FERRO GALV C/ASSENTO CONICO BRONZE 2 1/2" | E108: UN | I108: 142.49 | J108: 143.05
B109: AGETOP_I | C109: 8 | D109: AJUDANTE | E109: h | F109: 0.4 | G109: 8.75 | H109: 10.14 | I109: 3.5 | J109: 4.06
B110: AGETOP_I | C110: 11 | D110: MATERIAL ELÉTRICO | E110: 0 | F110: 0.4 | G110: 0 | H110: 0 | I110: 0 | J110: 0
B111: MÃO DE OBRA (B) - TOTAL | I111: 3.5 | J111: 4.06
B112: AGETOP_I | C112: H689 | F112: 2.4 | G112: 0 | H112: 0 | I112: 0 | J112: 0
B113: SINAPI_I | C113: 12427 | D113: UNIAO COM ASSENTO CONICO DE BRONZE, DIAMETRO 2 1/2" | E113: UN | F113: 1 | G113: 138.99 | H113: 138.99 | I113: 138.99 | J113: 138.99
B114: MATERIAL (C) - TOTAL | I114: 138.99 | J114: 138.99
A116: 347 | B116: FONTE | C116: CÓDIGO | D116: DESCRIÇÃO | E116: UNIDADE | F116: COEFIC. | G116: CUSTO UNITÁRIO | I116: CUSTO TOTAL (A) + (B) + (C) + (D) + (E)
G117: DESONERADO | H117: NÃO DESONER. | I117: DESONERADO | J117: NÃO DESONER.
B118: COMPOSIÇÃO | C118: COMP 347_SEE | D118: ADAPTADOR PVC SOLDAVEL, COM FLANGES LIVRES, 75 MM X 2 1/2", PARA CAIXA D' AGUA | E118: UN | I118: 116.42 | J118: 116.61
B119: AGETOP_I | C119: 11 | D119: MATERIAL ELÉTRICO | E119: 0 | F119: 0.14 | G119: 0 | H119: 0 | I119: 0 | J119: 0
B120: AGETOP_I | C120: 8 | D120: AJUDANTE | E120: h | F120: 0.14 | G120: 8.75 | H120: 10.14 | I120: 1.23 | J120: 1.42
B121: MÃO DE OBRA (B) - TOTAL | I121: 1.23 | J121: 1.42
B122: SINAPI_I | C122: 83 | D122: ADAPTADOR PVC SOLDAVEL, COM FLANGES LIVRES, 75 MM X 2 1/2", PARA CAIXA D' AGUA | E122: UN | F122: 1 | G122: 115.19 | H122: 115.19 | I122: 115.19 | J122: 115.19
B123: AGETOP_I | C123: H689 | F123: 1.88 | G123: 0 | H123: 0 | I123: 0 | J123: 0
B124: MATERIAL (C) - TOTAL | I124: 115.19 | J124: 115.19
A126: 22 | B126: FONTE | C126: CÓDIGO | D126: DESCRIÇÃO | E126: UNIDADE | F126: COEFIC. | G126: CUSTO UNITÁRIO | I126: CUSTO TOTAL (A) + (B) + (C) + (D) + (E)
G127: DESONERADO | H127: NÃO DESONER. | I127: DESONERADO | J127: NÃO DESONER.
B128: COMPOSIÇÃO | C128: COMP 022_SEE | D128: TAMPÃO FOFO 40X50CM C/INSCRIÇÃO | E128: UN | G128: - | H128: - | I128: 197.82 | J128: 197.82
B129: AGETOP_I | C129: 11 | D129: MATERIAL ELÉTRICO | E129: 0 | F129: 0.15 | G129: 0 | H129: 0 | I129: 0 | J129: 0
B130: MÃO DE OBRA (B) - TOTAL | I130: 0 | J130: 0
B131: SINAPI_I | C131: 11293 | D131: TAMPAO FOFO SIMPLES COM BASE, CLASSE A15 CARGA MAX 1,5 T, 400 X 500 MM, COM INSCRICAO INCENDIO | E131: UN | F131: 1 | G131: 197.82 | H131: 197.82 | I131: 197.82 | J131: 197.82
B132: MATERIAL (C) - TOTAL | I132: 197.82 | J132: 197.82
A134: 546 | B134: FONTE | C134: CÓDIGO | D134: DESCRIÇÃO | E134: UNID | F134: COEFIC. | G134: CUSTO UNITÁRIO | I134: CUSTO TOTAL (A) + (B) + (C) + (D) + (E)
G135: DESONERADO | H135: NÃO DESONER. | I135: DESONERADO | J135: NÃO DESONER.
B136: COMPOSIÇÃO | C136: COMP 546_SEE | D136: BUJÃO DE REBORDO 2.1/2" | E136: UN | F136: - | G136: - | H136: - | I136: 15.61 | J136: 15.71
B137: AGETOP_I | C137: 8 | D137: AJUDANTE | E137: h | F137: 0.07 | G137: 8.75 | H137: 10.14 | I137: 0.61 | J137: 0.71
B138: AGETOP_I | C138: 11 | D138: MATERIAL ELÉTRICO | E138: 0 | F138: 0.07 | G138: 0 | H138: 0 | I138: 0 | J138: 0
B139: MÃO DE OBRA (B) - TOTAL | I139: 0.61 | J139: 0.71
B140: COTAÇÃO | C140: COT 286_SEE | D140: BUJÃO DE REBORDO 2.1/2" | E140: UN | F140: 1 | G140: 15 | H140: 15 | I140: 15 | J140: 15
B141: MATERIAL (C) - TOTAL | I141: 15 | J141: 15
A143: 186 | B143: FONTE | C143: CÓDIGO | D143: DESCRIÇÃO | E143: UNIDADE | F143: COEFIC. | G143: CUSTO UNITÁRIO | I143: CUSTO TOTAL (A) + (B) + (C) + (D) + (E)
G144: DESONERADO | H144: NÃO DESONER. | I144: DESONERADO | J144: NÃO DESONER.
B145: COMPOSIÇÃO | C145: COMP 186_SEE | D145: BOTOEIRA BOMBA DE INCÊNDIO C/ MARTELO CONVENCIONAL/ ANALÓGICA | E145: UN | I145: 72.25 | J145: 73.64
B146: AGETOP_I | C146: 8 | D146: AJUDANTE | E146: h | F146: 1 | G146: 8.75 | H146: 10.14 | I146: 8.75 | J146: 10.14
B147: AGETOP_I | C147: 12 | D147: MATERIAL HIDRO-SANITÁRIO | E147: 0 | F147: 1 | G147: 0 | H147: 0 | I147: 0 | J147: 0
B148: MÃO DE OBRA (B) - TOTAL | I148: 8.75 | J148: 10.14
B149: COTAÇÃO | C149: COT 088_SEE | D149: BOTOEIRA BOMBA DE INCÊNDIO C/ MARTELO CONVENCIONAL/ ANALÓGICA | E149: UN | F149: 1 | G149: 63.5 | H149: 63.5 | I149: 63.5 | J149: 63.5
B150: MATERIAL (C) - TOTAL | I150: 63.5 | J150: 63.5
A152: 188 | B152: FONTE | C152: CÓDIGO | D152: DESCRIÇÃO | E152: UNIDADE | F152: COEFIC. | G152: CUSTO UNITÁRIO | I152: CUSTO TOTAL (A) + (B) + (C) + (D) + (E)
G153: DESONERADO | H153: NÃO DESONER. | I153: DESONERADO | J153: NÃO DESONER.
B154: COMPOSIÇÃO | C154: COMP 188_SEE | D154: ACIONADOR MANUAL DE ALARME | E154: UN | I154: 90.33 | J154: 91.44
B155: AGETOP_I | C155: 8 | D155: AJUDANTE | E155: h | F155: 0.8 | G155: 8.75 | H155: 10.14 | I155: 7 | J155: 8.11
B156: AGETOP_I | C156: 12 | D156: MATERIAL HIDRO-SANITÁRIO | E156: 0 | F156: 0.8 | G156: 0 | H156: 0 | I156: 0 | J156: 0
B157: MÃO DE OBRA (B) - TOTAL | I157: 7 | J157: 8.11
B158: COTAÇÃO | C158: COT 090_SEE | D158: ACIONADOR MANUAL DE ALARME | E158: UN | F158: 1 | G158: 83.33333333 | H158: 83.33333333 | I158: 83.33 | J158: 83.33
B159: MATERIAL (C) - TOTAL | I159: 83.33 | J159: 83.33
A161: 190 | B161: FONTE | C161: CÓDIGO | D161: DESCRIÇÃO | E161: UNIDADE | F161: COEFIC. | G161: CUSTO UNITÁRIO | I161: CUSTO TOTAL (A) + (B) + (C) + (D) + (E)
G162: DESONERADO | H162: NÃO DESONER. | I162: DESONERADO | J162: NÃO DESONER.
B163: COMPOSIÇÃO | C163: COMP 190_SEE | D163: CENTRAL DE DETECÇÃO E ALARME DE 40 SETORES COM BATERIA | E163: UN | I163: 1033.33 | J163: 1044.45
B164: AGETOP_I | C164: 8 | D164: AJUDANTE | E164: h | F164: 8 | G164: 8.75 | H164: 10.14 | I164: 70 | J164: 81.12
B165: AGETOP_I | C165: 12 | D165: MATERIAL HIDRO-SANITÁRIO | E165: 0 | F165: 8 | G165: 0 | H165: 0 | I165: 0 | J165: 0
B166: MÃO DE OBRA (B) - TOTAL | I166: 70 | J166: 81.12
B167: COTAÇÃO | C167: COT 092_SEE | D167: CENTRAL DE DETECÇÃO E ALARME DE 40 SETORES COM BATERIA (PREÇO MÉDIO) | E167: UN | F167: 1 | G167: 963.3333333 | H167: 963.3333333 | I167: 963.33 | J167: 963.33
B168: MATERIAL (C) - TOTAL | I168: 963.33 | J168: 963.33
A170: 24 | B170: FONTE | C170: CÓDIGO | D170: DESCRIÇÃO | E170: UNIDADE | F170: COEFIC. | G170: CUSTO UNITÁRIO | I170: CUSTO TOTAL (A) + (B) + (C) + (D) + (E)
G171: DESONERADO | H171: NÃO DESONER. | I171: DESONERADO | J171: NÃO DESONER.
B172: COMPOSIÇÃO | C172: COMP 024_SEE | D172: SINALIZADOR FOTOLUMINESCENTE PARA EXTINTOR | E172: UN | G172: - | H172: - | I172: 25.32 | J172: 25.44
B173: AGETOP_I | C173: 5 | D173: SERVENTE | E173: h | F173: 0.09 | G173: 8.75 | H173: 10.14 | I173: 0.79 | J173: 0.91
B174: MÃO DE OBRA (B) - TOTAL | I174: 0.79 | J174: 0.91
B175: AGETOP_I | C175: 3070 | D175: BUCHA DE NYLON S-6 | E175: un | F175: 2 | G175: 0.04 | H175: 0.04 | I175: 0.08 | J175: 0.08
B176: AGETOP_I | C176: 3393 | D176: PARAFUSO P/BUCHA S-6 | E176: un | F176: 2 | G176: 0.08 | H176: 0.08 | I176: 0.16 | J176: 0.16
B177: SINAPI_I | C177: 37556 | D177: PLACA DE SINALIZACAO DE SEGURANCA CONTRA INCENDIO, FOTOLUMINESCENTE, QUADRADA, *20 X 20* CM, EM PVC *2* MM ANTI-CHAMAS (SIMBOLOS, CORES E PICTOGRAMAS CONFORME NBR 13434) | E177: UN | F177: 1 | G177: 24.29 | H177: 24.29 | I177: 24.29 | J177: 24.29
B178: MATERIAL (C) - TOTAL | I178: 24.53 | J178: 24.53
A180: 25 | B180: FONTE | C180: CÓDIGO | D180: DESCRIÇÃO | E180: UNIDADE | F180: COEFIC. | G180: CUSTO UNITÁRIO | I180: CUSTO TOTAL (A) + (B) + (C) + (D) + (E)
G181: DESONERADO | H181: NÃO DESONER. | I181: DESONERADO | J181: NÃO DESONER.
B182: COMPOSIÇÃO | C182: COMP 025_SEE | D182: SINALIZADOR FOTOLUMINESCENTE DE EMERGÊNCIA | E182: UN | G182: - | H182: - | I182: 25.32 | J182: 25.44
B183: AGETOP_I | C183: 5 | D183: SERVENTE | E183: h | F183: 0.09 | G183: 8.75 | H183: 10.14 | I183: 0.79 | J183: 0.91
B184: MÃO DE OBRA (B) - TOTAL | I184: 0.79 | J184: 0.91
B185: AGETOP_I | C185: 3070 | D185: BUCHA DE NYLON S-6 | E185: un | F185: 2 | G185: 0.04 | H185: 0.04 | I185: 0.08 | J185: 0.08
B186: AGETOP_I | C186: 3393 | D186: PARAFUSO P/BUCHA S-6 | E186: un | F186: 2 | G186: 0.08 | H186: 0.08 | I186: 0.16 | J186: 0.16
B187: SINAPI_I | C187: 37556 | D187: PLACA DE SINALIZACAO DE SEGURANCA CONTRA INCENDIO, FOTOLUMINESCENTE, QUADRADA, *20 X 20* CM, EM PVC *2* MM ANTI-CHAMAS (SIMBOLOS, CORES E PICTOGRAMAS CONFORME NBR 13434) | E187: UN | F187: 1 | G187: 24.29 | H187: 24.29 | I187: 24.29 | J187: 24.29
B188: MATERIAL (C) - TOTAL | I188: 24.53 | J188: 24.53
A190: 277 | B190: FONTE | C190: CÓDIGO | D190: DESCRIÇÃO | E190: UNIDADE | F190: COEFIC. | G190: CUSTO UNITÁRIO | I190: CUSTO TOTAL (A) + (B) + (C) + (D) + (E)
G191: DESONERADO | H191: NÃO DESONER. | I191: DESONERADO | J191: NÃO DESONER.
B192: COMPOSIÇÃO | C192: COMP 277_SEE | D192: MARCAÇÃO NO PISO - 1X1 M PARA EXTINTOR | E192: M2 | I192: 29.54 | J192: 29.62
B193: AGETOP_I | C193: 5 | D193: SERVENTE | E193: h | F193: 0.0333 | G193: 8.75 | H193: 10.14 | I193: 0.29 | J193: 0.34
B194: MÃO DE OBRA (B) - TOTAL | I194: 0.29 | J194: 0.34
B195: SINAPI_I | C195: 5318 | D195: SOLVENTE DILUENTE A BASE DE AGUARRAS | E195: L | F195: 0.13 | G195: 11 | H195: 11 | I195: 1.43 | J195: 1.43
B196: SINAPI | C196: 5824 | D196: CAMINHÃO TOCO, PBT 16.000 KG, CARGA ÚTIL MÁX. 10.685 KG, DIST. ENTRE EIXOS 4,8 M, POTÊNCIA 189 CV, INCLUSIVE CARROCERIA FIXA ABERTA DE MADEIRA P/ TRANSPORTE GERAL DE CARGA SECA, DIMEN. APROX. 2,5 X 7,00 X 0,50 M - CHP DIURNO. AF_06/2014 | E196: CHP | F196: 0.0033 | G196: 122.72 | H196: 125.93 | I196: 0.4 | J196: 0.42
B197: SINAPI_I | C197: 7343 | D197: TINTA A BASE DE RESINA ACRILICA, PARA SINALIZACAO HORIZONTAL VIARIA (NBR 11862) | E197: L | F197: 0.6 | G197: 12.55 | H197: 12.55 | I197: 7.53 | J197: 7.53
B198: SINAPI_I | C198: 7348 | D198: TINTA ACRILICA PREMIUM PARA PISO | E198: L | F198: 0.03 | G198: 13 | H198: 13 | I198: 0.39 | J198: 0.39
B199: SINAPI_I | C199: 25972 | D199: MICROESFERAS DE VIDRO PARA SINALIZACAO HORIZONTAL VIARIA, TIPO I-B (PREMIX) - NBR 16184 | E199: KG | F199: 2.14 | G199: 8.94 | H199: 8.94 | I199: 19.13 | J199: 19.13
B200: SINAPI | C200: 95133 | D200: MÁQUINA DEMARCADORA DE FAIXA DE TRÁFEGO À FRIO, AUTOPROPELIDA, POTÊNCIA 38 HP - CHP DIURNO. AF_07/2016 | E200: CHP | F200: 0.0033 | G200: 111.93 | H200: 115.51 | I200: 0.37 | J200: 0.38
B201: MATERIAL (C) - TOTAL | I201: 29.25 | J201: 29.28
A203: 235 | B203: FONTE | C203: CÓDIGO | D203: DESCRIÇÃO | E203: UNIDADE | F203: COEFIC. | G203: CUSTO UNITÁRIO | I203: CUSTO TOTAL (A) + (B) + (C) + (D) + (E)
G204: DESONERADO | H204: NÃO DESONER. | I204: DESONERADO | J204: NÃO DESONER.
B205: COMPOSIÇÃO | C205: COMP 235_SEE | D205: PLACA DE SINALIZAÇÃO EM PVC COD 01 - (300X300) PROIBIDO FUMAR | E205: UN | I205: 25.32 | J205: 25.44
B206: AGETOP_I | C206: 5 | D206: SERVENTE | E206: h | F206: 0.09 | G206: 8.75 | H206: 10.14 | I206: 0.79 | J206: 0.91
B207: MÃO DE OBRA (B) - TOTAL | I207: 0.79 | J207: 0.91
B208: AGETOP_I | C208: 3070 | D208: BUCHA DE NYLON S-6 | E208: un | F208: 2 | G208: 0.04 | H208: 0.04 | I208: 0.08 | J208: 0.08
B209: AGETOP_I | C209: 3393 | D209: PARAFUSO P/BUCHA S-6 | E209: un | F209: 2 | G209: 0.08 | H209: 0.08 | I209: 0.16 | J209: 0.16
B210: SINAPI_I | C210: 37556 | D210: PLACA DE SINALIZACAO DE SEGURANCA CONTRA INCENDIO, FOTOLUMINESCENTE, QUADRADA, *20 X 20* CM, EM PVC *2* MM ANTI-CHAMAS (SIMBOLOS, CORES E PICTOGRAMAS CONFORME NBR 13434) | E210: UN | F210: 1 | G210: 24.29 | H210: 24.29 | I210: 24.29 | J210: 24.29
B211: MATERIAL (C) - TOTAL | I211: 24.53 | J211: 24.53
A213: 236 | B213: FONTE | C213: CÓDIGO | D213: DESCRIÇÃO | E213: UNIDADE | F213: COEFIC. | G213: CUSTO UNITÁRIO | I213: CUSTO TOTAL (A) + (B) + (C) + (D) + (E)
G214: DESONERADO | H214: NÃO DESONER. | I214: DESONERADO | J214: NÃO DESONER.
B215: COMPOSIÇÃO | C215: COMP 236_SEE | D215: PLACA DE SINALIZAÇÃO EM PVC COD 06 - (300X300) PERIGO INFLAMÁVEL | E215: UN | I215: 25.32 | J215: 25.44
B216: AGETOP_I | C216: 5 | D216: SERVENTE | E216: h | F216: 0.09 | G216: 8.75 | H216: 10.14 | I216: 0.79 | J216: 0.91
B217: MÃO DE OBRA (B) - TOTAL | I217: 0.79 | J217: 0.91
B218: AGETOP_I | C218: 3070 | D218: BUCHA DE NYLON S-6 | E218: un | F218: 2 | G218: 0.04 | H218: 0.04 | I218: 0.08 | J218: 0.08
B219: AGETOP_I | C219: 3393 | D219: PARAFUSO P/BUCHA S-6 | E219: un | F219: 2 | G219: 0.08 | H219: 0.08 | I219: 0.16 | J219: 0.16
B220: SINAPI_I | C220: 37556 | D220: PLACA DE SINALIZACAO DE SEGURANCA CONTRA INCENDIO, FOTOLUMINESCENTE, QUADRADA, *20 X 20* CM, EM PVC *2* MM ANTI-CHAMAS (SIMBOLOS, CORES E PICTOGRAMAS CONFORME NBR 13434) | E220: UN | F220: 1 | G220: 24.29 | H220: 24.29 | I220: 24.29 | J220: 24.29
B221: MATERIAL (C) - TOTAL | I221: 24.53 | J221: 24.53
A223: 411 | B223: FONTE | C223: CÓDIGO | D223: DESCRIÇÃO | E223: UNIDADE | F223: COEFIC. | G223: CUSTO UNITÁRIO | I223: CUSTO TOTAL (A) + (B) + (C) + (D) + (E)
G224: DESONERADO | H224: NÃO DESONER. | I224: DESONERADO | J224: NÃO DESONER.
B225: COMPOSIÇÃO | C225: COMP 411_SEE | D225: PLACA DE SINALIZAÇÃO EM PVC COD 13 - (316X158) SAÍDA DE EMERGÊNCIA | E225: UN | I225: 30.82 | J225: 30.94
B226: AGETOP_I | C226: 5 | D226: SERVENTE | E226: h | F226: 0.09 | G226: 8.75 | H226: 10.14 | I226: 0.79 | J226: 0.91
B227: MÃO DE OBRA (B) - TOTAL | I227: 0.79 | J227: 0.91
B228: AGETOP_I | C228: 3070 | D228: BUCHA DE NYLON S-6 | E228: un | F228: 2 | G228: 0.04 | H228: 0.04 | I228: 0.08 | J228: 0.08
B229: AGETOP_I | C229: 3393 | D229: PARAFUSO P/BUCHA S-6 | E229: un | F229: 2 | G229: 0.08 | H229: 0.08 | I229: 0.16 | J229: 0.16
... 125 more rows
